Workbook

Sheet Instructions
E3: LEED BD+C: Homes and Multifamily v4 Workbook
E4: Step 1.
E5: Ensure this project is registered in LEED Online.
E7: Step 2.
E8: Enable macros
E9: Note: This workbook is for use with Excel for Mac 2011 and Excel 2007 or later.
E11: Step 3.
E12: Unit of measure | F12: IP units
E14: Step 4.
E15: Project rating system | F15: LEED BD+C: Homes and Multifamily Lowrise v4 - LEED v4
E17: Project type | F17: Individual
E19: Number of homes in batch submittal
E21: Construction type | F21: Gut-rehab
E23: Project team leader | F23: Travis VanLuyn
E25: Green rater | F25: Jamison Lenz
E27: Provider QAD | F27: Michael Holcomb, GHI
E29: Step 5.
E30: The following information must be consistent with project details in LEED Online:
E32: Individual Project Information
E33: Project ID # | F33: 1000100140
E34: Project name | F34: Woodlawn Residence
E35: Project address | F35: 537 Woodlawn
E36: City | F36: Grand Rapids
E37: State | F37: Michigan
E38: Country | F38: USA
E39: Zip Code | F39: 49507
E40: Building type | F40: Single family detached
E41: Number of stories | F41: 1
E42: Number of bedrooms | F42: 4
E43: =CONCATENATE("Conditioned floor area ",IF(I62=2,"(sq m)","(sq ft)")) -> Conditioned floor area (sq ft) | F43: 1055
E44: =CONCATENATE("Gross floor area ",IF(I62=2,"(sq m)","(sq ft)")) -> Gross floor area (sq ft)
E45: Batch Project Information
E46: Registration Set ID #
E47: Batch/development name
E48: Country
E49: Building type
E50: Note: Go to the appropriate batch tab to document individual project IDs and address information.
C53: Additional Resources
C54: - Resources & Tools section of the Homes Guide to Certification (http://www.usgbc.org/cert-guide/homes#tools)
C55: - Credit Library (http://www.usgbc.org/credits)
C56: - For changes made to this version of the Workbook, see the Form Updates section of the Addenda Database (http://www.usgbc.org/leed-interpretations?keys=5000065)
G59: V04
G60: Copyright © 2012
G61: U.S. Green Building Council | I61: UOM | J61: RS
G62: All Rights Reserved | I62: =IF(F12="SI units",2,1) -> 1 | J62: =IF(F15="LEED BD+C: Multifamily Midrise v4 - LEED v4",2,1) -> 1
G63: Updated 1/9/2017 | I63: IP = 1; SI = 2 | J63: H = 1; M = 2
I65: Nominal Pipe Size (in) | J65: no Circ Loop (ft) | K65: Circ Loop (ft) | L65: EA H pts | M65: EA M pts
I66: 0.25 | J66: 50 | K66: 16 | L66: 0 | M66: 0
I67: 0.3125 | J67: 50 | K67: 16 | L67: 1 | M67: 1
I68: 0.375 | J68: 50 | K68: 16 | L68: 2 | M68: 2
I69: 0.5 | J69: 43 | K69: 16 | L69: 3 | M69: 3
I70: 0.625 | J70: 32 | K70: 12 | L70: 4 | M70: 4
I71: 0.75 | J71: 21 | K71: 8 | L71: 5 | M71: 5
I72: 0.875 | J72: 16 | K72: 6 | L72: 6 | M72: 6
I73: 1 | J73: 13 | K73: 5 | L73: 7 | M73: 7
I74: 1.25 | J74: 8 | K74: 3 | L74: 8 | M74: 8
I75: 1.5 | J75: 6 | K75: 2 | L75: 9 | M75: 9
I76: 2 or larger | J76: 4 | K76: 1 | L76: 10 | M76: 10
I77: Nominal Pipe Size (mm) | J77: no Circ Loop (m) | K77: Circ Loop (m) | L77: 11 | M77: 11
I78: 6 | J78: 15 | K78: 5 | L78: 12 | M78: 12
I79: 8 | J79: 15 | K79: 5 | L79: 13 | M79: 13
I80: 9 | J80: 15 | K80: 5 | L80: 14 | M80: 14
I81: 13 | J81: 13 | K81: 5 | L81: 15 | M81: 15
I82: 16 | J82: 10 | K82: 4 | L82: 16 | M82: 16
I83: 19 | J83: 6 | K83: 2 | L83: 17 | M83: 17
I84: 22 | J84: 5 | K84: 2 | L84: 18 | M84: 18
I85: 25 | J85: 4 | K85: 2 | L85: 19 | M85: 19
I86: 32 | J86: 2 | K86: 1 | L86: 20 | M86: 20
I87: 38 | J87: 2 | K87: 1 | L87: 21 | M87: 21
I88: 50 or larger | J88: 1 | K88: 0.3 | L88: 22 | M88: 22
L89: 23 | M89: 23
I90: MR drop-down | L90: 24 | M90: 24
I91: At least 25% reclaimed | L91: 25 | M91: 25
I92: At least 25% postconsumer or 50% preconsumer recycled content | L92: 26 | M92: 26
I93: FSC Certified wood | L93: 27 | M93: 27
I94: Sustainable Agriculture Standard | L94: 28 | M94: 28
I95: Concrete with at least 30% fly ash/slag and 50% recycled content aggregate OR 90% recycled content aggregate | L95: 29 | M95: 29
I96: Extended producer responsibility | M96: 30
L97: MRc2 H pts | M97: MR M pts
L98: 0 | M98: 0
L99: 0.5 | M99: 0.5
L100: 1 | M100: 1
I101: % reduction | J101: pts | L101: 1.5 | M101: 1.5
I102: 0.01 | J102: 1 | L102: 2 | M102: 2
I103: 0.02 | J103: 2 | L103: 2.5 | M103: 2.5
I104: 0.03 | J104: 3 | L104: 3 | M104: 3
I105: 0.04 | J105: 4 | L105: 3.5 | M105: 3.5
I106: 0.05 | J106: 5 | L106: 4 | M106: 4
I107: 0.06 | J107: 6 | M107: 4.5
I108: 0.07 | J108: 7 | M108: 5
I109: 0.08 | J109: 8 | L109: EQc4 H pts | M109: EQ M pts
I110: 0.09 | J110: 9 | L110: 0 | M110: 0
I111: 0.1 | J111: 10 | L111: 1 | M111: 1
I112: 0.12 | J112: 11 | M112: 2
I113: 0.14 | J113: 12 | M113: 3
I114: 0.16 | J114: 13
I115: 0.18 | J115: 14
I116: 0.2 | J116: 15
I117: 0.22 | J117: 16
I118: 0.24 | J118: 17
I119: 0.26 | J119: 18
I120: 0.28 | J120: 19
I121: 0.3 | J121: 20
I122: 0.32 | J122: 21
I123: 0.34 | J123: 22
I124: 0.37 | J124: 23
I125: 0.4 | J125: 24
I126: 0.5 | J126: 25
I127: 0.6 | J127: 26
I128: 0.7 | J128: 27
I129: 0.8 | J129: 28
I130: 0.9 | J130: 29
I131: HERS | J131: pts
I132: 70 | J132: 5
I133: 69 | J133: 6
I134: 68 | J134: 7
I135: 67 | J135: 8
I136: 66 | J136: 9
I137: 65 | J137: 10
I138: 64 | J138: 11
I139: 63 | J139: 12
I140: 62 | J140: 13
I141: 60 | J141: 14
I142: 58 | J142: 15
I143: 56 | J143: 16
I144: 54 | J144: 17
I145: 52 | J145: 18
I146: 50 | J146: 19
I147: 45 | J147: 20
I148: 40 | J148: 21
I149: 35 | J149: 22
I150: 30 | J150: 23
I151: 25 | J151: 24
I152: 20 | J152: 25
I153: 15 | J153: 26
I154: 10 | J154: 27
I155: 5 | J155: 28
I156: 0 | J156: 29

Sheet Scorecard (Homes)
B2: LEED BD+C: Homes and Multifamily Lowrise v4 - LEED v4
B3: =CONCATENATE(IF(Type="Batch",Instructions!F47,Instructions!F36)," Scorecard") -> Grand Rapids Scorecard
B4: Note: The information on this tab is READ-ONLY. To edit this information, see the Credit Category tabs.
C6: Integrative Process | E6: Preliminary Y | F6: =IP!F3 -> 1 | G6: M | H6: =IP!H3 -> 0 | I6: Verified | J6: =IP!J3 -> 1
C8: IPc | D8: Integrative Process | F8: =IP!$F$7 -> 1 | H8: =IP!$H$7 -> 0 | J8: =IF(IP!$J$7=0,"",IP!$J$7) -> 1
C10: Location and Transportation | E10: Preliminary Y | F10: =LT!F3 -> 9 | G10: M | H10: =LT!H3 -> 0 | I10: Verified | J10: =LT!J3 -> 9
C12: LTp | D12: Floodplain Avoidance | F12: Required | J12: =IF(LT!$J$7="Y","Verified","Not Verified") -> Verified
C13: Performance Path
C14: LTc | D14: LEED for Neighborhood Development | F14: =LT!$F$20 -> 0 | H14: =LT!$H$20 -> 0 | J14: =IF(LT!$J$20=0,"",LT!$J$20) ->  | L14: =IF(AND(J14<>"",SUM(J16:J19)>0),"Warning: The project cannot receive points under the Performance Path if also receiving points under the Prescriptive Path.","") -> 
C15: Prescriptive Path
C16: LTc | D16: Site Selection | F16: =LT!$F$34 -> 8 | H16: =LT!$H$34 -> 0 | J16: =IF(LT!$J$34=0,"",LT!$J$34) -> 8
C17: LTc | D17: Compact Development | F17: =LT!$F$117 -> 1 | H17: =LT!$H$117 -> 0 | J17: =IF(LT!$J$117=0,"",LT!$J$117) -> 1
C18: LTc | D18: Community Resources | F18: =LT!$F$127 -> 0 | H18: =LT!$H$127 -> 0 | J18: =IF(LT!$J$127=0,"",LT!$J$127) -> 
C19: LTc | D19: Access to Transit | F19: =LT!$F$135 -> 0 | H19: =LT!$H$135 -> 0 | J19: =IF(LT!$J$135=0,"",LT!$J$135) -> 
C21: Sustainable Sites | E21: Preliminary Y | F21: =SS!F3 -> 1.5 | G21: M | H21: =SS!H3 -> 0 | I21: Verified | J21: =SS!J3 -> 1.5
C23: SSp | D23: Construction Activity Pollution Prevention | F23: Required | J23: =IF(SS!$J$7="Y","Verified","Not Verified") -> Verified
C24: SSp | D24: No Invasive Plants | F24: Required | J24: =IF(SS!$J$34="Y","Verified","Not Verified") -> Verified
C25: SSc | D25: Heat Island Reduction | F25: =SS!$F$41 -> 0 | H25: =SS!$H$41 -> 0 | J25: =IF(SS!$J$41=0,"",SS!$J$41) -> 
C26: SSc | D26: Rainwater Management | F26: =SS!$F$69 -> 0 | H26: =SS!$H$69 -> 0 | J26: =IF(SS!$J$69=0,"",SS!$J$69) -> 
C27: SSc | D27: Nontoxic Pest Control | F27: =SS!$F$95 -> 1.5 | H27: =SS!$H$95 -> 0 | J27: =IF(SS!$J$95=0,"",SS!$J$95) -> 1.5
C29: Water Efficiency | E29: Preliminary Y | F29: =WE!F3 -> 5 | G29: M | H29: =WE!H3 -> 0 | I29: Verified | J29: =WE!J3 -> 5
C31: WEp | D31: Water Metering | F31: Required | J31: =IF(WE!$J$7="Y","Verified","Not Verified") -> Verified
C32: Performance Path
C33: WEc | D33: Total Water Use | F33: =WE!$F$27 -> 0 | H33: =WE!$H$27 -> 0 | J33: =IF(WE!$J$27=0,"",WE!$J$27) ->  | L33: =IF(AND(J33<>"",SUM(J35:J36)>0),"Warning: The project cannot receive points under the Performance Path if also receiving points under the Prescriptive Path.","") -> 
C34: Prescriptive Path
C35: WEc | D35: Indoor Water Use | F35: =WE!$F$40 -> 5 | H35: =WE!$H$40 -> 0 | J35: =IF(WE!$J$40=0,"",WE!$J$40) -> 5
C36: WEc | D36: Outdoor Water Use | F36: =WE!$F$86 -> 0 | H36: =WE!$H$86 -> 0 | J36: =IF(WE!$J$86=0,"",WE!$J$86) -> 
C38: Energy and Atmosphere | E38: Preliminary Y | F38: =EA!F3 -> 30 | G38: M | H38: =EA!H3 -> 0 | I38: Verified | J38: =EA!J3 -> 30
C40: EAp | D40: Minimum Energy Performance | F40: Required | J40: =IF(EA!$J$7="Y","Verified","Not Verified") -> Verified
C41: EAp | D41: Energy Metering | F41: Required | J41: =IF(EA!$J$73="Y","Verified","Not Verified") -> Verified
C42: EAp | D42: Education of the Homeowner, Tenant or Building Manager | F42: Required | J42: =IF(EA!$J$91="Y","Verified","Not Verified") -> Verified
C43: Performance Path
C44: EAc | D44: Annual Energy Use | F44: =EA!$F$101 -> 28 | H44: =EA!$H$101 -> 0 | J44: =IF(EA!$J$101=0,"",EA!$J$101) -> 28 | L44: =IF(AND(J44<>"",SUM(J51:J61)>0),"Warning: The project cannot receive points under the Performance Path if also receiving points under the Prescriptive Path.","") -> 
C45: Performance and Prescriptive Paths
C46: EAc | D46: Efficient Hot Water Distribution System | F46: =EA!$F$137 -> 2 | H46: =EA!$H$137 -> 0 | J46: =IF(EA!$J$137=0,"",EA!$J$137) -> 2
C47: EAc | D47: Advanced Utility Tracking | F47: =EA!$F$203 -> 0 | H47: =EA!$H$203 -> 0 | J47: =IF(EA!$J$203=0,"",EA!$J$203) -> 
C48: EAc | D48: Active Solar-Ready Design | F48: =EA!$F$254 -> 0 | H48: =EA!$H$254 -> 0 | J48: =IF(EA!$J$254=0,"",EA!$J$254) -> 
C49: EAc | D49: HVAC Start-Up Credentialing | F49: =EA!$F$273 -> 0 | H49: =EA!$H$273 -> 0 | J49: =IF(EA!$J$273=0,"",EA!$J$273) -> 
C50: Prescriptive Path
C51: EAp | D51: Home Size | F51: =IF(EA!F286=0,"Required",EA!F286) -> Required | H51: =IF(F51="Required","",EA!H286) ->  | J51: =IF(EAp4V=0,"Not Verified",EAp4V) -> Not Verified
C52: EAc | D52: Building Orientation for Passive Solar | F52: =EA!$F$297 -> 0 | H52: =EA!$H$297 -> 0 | J52: =IF(EA!$J$297=0,"",EA!$J$297) -> 
C53: EAc | D53: Air Infiltration | F53: =EA!$F$310 -> 0 | H53: =EA!$H$310 -> 0 | J53: =IF(EA!$J$310=0,"",EA!$J$310) -> 
C54: EAc | D54: Envelope Insulation | F54: =EA!$F$334 -> 0 | H54: =EA!$H$334 -> 0 | J54: =IF(EA!$J$334=0,"",EA!$J$334) -> 
C55: EAc | D55: Windows | F55: =EA!$F$343 -> 0 | H55: =EA!$H$343 -> 0 | J55: =IF(EA!$J$343=0,"",EA!$J$343) -> 
C56: EAc | D56: Space Heating & Cooling Equipment | F56: =EA!$F$363 -> 0 | H56: =EA!$H$363 -> 0 | J56: =IF(EA!$J$363=0,"",EA!$J$363) -> 
C57: EAc | D57: Heating & Cooling Distribution Systems | F57: =EA!$F$387 -> 0 | H57: =EA!$H$387 -> 0 | J57: =IF(EA!$J$387=0,"",EA!$J$387) -> 
C58: EAc | D58: Efficient Domestic Hot Water Equipment | F58: =EA!$F$415 -> 0 | H58: =EA!$H$415 -> 0 | J58: =IF(EA!$J$415=0,"",EA!$J$415) -> 
C59: EAc | D59: Lighting | F59: =EA!$F$428 -> 0 | H59: =EA!$H$428 -> 0 | J59: =IF(EA!$J$428=0,"",EA!$J$428) -> 
C60: EAc | D60: High-Efficiency Appliances | F60: =EA!$F$466 -> 1 | H60: =EA!$H$466 -> 0 | J60: =IF(EA!$J$466=0,"",EA!$J$466) -> 
C61: EAc | D61: Renewable Energy | F61: =EA!$F$478 -> 0 | H61: =EA!$H$478 -> 0 | J61: =IF(EA!$J$478=0,"",EA!$J$478) -> 
C63: Materials and Resources | E63: Preliminary Y | F63: =MR!F3 -> 5 | G63: M | H63: =MR!H3 -> 0 | I63: Verified | J63: =MR!J3 -> 5
C65: MRp | D65: Certified Tropical Wood | F65: Required | J65: =IF(MR!$J$7="Y","Verified","Not Verified") -> Verified
C66: MRp | D66: Durability Management | F66: Required | J66: =IF(MR!$J$14="Y","Verified","Not Verified") -> Verified
C67: MRc | D67: Durability Management Verification | F67: =MR!$F$37 -> 1 | H67: =MR!$H$37 -> 0 | J67: =IF(MR!$J$37=0,"",MR!$J$37) -> 1
C68: MRc | D68: Environmentally Preferable Products | F68: =MR!$F$45 -> 4 | H68: =MR!$H$45 -> 0 | J68: =IF(MR!$J$45=0,"",MR!$J$45) -> 4
C69: MRc | D69: Construction Waste Management | F69: =MR!$F$96 -> 0 | H69: =MR!$H$96 -> 0 | J69: =IF(MR!$J$96=0,"",MR!$J$96) -> 
C70: MRc | D70: Material-Efficient Framing | F70: =MR!$F$109 -> 0 | H70: =MR!$H$109 -> 0 | J70: =IF(MR!$J$109=0,"",MR!$J$109) -> 
C72: Indoor Environmental Quality | E72: Preliminary Y | F72: =EQ!F3 -> 10.5 | G72: M | H72: =EQ!H3 -> 0 | I72: Verified | J72: =EQ!J3 -> 10.5
C74: EQp | D74: Ventilation | F74: Required | J74: =IF(EQ!$J$7="Y","Verified","Not Verified") -> Verified
C75: EQp | D75: Combustion Venting | F75: Required | J75: =IF(EQ!$J$59="Y","Verified","Not Verified") -> Verified
C76: EQp | D76: Garage Pollutant Protection | F76: Required | J76: =IF(EQ!$J$82="Y","Verified","Not Verified") -> Verified
C77: EQp | D77: Radon-Resistant Construction | F77: Required | J77: =IF(EQ!$J$102="Y","Verified","Not Verified") -> Verified
C78: EQp | D78: Air Filtering | F78: Required | J78: =IF(EQ!$J$138="Y","Verified","Not Verified") -> Verified
C79: EQp | D79: Environmental Tobacco Smoke | F79: Required | J79: =IF(EQ!$J$148="Y","Verified","Not Verified") -> Not Verified
C80: EQp | D80: Compartmentalization | F80: Required | J80: =IF(EQ!$J$161="Y","Verified","Not Verified") -> Not Verified
C81: EQc | D81: Enhanced Ventilation | F81: =EQ!$F$177 -> 3 | H81: =EQ!$H$177 -> 0 | J81: =IF(EQ!$J$177=0,"",EQ!$J$177) -> 3
C82: EQc | D82: Contaminant Control | F82: =EQ!$F$196 -> 1 | H82: =EQ!$H$196 -> 0 | J82: =IF(EQ!$J$196=0,"",EQ!$J$196) -> 1
C83: EQc | D83: Balancing of Heating and Cooling Distribution Systems | F83: =EQ!$F$237 -> 2 | H83: =EQ!$H$237 -> 0 | J83: =IF(EQ!$J$237=0,"",EQ!$J$237) -> 2
C84: EQc | D84: Enhanced Compartmentalization | F84: =EQ!$F$284 -> 0 | H84: =EQ!$H$284 -> 0 | J84: =IF(EQ!$J$284=0,"",EQ!$J$284) -> 
C85: EQc | D85: Combustion Venting | F85: =EQ!$F$291 -> 2 | H85: =EQ!$H$291 -> 0 | J85: =IF(EQ!$J$291=0,"",EQ!$J$291) -> 2
C86: EQc | D86: Enhanced Garage Pollutant Protection | F86: =EQ!$F$312 -> 2 | H86: =EQ!$H$312 -> 0 | J86: =IF(EQ!$J$312=0,"",EQ!$J$312) -> 2
C87: EQc | D87: Low-Emitting Products | F87: =EQ!$F$407 -> 0.5 | H87: =EQ!$H$407 -> 0 | J87: =IF(EQ!$J$407=0,"",EQ!$J$407) -> 0.5
C89: Innovation | E89: Preliminary Y | F89: =IN!F3 -> 2 | G89: M | H89: =IN!H3 -> 0 | I89: Verified | J89: =IN!J3 -> 2
C91: INp | D91: Preliminary Rating | F91: Required | J91: =IF(IN!$J$7="Y","Verified","Not Verified") -> Verified
C92: INc | D92: Innovation | F92: =IN!$F$14 -> 1 | H92: =IN!$H$14 -> 0 | J92: =IF(IN!$J$14=0,"",IN!$J$14) -> 1
C93: INc | D93: LEED Accredited Professional | F93: =IN!$F$53 -> 1 | H93: =IN!$H$53 -> 0 | J93: =IF(IN!$J$53=0,"",IN!$J$53) -> 1
C95: Regional Priority | E95: Preliminary Y | F95: =RP!F3 -> 3 | G95: M | H95: =RP!H3 -> 0 | I95: Verified | J95: =RP!J3 -> 3
C97: RPc | D97: Regional Priority | F97: =RP!$F$7 -> 3 | H97: =RP!$H$7 -> 0 | J97: =IF(RP!$J$7=0,"",RP!$J$7) -> 3
B99: Point Floors
B101: The project earned at least 8 points total in Location and Transportation and Energy and Atmosphere | J101: =IF(J10+J38>=8,"Yes","No") -> Yes
B103: The project earned at least 3 points in Water Efficiency | J103: =IF(J29>=3,"Yes","No") -> Yes
B105: The project earned at least 3 points in Indoor Environmental Quality | J105: =IF(J72>=3,"Yes","No") -> Yes
B107: Total | E107: Preliminary Y | F107: =SUM(F95,F89,F72,F63,F38,F29,F21,F10,F6) -> 67 | G107: M | H107: =SUM(H95,H89,H72,H63,H38,H29,H21,H10,H6) -> 0 | I107: Verified | J107: =SUM(J95,J89,J72,J63,J38,J29,J21,J10,J6) -> 67
B108: Certification Thresholds Certified: 40-49, Silver: 50-59, Gold: 60-79, Platinum: 80-110

Sheet Scorecard (Midrise) (hidden)
B2: LEED BD+C: Multifamily Midrise v4 - LEED v4
B3: =CONCATENATE(IF(Type="Batch",Instructions!F47,Instructions!F36)," Scorecard") -> Grand Rapids Scorecard
B4: Note: The information on this tab is READ-ONLY. To edit this information, see the Credit Category tabs.
C6: Integrative Process | E6: Preliminary Y | F6: =IP!F3 -> 1 | G6: M | H6: =IP!H3 -> 0 | I6: Verified | J6: =IP!J3 -> 1
C8: IPc | D8: Integrative Process | F8: =IP!$F$7 -> 1 | H8: =IP!$H$7 -> 0 | J8: =IF(IP!$J$7=0,"",IP!$J$7) -> 1
C10: Location and Transportation | E10: Preliminary Y | F10: =LT!F3 -> 9 | G10: M | H10: =LT!H3 -> 0 | I10: Verified | J10: =LT!J3 -> 9
C12: LTp | D12: Floodplain Avoidance | F12: Required | J12: =IF(LT!$J$7="Y","Verified","Not Verified") -> Verified
C13: Performance Path
C14: LTc | D14: LEED for Neighborhood Development | F14: =LT!$F$20 -> 0 | H14: =LT!$H$20 -> 0 | J14: =IF(LT!$J$20=0,"",LT!$J$20) ->  | L14: =IF(AND(J14<>"",SUM(J16:J19)>0),"Warning: The project cannot receive points under the Performance Path if also receiving points under the Prescriptive Path.","") -> 
C15: Prescriptive Path
C16: LTc | D16: Site Selection | F16: =LT!$F$34 -> 8 | H16: =LT!$H$34 -> 0 | J16: =IF(LT!$J$34=0,"",LT!$J$34) -> 8
C17: LTc | D17: Compact Development | F17: =LT!$F$117 -> 1 | H17: =LT!$H$117 -> 0 | J17: =IF(LT!$J$117=0,"",LT!$J$117) -> 1
C18: LTc | D18: Community Resources | F18: =LT!$F$127 -> 0 | H18: =LT!$H$127 -> 0 | J18: =IF(LT!$J$127=0,"",LT!$J$127) -> 
C19: LTc | D19: Access to Transit | F19: =LT!$F$135 -> 0 | H19: =LT!$H$135 -> 0 | J19: =IF(LT!$J$135=0,"",LT!$J$135) -> 
C21: Sustainable Sites | E21: Preliminary Y | F21: =SS!F3 -> 1.5 | G21: M | H21: =SS!H3 -> 0 | I21: Verified | J21: =SS!J3 -> 1.5
C23: SSp | D23: Construction Activity Pollution Prevention | F23: Required | J23: =IF(SS!$J$7="Y","Verified","Not Verified") -> Verified
C24: SSp | D24: No Invasive Plants | F24: Required | J24: =IF(SS!$J$34="Y","Verified","Not Verified") -> Verified
C25: SSc | D25: Heat Island Reduction | F25: =SS!$F$41 -> 0 | H25: =SS!$H$41 -> 0 | J25: =IF(SS!$J$41=0,"",SS!$J$41) -> 
C26: SSc | D26: Rainwater Management | F26: =SS!$F$69 -> 0 | H26: =SS!$H$69 -> 0 | J26: =IF(SS!$J$69=0,"",SS!$J$69) -> 
C27: SSc | D27: Nontoxic Pest Control | F27: =SS!$F$95 -> 1.5 | H27: =SS!$H$95 -> 0 | J27: =IF(SS!$J$95=0,"",SS!$J$95) -> 1.5
C29: Water Efficiency | E29: Preliminary Y | F29: =WE!F3 -> 5 | G29: M | H29: =WE!H3 -> 0 | I29: Verified | J29: =WE!J3 -> 5
C31: WEp | D31: Water Metering | F31: Required | J31: =IF(WE!$J$7="Y","Verified","Not Verified") -> Verified
C32: Performance Path
C33: WEc | D33: Total Water Use | F33: =WE!$F$27 -> 0 | H33: =WE!$H$27 -> 0 | J33: =IF(WE!$J$27=0,"",WE!$J$27) ->  | L33: =IF(AND(J33<>"",SUM(J35:J36)>0),"Warning: The project cannot receive points under the Performance Path if also receiving points under the Prescriptive Path.","") -> 
C34: Prescriptive Path
C35: WEc | D35: Indoor Water Use | F35: =WE!$F$40 -> 5 | H35: =WE!$H$40 -> 0 | J35: =IF(WE!$J$40=0,"",WE!$J$40) -> 5
C36: WEc | D36: Outdoor Water Use | F36: =WE!$F$86 -> 0 | H36: =WE!$H$86 -> 0 | J36: =IF(WE!$J$86=0,"",WE!$J$86) -> 
C38: Energy and Atmosphere | E38: Preliminary Y | F38: =EA!F3 -> 30 | G38: M | H38: =EA!H3 -> 0 | I38: Verified | J38: =EA!J3 -> 30
C40: EAp | D40: Minimum Energy Performance | F40: Required | J40: =IF(EA!$J$7="Y","Verified","Not Verified") -> Verified
C41: EAp | D41: Energy Metering | F41: Required | J41: =IF(EA!$J$73="Y","Verified","Not Verified") -> Verified
C42: EAp | D42: Education of the Homeowner, Tenant or Building Manager | F42: Required | J42: =IF(EA!$J$91="Y","Verified","Not Verified") -> Verified
C43: EAc | D43: Annual Energy Use | F43: =EAc1_M_Y -> 0 | H43: =EAc1_M_M -> 0 | J43: =IF(EAc1_M_V=0,"",EAc1_M_V) -> 
C44: EAc | D44: Efficient Hot Water Distribution System | F44: =EA!$F$137 -> 2 | H44: =EA!$H$137 -> 0 | J44: =IF(EA!$J$137=0,"",EA!$J$137) -> 2
C45: EAc | D45: Advanced Utility Tracking | F45: =EA!$F$203 -> 0 | H45: =EA!$H$203 -> 0 | J45: =IF(EA!$J$203=0,"",EA!$J$203) -> 
C47: Materials and Resources | E47: Preliminary Y | F47: =MR!F3 -> 5 | G47: M | H47: =MR!H3 -> 0 | I47: Verified | J47: =MR!J3 -> 5
C49: MRp | D49: Certified Tropical Wood | F49: Required | J49: =IF(MR!$J$7="Y","Verified","Not Verified") -> Verified
C50: MRp | D50: Durability Management | F50: Required | J50: =IF(MR!$J$14="Y","Verified","Not Verified") -> Verified
C51: MRc | D51: Durability Management Verification | F51: =MR!$F$37 -> 1 | H51: =MR!$H$37 -> 0 | J51: =IF(MR!$J$37=0,"",MR!$J$37) -> 1
C52: MRc | D52: Environmentally Preferable Products | F52: =MR!$F$45 -> 4 | H52: =MR!$H$45 -> 0 | J52: =IF(MR!$J$45=0,"",MR!$J$45) -> 4
C53: MRc | D53: Construction Waste Management | F53: =MR!$F$96 -> 0 | H53: =MR!$H$96 -> 0 | J53: =IF(MR!$J$96=0,"",MR!$J$96) -> 
C55: Indoor Environmental Quality | E55: Preliminary Y | F55: =EQ!F3 -> 10.5 | G55: M | H55: =EQ!H3 -> 0 | I55: Verified | J55: =EQ!J3 -> 10.5
C57: EQp | D57: Ventilation | F57: Required | J57: =IF(EQ!$J$7="Y","Verified","Not Verified") -> Verified
C58: EQp | D58: Combustion Venting | F58: Required | J58: =IF(EQ!$J$59="Y","Verified","Not Verified") -> Verified
C59: EQp | D59: Garage Pollutant Protection | F59: Required | J59: =IF(EQ!$J$82="Y","Verified","Not Verified") -> Verified
C60: EQp | D60: Radon-Resistant Construction | F60: Required | J60: =IF(EQ!$J$102="Y","Verified","Not Verified") -> Verified
C61: EQp | D61: Air Filtering | F61: Required | J61: =IF(EQ!$J$138="Y","Verified","Not Verified") -> Verified
C62: EQp | D62: Environmental Tobacco Smoke | F62: Required | J62: =IF(EQ!$J$148="Y","Verified","Not Verified") -> Not Verified
C63: EQp | D63: Compartmentalization | F63: Required | J63: =IF(EQ!$J$161="Y","Verified","Not Verified") -> Not Verified
C64: EQc | D64: Enhanced Ventilation | F64: =EQ!$F$177 -> 3 | H64: =EQ!$H$177 -> 0 | J64: =IF(EQ!$J$177=0,"",EQ!$J$177) -> 3
C65: EQc | D65: Contaminant Control | F65: =EQ!$F$196 -> 1 | H65: =EQ!$H$196 -> 0 | J65: =IF(EQ!$J$196=0,"",EQ!$J$196) -> 1
C66: EQc | D66: Balancing of Heating and Cooling Distribution Systems | F66: =EQ!$F$237 -> 2 | H66: =EQ!$H$237 -> 0 | J66: =IF(EQ!$J$237=0,"",EQ!$J$237) -> 2
C67: EQc | D67: Enhanced Compartmentalization | F67: =EQ!$F$284 -> 0 | H67: =EQ!$H$284 -> 0 | J67: =IF(EQ!$J$284=0,"",EQ!$J$284) -> 
C68: EQc | D68: Combustion Venting | F68: =EQ!$F$291 -> 2 | H68: =EQ!$H$291 -> 0 | J68: =IF(EQ!$J$291=0,"",EQ!$J$291) -> 2
C69: EQc | D69: Enhanced Garage Pollutant Protection | F69: =EQ!$F$312 -> 2 | H69: =EQ!$H$312 -> 0 | J69: =IF(EQ!$J$312=0,"",EQ!$J$312) -> 2
C70: EQc | D70: Low-Emitting Products | F70: =EQ!$F$407 -> 0.5 | H70: =EQ!$H$407 -> 0 | J70: =IF(EQ!$J$407=0,"",EQ!$J$407) -> 0.5
C71: EQc | D71: No Environmental Tobacco Smoke | F71: =EQ!$F$424 -> 0 | H71: =EQ!$H$424 -> 0 | J71: =IF(EQ!$J$424=0,"",EQ!$J$424) -> 
C73: Innovation | E73: Preliminary Y | F73: =IN!F3 -> 2 | G73: M | H73: =IN!H3 -> 0 | I73: Verified | J73: =IN!J3 -> 2
C75: INp | D75: Preliminary Rating | F75: Required | J75: =IF(IN!$J$7="Y","Verified","Not Verified") -> Verified
C76: INc | D76: Innovation | F76: =IN!$F$14 -> 1 | H76: =IN!$H$14 -> 0 | J76: =IF(IN!$J$14=0,"",IN!$J$14) -> 1
C77: INc | D77: LEED Accredited Professional | F77: =IN!$F$53 -> 1 | H77: =IN!$H$53 -> 0 | J77: =IF(IN!$J$53=0,"",IN!$J$53) -> 1
C79: Regional Priority | E79: Preliminary Y | F79: =RP!F3 -> 3 | G79: M | H79: =RP!H3 -> 0 | I79: Verified | J79: =RP!J3 -> 3
C81: RPc | D81: Regional Priority | F81: =RP!$F$7 -> 3 | H81: =RP!$H$7 -> 0 | J81: =IF(RP!$J$7=0,"",RP!$J$7) -> 3
B83: Point Floors
B85: The project earned at least 8 points total in Location and Transportation and Energy and Atmosphere | J85: =IF(J10+J38>=8,"Yes","No") -> Yes
B87: The project earned at least 3 points in Water Efficiency | J87: =IF(J29>=3,"Yes","No") -> Yes
B89: The project earned at least 3 points in Indoor Environmental Quality | J89: =IF(J55>=3,"Yes","No") -> Yes
B91: Total | E91: Preliminary Y | F91: =SUM(F79,F73,F55,F47,F38,F29,F21,F10,F6) -> 67 | G91: M | H91: =SUM(H79,H73,H55,H47,H38,H29,H21,H10,H6) -> 0 | I91: Verified | J91: =SUM(J79,J73,J55,J47,J38,J29,J21,J10,J6) -> 67
B92: Certification Thresholds Certified: 40-49, Silver: 50-59, Gold: 60-79, Platinum: 80-110

Sheet Batch - Single Family (hidden)
B2: Certification Submittal for Batches of Single Family Homes
B3: =CONCATENATE("Batch Registration Set ID #",Instructions!F46) -> Batch Registration Set ID #
B4: =CONCATENATE("Building type: ",Instructions!F49) -> Building type:
B7: The following is a list of homes to be submitted for certification as a batch. As per LEED for Homes guidelines, every home in this batch submittal will meet or exceed the performance requirements for every prerequisite and credit awarded on the project checklist.
B8: Total number of homes | G8: =COUNTA(C15:C21) -> 0
B9: Total EA points for Energy Performance path | G9: =IFERROR(SUMPRODUCT(F15:F20,I15:I20)/SUM(F15:F20),0) -> 0
B10: Total EA points for HERS + Homes Size Calculation path | G10: =IFERROR(SUMPRODUCT(F15:F20,Q15:Q20)/SUM(F15:F20),0) -> 0
B12: Note: The General Information section must be consistent with project details in LEED Online.
B13: General Information | F13: Annual Energy Benchmark: Referenced | G13: Energy Performance | J13: HERS + Homes Size Calculation
C14: Project ID | D14: Street Address or Lot Number | E14: Project City | G14: Annual Energy Benchmark: Designed | H14: Annual Energy Reduction (%) | I14: EA Points | J14: HERS Index | K14: EA Points | L14: =CONCATENATE("Total Conditioned Floor Area",IF(Instructions!$I$62=1," (sq ft)"," (sq m)")) -> Total Conditioned Floor Area (sq ft) | M14: Number of Bedrooms | N14: =CONCATENATE("ENERGY STAR Reference Home Floor Area ",IF(Instructions!$I$62=1," (sq ft)"," (sq m)")) -> ENERGY STAR Reference Home Floor Area (sq ft) | O14: Home Size Adjustment | P14: HSA Points | Q14: HERS Points plus HSA Points
A15: =IF(C15>0,0,0) -> 0 | B15: =B14+1 -> 1 | H15: =IFERROR(IF(ISBLANK(G15),0,1-G15/F15),0) -> 0 | I15: =IF(H15<0.01,0,VLOOKUP(H15,SF_pts,2,TRUE)) -> 0 | K15: =IF(OR(J15>70,ISBLANK(J15)),0,INDEX(Instructions!$J$132:$J$156,MATCH(J15,Instructions!$I$132:$I$156,-1))) -> 0 | N15: =IF(M15=0,"",IF(Instructions!$I$62=1,IF(M15>1,1000+((M15-1)*600),1000),IF(M15>1,(1000+((M15-1)*600))*0.0927,93))) ->  | O15: =IFERROR(IF(L15>N15,ROUNDDOWN(1-(L15/N15),0),1-(L15/N15)),0) -> 0 | P15: =IFERROR(ROUNDDOWN(((N15-L15)/N15*100)/4,0),0) -> 0 | Q15: =IF(AND(ISBLANK(L15),ISBLANK(M15)),0,ROUNDDOWN(P15+K15,0)) -> 0
A16: 0 | B16: 2 | H16: 0 | I16: 0 | K16: =IF(OR(J16>70,ISBLANK(J16)),0,INDEX(Instructions!$J$132:$J$156,MATCH(J16,Instructions!$I$132:$I$156,-1))) -> 0 | N16: =IF(M16=0,"",IF(Instructions!$I$62=1,IF(M16>1,1000+((M16-1)*600),1000),IF(M16>1,(1000+((M16-1)*600))*0.0927,93))) ->  | O16: 0 | P16: 0 | Q16: 0
A17: 0 | B17: 3 | H17: 0 | I17: 0 | K17: =IF(OR(J17>70,ISBLANK(J17)),0,INDEX(Instructions!$J$132:$J$156,MATCH(J17,Instructions!$I$132:$I$156,-1))) -> 0 | N17: =IF(M17=0,"",IF(Instructions!$I$62=1,IF(M17>1,1000+((M17-1)*600),1000),IF(M17>1,(1000+((M17-1)*600))*0.0927,93))) ->  | O17: 0 | P17: 0 | Q17: 0
A18: 0 | B18: 4 | H18: 0 | I18: 0 | K18: =IF(OR(J18>70,ISBLANK(J18)),0,INDEX(Instructions!$J$132:$J$156,MATCH(J18,Instructions!$I$132:$I$156,-1))) -> 0 | N18: =IF(M18=0,"",IF(Instructions!$I$62=1,IF(M18>1,1000+((M18-1)*600),1000),IF(M18>1,(1000+((M18-1)*600))*0.0927,93))) ->  | O18: 0 | P18: 0 | Q18: 0
A19: 0 | B19: 5 | H19: 0 | I19: 0 | K19: =IF(OR(J19>70,ISBLANK(J19)),0,INDEX(Instructions!$J$132:$J$156,MATCH(J19,Instructions!$I$132:$I$156,-1))) -> 0 | N19: =IF(M19=0,"",IF(Instructions!$I$62=1,IF(M19>1,1000+((M19-1)*600),1000),IF(M19>1,(1000+((M19-1)*600))*0.0927,93))) ->  | O19: 0 | P19: 0 | Q19: 0
A20: 0 | B20: 6 | H20: 0 | I20: 0 | K20: =IF(OR(J20>70,ISBLANK(J20)),0,INDEX(Instructions!$J$132:$J$156,MATCH(J20,Instructions!$I$132:$I$156,-1))) -> 0 | N20: =IF(M20=0,"",IF(Instructions!$I$62=1,IF(M20>1,1000+((M20-1)*600),1000),IF(M20>1,(1000+((M20-1)*600))*0.0927,93))) ->  | O20: 0 | P20: 0 | Q20: 0
E21: =IF(OR(COUNTIF(H15:H20,"<0"),COUNTIF(I15:I20,"<0"),COUNTIF(Q15:Q20,"<0")),"Each home must have positive points to use this scoring pathway. Please revise the highlighted values, or use the other scoring approach.","") -> 
A23: A

Sheet Batch - Multifamily (hidden)
B2: Certification Submittal for Batches of Multifamily Buildings
B3: =CONCATENATE("Batch Registration Set ID #",Instructions!F46) -> Batch Registration Set ID #
B4: =CONCATENATE("Building type: ",Instructions!F49) -> Building type:
B7: The following is a list of homes to be submitted for certification as a batch. As per LEED for Homes guidelines, every building in this batch submittal will meet or exceed the performance requirements for every prerequisite and credit awarded on the project checklist.
B8: Total number of buildings | G8: =COUNTA(C15:C22) -> 0
B9: Total number of units | G9: =SUM(F15:F22) -> 0
B10: =CONCATENATE("Total conditioned floor area",IF(Instructions!$I$62=1," (sq ft)"," (sq m)")) -> Total conditioned floor area (sq ft) | G10: =SUM(G15:G22) -> 0
B12: Note: The General Information section must be consistent with project details in LEED Online.
B13: General Information | I13: Home Size Adjustment | J13: Energy Performance | L13: EA Credit Annual Energy Use
C14: Project ID | D14: Street Address or Lot Number | E14: Project City | F14: Total Number of Units | G14: =CONCATENATE("Total Conditioned Floor Area",IF(Instructions!$I$62=1," (sq ft)"," (sq m)")) -> Total Conditioned Floor Area (sq ft) | H14: Total Number of Bedrooms | I14: =IF(RatingSystem=1,"Home Size Adjustment (if applicable)","Home Size Adjustment") -> Home Size Adjustment (if applicable) | J14: =IF(RatingSystem=1,"HERS or % Improvement over LEED Reference Home","% Energy Cost Savings") -> HERS or % Improvement over LEED Reference Home | K14: EA Points | L14: Total Score (EA points + HSA points)
A15: =IF(C15>0,0,0) -> 0 | B15: =B14+1 -> 1 | L15: =SUM(I15+K15) -> 0
A16: 0 | B16: 2 | L16: 0
A17: 0 | B17: 3 | L17: 0
A18: 0 | B18: 4 | L18: 0
A19: 0 | B19: 5 | L19: 0
A20: 0 | B20: 6 | L20: 0
A21: A
A23: A

Sheet Multifamily HSA
B2: Multifamily Home Size Adjuster
B5: This approach can be used to determine an overall home size adjuster for multifamily buildings, but it cannot be used to determine an overall home size adjuster for a complex with multiple multifamily buildings. If a project includes multiple multifamily buildings, each building must have its own home size adjustment. This weighted approach cannot be used for multiple single family homes. Complete the table for each building in the project. Input the number of units and the average square footage for units with the corresponding bedroom number. For example, if the building has three 2-bedroom units that are 1300 sq ft, 1400 sq ft, and 1500 sq ft, insert "3" in cell G9 and "1400" in cell H9. Please leave zeroes or blanks where appropriate.
B7: Building ID | C7: 0 Bedrooms | E7: 1 Bedroom | G7: 2 Bedrooms | I7: 3 Bedrooms | K7: 4 Bedrooms | M7: 5 Bedrooms | O7: 6 Bedrooms
C8: Number of Units | D8: =CONCATENATE("Average Floor Area ",IF(Instructions!$I$62=1," (sq ft)"," (sq m)")) -> Average Floor Area (sq ft) | E8: Number of Units | F8: =CONCATENATE("Average Floor Area ",IF(Instructions!$I$62=1," (sq ft)"," (sq m)")) -> Average Floor Area (sq ft) | G8: Number of Units | H8: =CONCATENATE("Average Floor Area ",IF(Instructions!$I$62=1," (sq ft)"," (sq m)")) -> Average Floor Area (sq ft) | I8: Number of Units | J8: =CONCATENATE("Average Floor Area ",IF(Instructions!$I$62=1," (sq ft)"," (sq m)")) -> Average Floor Area (sq ft) | K8: Number of Units | L8: =CONCATENATE("Average Floor Area ",IF(Instructions!$I$62=1," (sq ft)"," (sq m)")) -> Average Floor Area (sq ft) | M8: Number of Units | N8: =CONCATENATE("Average Floor Area ",IF(Instructions!$I$62=1," (sq ft)"," (sq m)")) -> Average Floor Area (sq ft) | O8: Number of Units | P8: =CONCATENATE("Average Floor Area ",IF(Instructions!$I$62=1," (sq ft)"," (sq m)")) -> Average Floor Area (sq ft)
B10: Home size adjustment | C10: =IF(D9>0,IF(Instructions!$I$62=1,1-(D9/1000),1-(D9/93)),0) -> 0 | E10: =IF(F9>0,IF(Instructions!$I$62=1,1-(F9/1000),1-(F9/93)),0) -> 0 | G10: =IF(H9>0,IF(Instructions!$I$62=1,1-(H9/1600),1-(H9/148)),0) -> 0 | I10: =IF(J9>0,IF(Instructions!$I$62=1,1-(J9/2200),1-(J9/204)),0) -> 0 | K10: =IF(L9>0,IF(Instructions!$I$62=1,1-(L9/2800),1-(L9/260)),0) -> 0 | M10: =IF(N9>0,IF(Instructions!$I$62=1,1-(N9/3400),1-(N9/315)),0) -> 0 | O10: =IF(P9>0,IF(Instructions!$I$62=1,1-(P9/4000),1-(P9/427)),0) -> 0
B11: Point adjustment | C11: =C10/0.04 -> 0 | E11: =E10/0.04 -> 0 | G11: =G10/0.04 -> 0 | I11: =I10/0.04 -> 0 | K11: =K10/0.04 -> 0 | M11: =M10/0.04 -> 0 | O11: =O10/0.04 -> 0
B12: Total number of units | P12: =SUM(M9,K9,I9,G9,E9,C9, O9) -> 0
B13: Average adjustment | P13: =IF(P12=0,0.0001,(C11*C9+E11*E9+G11*G9+I11*I9+K11*K9+M11*M9+O11*O9)/P12) -> 0.0001
B14: Average home size point adjustment | P14: =ROUNDDOWN(P13,0)+IF(P13-ROUNDDOWN(P13,0)>=0.75,1,IF(P13-ROUNDDOWN(P13,0)>=0.25,0.5,IF(P13-ROUNDDOWN(P13,0)>=-0.25,0,IF(P13-ROUNDDOWN(P13,0)>=-0.75,-0.5,-1)))) -> 0

Sheet IP
B1: Integrative Process | L1: Notes | M1: Verified (initials) | N1: Date Verified | O1: Verification Details | P1: Verification Measure | Q1: QAD Verification Notes
E3: Preliminary Y | F3: =F7 -> 1 | G3: Maybe | H3: =H7 -> 0 | I3: Verified | J3: =J7 -> 1
A5: IPc1 | B5: =IF(RatingSystem=1,HYPERLINK("http://www.usgbc.org/node/2612166",L5),HYPERLINK("http://www.usgbc.org/node/2612166",L5)) -> IP Credit Integrative Process | K5: HM | L5: IP Credit Integrative Process
K6: HM
B7: Up to 2 points | E7: Preliminary Y | F7: =IF(SUM(F11,F33,F42)>2,2,SUM(F11,F33,F42)) -> 1 | G7: M | H7: =IF(SUM(H11,H33,H42)>2,2,SUM(H11,H33,H42)) -> 0 | I7: Verified | J7: =IF(SUM(J11,J33,J42)>2,2,SUM(J11,J33,J42)) -> 1 | K7: HM | M7: Responsible Party
B8: Exemplary Performance: Achieve all three options | K8: HM
K9: HM
K10: HM
C11: Option 1. Integrative Project Team (1 point) | E11: Y | F11: 1 | G11: M | H11: 0 | I11: V | J11: 1 | K11: HM | L11: =C11 -> Option 1. Integrative Project Team (1 point)
K12: HM
K13: HM
C14: True | D14: Team members, in addition to the builder and verification team, include capabilities in at least three of the following skill sets: architecture or residential building design; mechanical or energy engineering; building science or performance testing; green building or sustainable design; and civil engineering, landscape architecture, habitat restoration, or land-use planning. | K14: HM | L14: Held at Wellhouse and Catalyst Partners | M14: JML | N14: 2017-04-05 | P14: Verify listed people are members of project team.
K15: HM
K16: HM
K17: HM
K18: HM
K19: HM
K20: HM
C21: True | D21: All team members referenced above were involved in at least three of the following phases of the design and construction process: conceptual or schematic design; LEED planning; preliminary design; energy and envelope systems analysis or design; design development; final design, working drawings or specifications; and construction. | K21: HM | M21: JML | N21: 2017-04-05 | P21: Verify meeting dates are for at least three phases of design and construction process.
K22: HM
K23: HM
K24: HM
K25: HM
K26: HM
K27: HM
K28: HM
C29: True | D29: Meetings were conducted with the project team at least monthly to review project status, introduce new team members to project goals, discuss problems, formulate solutions, review responsibilities, and identify next steps. | K29: HM
K30: HM
K31: HM
C32: AND/OR | K32: HM
C33: Option 2. Design Charrette (1 point) | E33: Y | F33: 0 | G33: M | I33: V | J33: 0 | K33: HM | L33: =C33 -> Option 2. Design Charrette (1 point)
K34: HM
K35: HM
C36: (Select one) | D36: A full-day workshop (or two half-day workshops) was conducted with the project team, as defined in Option 1, no later than the design development phase. | K36: HM | P36: Participate in design charrette or verify charrette date, location, participants, and duration.
K37: HM
D38: Date(s) | K38: HM
D39: Duration | K39: HM
K40: HM
C41: AND/OR | K41: HM
C42: Option 3. Trades Training (1 point) | E42: Y | F42: 0 | G42: M | H42: 0 | I42: V | K42: HM | L42: =C42 -> Option 3. Trades Training (1 point)
K43: HM
K44: HM
C45: (Select one) | D45: At least eight hours of training on the green aspects of the project and how the trades can contribute to achieving each LEED for Homes prerequisite and attempted credit was conducted before construction but after trades have been hired for the project. | K45: HM | P45: Conduct trades training or verify training date, location, participants, and duration.
K46: HM
D47: Date(s) | K47: HM
D48: Duration | K48: HM
D49: Trainer | K49: HM

Sheet LT
B1: Location and Transportation | L1: Notes | M1: Verified (initials) | N1: Date Verified | O1: Verification Details | P1: Verification Measure | Q1: QAD Verification Notes
E3: Preliminary Y | F3: =IF(LT!$F$20=15,15,SUM(F34,F117,F127,F135)) -> 9 | G3: Maybe | H3: =IF(H20=15,15,SUM(H20,H34,H117,H127,H135)) -> 0 | I3: Verified | J3: =IF(J20=15,15,SUM(J20,J34,J117,J127,J135)) -> 9
A5: LTp1 | B5: =IF(RatingSystem=1,HYPERLINK("http://www.usgbc.org/node/2612234",L5),HYPERLINK("http://www.usgbc.org/node/2612234",L5)) -> LT Prerequisite Floodplain Avoidance | K5: HM | L5: LT Prerequisite Floodplain Avoidance
K6: HM
B7: Required | F7: Required | I7: Verified | J7: Y | K7: HM | M7: Responsible Party
K8: HM
K9: HM
C10: Select one of the following: | K10: HM
C11: True | D11: The project is not built on land within a flood hazard area. | K11: HM | L11: Urban Infill site, flood zone x | M11: JML | N11: 2017-07-26 | P11: Verify that floodplain map is for actual location of building and the building is above floodplain.
K12: HM
C13: False | D13: The project is built on land within a flood hazard area and in accordance with flood provisions. | K13: HM | P13: Verify that building meets local flood provisions.
K14: HM
C15: False | D15: The project is built on land within a flood hazard area and is a previously developed building and hardscape. | K15: HM | P15: Verify that building was previously developed.
K16: HM
B17: Performance Path | K17: HM | L17: Performance Path
A18: LTc1 | B18: =IF(RatingSystem=1,HYPERLINK("http://www.usgbc.org/node/2612240",L18),HYPERLINK("http://www.usgbc.org/node/2612240",L18)) -> LT Credit LEED for Neighborhood Development | K18: HM | L18: LT Credit LEED for Neighborhood Development
K19: HM
B20: 15 points | E20: Preliminary Y | F20: 0 | G20: M | H20: 0 | I20: Verified | J20: 0 | K20: HM | M20: Responsible Party
K21: HM
K22: HM
E23: Name of LEED for Neighborhood Development project | K23: HM | P23: Verify that the project is located within the certified LEED ND project boundary.
K24: HM
E25: LEED ND project ID number | K25: HM
K26: HM
E27: Rating system and version | K27: HM
K28: HM
E29: LEED ND certification date | K29: HM
K30: HM
B31: Prescriptive Path | K31: HM | L31: Prescriptive Path
A32: LTc2 | B32: =IF(RatingSystem=1,HYPERLINK("http://www.usgbc.org/node/2612002",L32),HYPERLINK("http://www.usgbc.org/node/2612002",L32)) -> LT Credit Site Selection | K32: HM | L32: LT Credit Site Selection
K33: HM
B34: Up to 8 points | E34: Preliminary Y | F34: =IF(SUM(F38,F69,F78,F86,F92)>8,8,SUM(F38,F69,F78,F86,F92)) -> 8 | G34: M | H34: =IF(SUM(H38,H69,H78,H86,H92)>8,8,SUM(H38,H69,H78,H86,H92)) -> 0 | I34: Verified | J34: =IF(SUM(J38,J69,J78,J86,J92)>8,8,SUM(J38,J69,J78,J86,J92)) -> 8 | K34: HM | M34: Responsible Party
B35: Exemplary Performance: Earn the maximum 8 points | K35: HM
K36: HM
K37: HM
C38: Option 1. Sensitive Land Protection (3-4 points) | E38: Y | F38: =IF(F41>0,F41,F49) -> 4 | G38: M | H38: =IF(H41>0,H41,H49) -> 0 | I38: V | J38: =IF(J41>0,J41,J49) -> 4 | K38: HM | L38: =C38 -> Option 1. Sensitive Land Protection (3-4 points)
K39: HM
K40: HM
C41: Path 1. Previously Developed (4 points) | E41: Y | F41: 4 | G41: M | I41: V | J41: 4 | K41: HM | L41: =C41 -> Path 1. Previously Developed (4 points)
K42: HM
K43: HM
C44: 0.11 | D44: =CONCATENATE("Total buildable land area",IF(Instructions!$I$62=1," (acre or sq ft)"," (hectare or sq m)")) -> Total buildable land area (acre or sq ft) | K44: HM | L44: Gut Rehab of existing Home | M44: JML | N44: 2017-07-26 | P44: Verify historical documents, maps, or comparable evidence of previous development; OR conduct on-site verification of existing infrastructure (e.g. foundation footings).
C45: 0.11 | D45: =CONCATENATE("Previously developed buildable land area",IF(Instructions!$I$62=1," (acre or sq ft)"," (hectare or sq m)")) -> Previously developed buildable land area (acre or sq ft) | K45: HM
C46: =IFERROR(C44/C45,0) -> 1 | D46: Percentage of lot previously developed (%) | K46: HM
K47: HM
C48: OR | K48: HM
C49: Path 2. Avoidance of Sensitive Land (3 points) | E49: Y | G49: M | I49: V | K49: HM | L49: =C49 -> Path 2. Avoidance of Sensitive Land (3 points)
K50: HM
K51: HM
C52: All new buildings, hardscapes, roads, or parking areas of the project are located on land that meets the following criteria: | K52: HM
C53: (Select one) | D53: Does not consist of prime farmland, unique farmland, or farmland of statewide of local importance. | K53: HM | P53: Verify that soil data map or supporting documentation that demonstrates development is not on qualifying farmland is for actual location of development.
K54: HM
C55: (Select one) | D55: Was not public parkland prior to acquisition. | K55: HM | P55: Visually verify that development is not next to parkland or verify documentation the developed land was not parkland or, if parkland, was traded for land to public landowner.
K56: HM
C57: (Select one) | D57: Is not in a flood hazard area shown on a legally adopted flood hazard map or otherwise legally designated by the local jurisdiction or state. | K57: HM | P57: Verify that floodplain map is for actual location of building and that building is above floodplain.
K58: HM
C59: (Select one) | D59: Is not on land specifically identified as habitat for species listed in the U.S. Endangered Species Act; the state's endangered species act; NatureServe GH, G1, or G2 lists; or those listed under local equivalent standards (for projects outside the U.S.) that are not covered by NatureServe data. | K59: HM | P59: Verify that documentation demonstrating project is not on land identified as habitat is for actual location of building.
K60: HM
K61: HM
K62: HM
C63: (Select one) | D63: Is not on land within 50 ft (15 m) of wetlands or within the setback distance from wetlands prescribed by local, state or national regulations, whichever is more stringent. | K63: HM | P63: Visually verify that development is not within 100 ft (30 m) of water bodies.
K64: HM
K65: HM
C66: (Select one) | D66: Is not on land within 100 ft (30 m) of water bodies, including seas, lakes, rivers, streams and tributaries. | K66: HM | P66: Visually verify that development is not within 50 ft (15 m) of wetlands (or complies with local regulations, if more stringent).
K67: HM
C68: AND/OR | K68: HM
C69: Option 2. Infill Development (2 points) | E69: Y | F69: 2 | G69: M | I69: V | J69: 2 | K69: HM | L69: =C69 -> Option 2. Infill Development (2 points)
K70: HM
K71: HM
C72: 1 | D72: Percent of land within a 1/2 mile (800 meters) from the project boundary that is previously developed | K72: HM | L72: Urban infill lot, site verified | M72: JML | N72: 2017-07-26 | P72: Verify map and calculations that development within 1/2 mile (800 meters) of project boundary is previously developed.
K73: HM
C74: For projects within city limits or towns with populations less than 20,000 | K74: HM | L74: =C74 -> For projects within city limits or towns with populations less than 20,000
D75: Percent of land adjacent to the project boundary that is previously developed | K75: HM | P75: Verify on-site that at least 75% of lot borders previously developed land.
K76: HM
C77: AND/OR | K77: HM
C78: Option 3. Open Space (1 point) | E78: Y | F78: 1 | G78: M | I78: V | J78: 1 | K78: HM | L78: =C78 -> Option 3. Open Space (1 point)
K79: HM
K80: HM
C81: Select one of the following: | K81: HM
C82: Yes | D82: Built within 1/2 mile (800 meters) of open space that is at least 3/4 acres (0.3 hectares) | K82: HM | L82: Alexander Park | M82: JML | N82: 2017-07-26 | P82: Conduct on-site certification or verify maps and calculations of publicly accessible open space of at least 3/4 acre (0.3 hectares) within 1/2 mile (800 meters) of home.
C83: No | D83: Create publically available open space on the project site | K83: HM
K84: HM
C85: AND/OR | K85: HM
C86: Option 4. Street Network (1 point) | E86: Y | F86: 1 | G86: M | I86: V | J86: 1 | K86: HM | L86: =C86 -> Option 4. Street Network (1 point)
K87: HM
K88: HM
C89: 20 | D89: =CONCATENATE("Qualifying intersection density (intersections per",IF(Instructions!$I$62=1," square mile)"," square kilometer)")) -> Qualifying intersection density (intersections per square mile) | K89: HM | L89: site is < 2 acres | M89: JML | N89: 2017-07-26 | P89: Verify that documentation (Walkscore report or map with intersections) is for actual location of development and that required intersection density has been met.
K90: HM
C91: AND/OR | K91: HM
C92: Option 5. Bicycle Network and Storage (1 point) | E92: Y | G92: M | I92: V | K92: HM | L92: =C92 -> Option 5. Bicycle Network and Storage (1 point)
K93: HM
K94: HM
C95: Bicycle Network | K95: HM | L95: =C95 -> Bicycle Network
C96: Select one of the following. The project has a functional entry and/or bicycle storage within 200 yd (180 m) of a bicycle network that connects to: | K96: HM
C97: (Select one) | D97: At least 10 uses | K97: HM | P97: Verify documentation that qualifying resources are on bicycle network.
C98: (Select one) | D98: A school or employment center | K98: HM
C99: (Select one) | D99: A bus rapid transit stops, rail stations, and/or ferry terminals | K99: HM
K100: HM
C101: Bicycle Storage for Multifamily Buildings | K101: HM | L101: =C101 -> Bicycle Storage for Multifamily Buildings
D102: Number of building occupants | K102: HM | P102: Verify that adequate bicycle storage is installed on site.
K103: HM
D104: Number of residential units | K104: HM
K105: HM
D106: Number of short-term spaces provided | K106: HM
C107: =ROUNDUP(IF(C102*0.025<4,4,C102*0.025),0) -> 4 | D107: Number of short-term spaces required | K107: HM
K108: HM
D109: Number of long-term spaces provided | K109: HM
C110: =ROUNDUP(IF(C102*0.3<C104,C104,C102*0.3),0) -> 0 | D110: Number of long-term spaces required | K110: HM
K111: HM
C112: Bicycle Storage for Single Family Homes | K112: HM | L112: =C112 -> Bicycle Storage for Single Family Homes
C113: (Select one) | D113: The project is a single family home with garage. | K113: HM | P113: Verify that adequate bicycle storage is installed on site.
K114: HM
A115: LTc3 | B115: =IF(RatingSystem=1,HYPERLINK("http://www.usgbc.org/node/2612246",L115),HYPERLINK("http://www.usgbc.org/node/2612246",L115)) -> LT Credit Compact Development | K115: HM | L115: LT Credit Compact Development
K116: HM
B117: Up to 3 points | E117: Preliminary Y | F117: 1 | G117: M | H117: 0 | I117: Verified | J117: 1 | K117: HM | M117: Responsible Party
B118: Exemplary Performance: 35 DU/acre (86.5 DU/hectare) | K118: HM
K119: HM
K120: HM
C121: 0.11 | D121: =CONCATENATE("Buildable land area",IF(Instructions!$I$62=1," (acre)"," (hectare)")) -> Buildable land area (acre) | K121: HM | L121: See site plan | M121: JML | N121: 2017-07-26 | P121: Verify calculations of average housing density.
C122: 1 | D122: Number of dwelling units | K122: HM
C123: =IFERROR(C122/C121,0) -> 9.090909091 | D123: =CONCATENATE(IF(Instructions!$I$62=1,"DU/acre","DU/hectare")," of buildable land") -> DU/acre of buildable land | K123: HM
K124: HM
A125: LTc4 | B125: =IF(RatingSystem=1,HYPERLINK("http://www.usgbc.org/node/2612251",L125),HYPERLINK("http://www.usgbc.org/node/2612251",L125)) -> LT Credit Community Resources | K125: HM | L125: LT Credit Community Resources
K126: HM
B127: Up to 2 points | E127: Preliminary Y | F127: 0 | G127: M | H127: 0 | I127: Verified | J127: 0 | K127: HM | M127: Responsible Party
B128: Exemplary Performance: 16 uses for 1/2 point, 20 uses for 1 point. | K128: HM
K129: HM
K130: HM
D131: Number of community resources within a 1/2 mile (800 meters) walking distance | K131: HM | P131: Verify that community resources qualify and are within walking distance.
K132: HM
A133: LTc5 | B133: =IF(RatingSystem=1,HYPERLINK("http://www.usgbc.org/node/2612256",L133),HYPERLINK("http://www.usgbc.org/node/2612256",L133)) -> LT Credit Access to Transit | K133: HM | L133: LT Credit Access to Transit
K134: HM
B135: Up to 2 points | E135: Preliminary Y | F135: 0 | G135: M | H135: 0 | I135: Verified | J135: 0 | K135: HM | M135: Responsible Party
B136: Exemplary Performance: For multiple transit types, 420 weekday trips and 432 weekend trips; For commuter rail or ferry, 120 weekday trips. | K136: HM
K137: HM
K138: HM
C139: For projects with multiple transit types | K139: HM | L139: =C139 -> For projects with multiple transit types
D140: Number of weekday trips | K140: HM | P140: Verify transit schedules, transit stop locations, and calculations of transit rides within 1/4 mile (400 meter) or 1/2 mile (800 meter) of building.
D141: Number weekend day trips | K141: HM
K142: HM
C143: For projects with commuter rail or ferry service only | K143: HM | L143: =C143 -> For projects with commuter rail or ferry service only
D144: Number of weekday trips | K144: HM | P144: Verify transit schedules, transit stop locations, and calculations of transit rides within 1/4 mile (400 meter) or 1/2 mile (800 meter) of building.

Sheet SS
B1: Sustainable Sites | L1: Notes | M1: Verified (initials) | N1: Date Verified | O1: Verification Details | P1: Verification Measure | Q1: QAD Verification Notes
E3: Preliminary Y | F3: =SUM(F41,F69,F95) -> 1.5 | G3: Maybe | H3: =SUM(H41,H69,H95) -> 0 | I3: Verified | J3: =SUM(J41,J69,J95) -> 1.5
A5: SSp1 | B5: =IF(RatingSystem=1,HYPERLINK("http://www.usgbc.org/node/2612260",L5),HYPERLINK("http://www.usgbc.org/node/2612260",L5)) -> SS Prerequisite Construction Activity Pollution Prevention | K5: HM | L5: SS Prerequisite Construction Activity Pollution Prevention
K6: HM
B7: Required | F7: Required | I7: Verified | J7: Y | K7: HM | M7: Responsible Party
K8: HM
K9: HM
C10: Confirm all of the following measures were implemented on the project, as applicable: | K10: HM
C11: True | D11: Stockpiled and protected disturbed topsoil from erosion. | K11: HM | L11: Minimal Site disruption, rehab. | M11: JML | N11: 2017-06-01 | P11: Conduct on-site verification that applicable erosion and pollution control measure is installed.
K12: HM
C13: N/A | D13: Controlled the path and velocity of runoff with silt fencing or comparable measures. | K13: HM
K14: HM
C15: True | D15: Protected on-site storm sewer inlets, streams, and lakes with straw bales, silt fencing, silt sacks, rock filters, or comparable measures. | K15: HM | M15: JML | N15: 2017-06-01
K16: HM
C17: N/A | D17: Provided swales to divert surface water from hillsides. | K17: HM
K18: HM
C19: N/A | D19: Used tiers, erosion blankets, compost blankets, filter socks, berms, or comparable measures to stabilize soils in any area with a slope of 15% (6.6:1) or more that was disturbed during construction. | K19: HM
K20: HM
K21: HM
C22: N/A | D22: Prevented air pollution from dust and particulate matter. | K22: HM
K23: HM
C24: For construction sites larger than 1 acre | K24: HM | L24: =C24 -> For construction sites larger than 1 acre
C25: Select one of the following: | K25: HM
C26: (Select one) | D26: The project team created an implemented an Erosion and Sedimentation Control (ESC) plan that conforms to the requirements of the 2012 U.S. Environmental Protection Agency Construction General Permit (CGP). | K26: HM | P26: Conduct on-site verification that applicable erosion and pollution control measure is installed.
K27: HM
K28: HM
C29: (Select one) | D29: The project team created an implemented an Erosion and Sedimentation Control (ESC) plan that conforms to local standards and codes, which are as or more stringent than the 2012 EPA Construction General Permit (CGP). | K29: HM | P29: Conduct on-site verification that applicable erosion and pollution control measure is installed.
K30: HM
K31: HM
A32: SSp2 | B32: =IF(RatingSystem=1,HYPERLINK("http://www.usgbc.org/node/2612265",L32),HYPERLINK("http://www.usgbc.org/node/2612265",L32)) -> SS Prerequisite No Invasive Plants | K32: HM | L32: SS Prerequisite No Invasive Plants
K33: HM
B34: Required | F34: Required | I34: Verified | J34: Y | K34: HM | M34: Responsible Party
K35: HM
K36: HM
C37: True | D37: No invasive plant species have been introduced into the landscape. | K37: HM | L37: Site Verified | M37: JML | N37: 2017-11-04 | P37: Compare list of installed plants with list of local invasive plants from third-party entity and conduct on-site verification that listed plants are installed on site.
K38: HM
A39: SSc1 | B39: =IF(RatingSystem=1,HYPERLINK("http://www.usgbc.org/node/2612275",L39),HYPERLINK("http://www.usgbc.org/node/2612275",L39)) -> SS Credit Heat Island Reduction | K39: HM | L39: SS Credit Heat Island Reduction
K40: HM
B41: Up to 2 points | E41: Preliminary Y | F41: =IF(SUM(F44,F50)>2,2,SUM(F44,F50)) -> 0 | G41: M | H41: =IF(SUM(H44,H50)>2,2,SUM(H44,H50)) -> 0 | I41: Verified | J41: =IF(SUM(J44,J50)>2,2,SUM(J44,J50)) -> 0 | K41: HM | M41: Responsible Party
K42: HM
K43: HM
C44: Option 1. Shading (1-2 points) | E44: Y | G44: M | I44: V | K44: HM | L44: =C44 -> Option 1. Shading (1-2 points)
K45: HM
K46: HM
D47: =CONCATENATE("Area of hardscape shaded by plant canopy within 10 years of planting",IF(Instructions!$I$62=1," (sq ft)"," (sq m)")) -> Area of hardscape shaded by plant canopy within 10 years of planting (sq ft) | K47: HM | P47: Verify calculations or estimates related to shaded and/or nonabsorptive areas and conduct on-site verification of shade trees or other plantings and nonabsorptive products.
K48: HM
C49: AND/OR | K49: HM
C50: Option 2. Nonabsorptive Materials (1-2 points) | E50: Y | G50: M | I50: V | K50: HM | L50: =C50 -> Option 2. Nonabsorptive Materials (1-2 points)
K51: HM
K52: HM
D53: =CONCATENATE("Area of ENERGY STAR qualified roof products",IF(Instructions!$I$62=1," (sq ft)"," (sq m)")) -> Area of ENERGY STAR qualified roof products (sq ft) | K53: HM | P53: Verify calculations or estimates related to shaded and/or nonabsorptive areas and conduct on-site verification of shade trees or other plantings and nonabsorptive products.
D54: =CONCATENATE("Area of vegetated roof",IF(Instructions!$I$62=1," (sq ft)"," (sq m)")) -> Area of vegetated roof (sq ft) | K54: HM
D55: =CONCATENATE("Area of vegetation in open pavers",IF(Instructions!$I$62=1," (sq ft)"," (sq m)")) -> Area of vegetation in open pavers (sq ft) | K55: HM
D56: =CONCATENATE("Area of paving materials with a 3-year aged SR value of at least 0.28 or initial SR value of at least 0.33",IF(Instructions!$I$62=1," (sq ft)"," (sq m)")) -> Area of paving materials with a 3-year aged SR value of at least 0.28 or initial SR value of at least 0.33 (sq ft) | K56: HM
K57: HM
K58: HM
C59: Summary | K59: HM | L59: =C59 -> Summary
C60: =C47 -> 0 | D60: =CONCATENATE("Total shaded area",IF(Instructions!$I$62=1," (sq ft)"," (sq m)")) -> Total shaded area (sq ft) | K60: HM | P60: Verify calculations or estimates related to shaded and/or nonabsorptive areas.
C61: =SUM(C53:C56) -> 0 | D61: =CONCATENATE("Total area of nonabsorptive materials",IF(Instructions!$I$62=1," (sq ft)"," (sq m)")) -> Total area of nonabsorptive materials (sq ft) | K61: HM
C62: =SUM(C60:C61) -> 0 | D62: =CONCATENATE("Total area with shading or nonabsorptive material",IF(Instructions!$I$62=1," (sq ft)"," (sq m)")) -> Total area with shading or nonabsorptive material (sq ft) | K62: HM
D63: =CONCATENATE("Total hardscape area",IF(Instructions!$I$62=1," (sq ft)"," (sq m)")) -> Total hardscape area (sq ft) | K63: HM
D64: =CONCATENATE("Total roof area",IF(Instructions!$I$62=1," (sq ft)"," (sq m)")) -> Total roof area (sq ft) | K64: HM
C65: =IFERROR(C62/(C64+C63),0) -> 0 | D65: Percentage of area with shading or nonabsorptive material (%) | K65: HM
K66: HM
A67: SSc2 | B67: =IF(RatingSystem=1,HYPERLINK("http://www.usgbc.org/node/2612282",L67),HYPERLINK("http://www.usgbc.org/node/2612282",L67)) -> SS Credit Rainwater Management | K67: HM | L67: SS Credit Rainwater Management
K68: HM
B69: Up to 3 points | E69: Preliminary Y | F69: =IF(F73>0,F73,F88) -> 0 | G69: M | H69: =IF(H73>0,H73,H88) -> 0 | I69: Verified | J69: =IF(J73>0,J73,J88) -> 0 | K69: HM | M69: Responsible Party
B70: Exemplary Performance: For Case 1, manage 100% of all stormwater on-site. | K70: HM
K71: HM
K72: HM
C73: Case 1. Low Impact Development (1-3 points) | E73: Y | F73: 0 | G73: M | I73: V | K73: HM | L73: =C73 -> Case 1. Low Impact Development (1-3 points)
K74: HM
K75: HM
C76: Permeable area as a percentage of total lot area | K76: HM
D77: =CONCATENATE("Total permeable area",IF(Instructions!$I$62=1," (sq ft)"," (sq m)")) -> Total permeable area (sq ft) | K77: HM | P77: Conduct on-site verification of that GI/LID elements (e.g., permeable paving, designed infiltration features) match what was included in plans.
D78: =CONCATENATE("Total impermeable area directed to on-site catchment or infiltration feature",IF(Instructions!$I$62=1," (sq ft)"," (sq m)")) -> Total impermeable area directed to on-site catchment or infiltration feature (sq ft) | K78: HM | P78: Verify calculations of percentage permeable elements.
D79: =CONCATENATE("Total lot area",IF(Instructions!$I$62=1," (sq ft)"," (sq m)")) -> Total lot area (sq ft) | K79: HM
C80: =IFERROR(SUM(C77:C78)/C79,0) -> 0 | D80: Qualifying area, as percentage of total lot area (%) | K80: HM | P80: Verify calculations of percentage permeable elements and verify calculations identifying percentile storm or 2 year, 24 hour storm.
K81: HM
C82: Reduction of total impermeable area | K82: HM
C83: 1400 | D83: =CONCATENATE("Total impermeable area of the project",IF(Instructions!$I$62=1," (sq ft)"," (sq m)")) -> Total impermeable area of the project (sq ft) | K83: HM
C84: 2800 | D84: =CONCATENATE("Reference home size",IF(Instructions!$I$62=1," (sq ft)"," (sq m)")) -> Reference home size (sq ft) | K84: HM
C85: =IFERROR(C83/C84,0) -> 0.5 | D85: Impermeable area as a percentage of reference home size | K85: HM
K86: HM
C87: OR | K87: HM
C88: Case 2. NPDES Projects (2-3 points) | E88: Y | G88: M | I88: V | K88: HM | L88: =C88 -> Case 2. NPDES Projects (2-3 points)
K89: HM
K90: HM
D91: Percentile rainfall event | K91: HM | P91: Verify calculations identifying percentile.
K92: HM
A93: SSc3 | B93: =IF(RatingSystem=1,HYPERLINK("http://www.usgbc.org/node/2612289",L93),HYPERLINK("http://www.usgbc.org/node/2612289",L93)) -> SS Credit Nontoxic Pest Control | K93: HM | L93: SS Credit Nontoxic Pest Control
K94: HM
B95: Up to 2 points | E95: Preliminary Y | F95: 1.5 | G95: M | H95: 0 | I95: Verified | J95: 1.5 | K95: HM | M95: Responsible Party
B96: Exemplary Performance: Achieve a minimum of 2 points to earn another 1/2 point for each additional strategy, up to a total of 1 point. | K96: HM
K97: HM
K98: HM
C99: Select all of the following that have been included in the project. | K99: HM
C100: No | D100: Install a steel mesh barrier termite control system. (1 point) | K100: HM
K101: HM
C102: No | D102: Install a physical termite barrier system (e.g., basaltic rock) approved by code. (1 point) | K102: HM
K103: HM
C104: Yes | D104: For below-grade walls, use solid concrete foundation walls, masonry walls with a course of solid block bond beam, or concrete-filled block. (0.5 point) | K104: HM | L104: Site Verified | M104: 2017-07-26
K105: HM
K106: HM
C107: No | D107: Install post-tension slabs. (0.5 point) | K107: HM
K108: HM
C109: No | D109: Treat all cellulosic structural material (e.g., wood framing) with a registered pesticide containing borates, following the manufacturer’s directions for preconstruction treatment. (0.5 point) | K109: HM
K110: HM
K111: HM
C112: No | D112: Use noncellulosic material for all structural elements. (0.5 point) | K112: HM
K113: HM
C114: No | D114: Install ports or openings for all plumbing elements that penetrate the slab, to allow access for inspection and treatment of pest infestations. (0.5 point) | K114: HM
K115: HM
K116: HM
C117: No | D117: Install a registered termite bait system and provide for ongoing maintenance as required by the manufacturer. (0.5 point) | K117: HM
K118: HM
C119: No | D119: Design a minimum 6-inch (150 millimeters) inspection space between the surface of the planned landscape grade and nonmasonry siding. (0.5 point) | K119: HM
K120: HM
K121: HM
C122: Yes | D122: Seal all external cracks, joints, penetrations, edges, and entry points with appropriate caulking. Install rodent- and corrosion-proof screens (e.g., copper or stainless steel mesh) on all openings greater than ¼ inch (6 millimeters), except where code prohibits their installation. (0.5 point) | K122: HM | L122: Site Verified | M122: 2017-11-14
K123: HM
K124: HM
K125: HM
C126: No | D126: Design discharge points for rain gutters, air-conditioning condensation lines, steam vent lines, or any other moisture source such that discharge is at least 24 inches (600 millimeters) from the foundation. (0.5 point) | K126: HM
K127: HM
K128: HM
C129: Yes | D129: Design landscape features to provide a minimum 18-inch (450 millimeters) space between the exterior wall and any plantings. (0.5 point) | K129: HM | L129: Site Verified | M129: 2017-11-14
K130: HM
C131: For multifamily projects | K131: HM | L131: =C131 -> For multifamily projects
C132: (Select one) | D132: Develop an integrated pest management policy. The policy must include guidance for residents on pesticide use, housekeeping and prompt reporting of pest problems and incorporate policy in the Homeowner Education Manual. (Required) | K132: HM | P132: Conduct on-site verification that credit requirements are met.
K133: HM

Sheet WE
B1: Water Efficiency | L1: Notes | M1: Verified (initials) | N1: Date Verified | O1: Verification Details | P1: Verification Measure | Q1: QAD Verification Notes
E3: Preliminary Y | F3: =IF(WE!$F$27>0,WE!$F$27,SUM(F40,F86)) -> 5 | G3: Maybe | H3: =IF(WE!$H$27>0,WE!$H$27,SUM(H40,H86)) -> 0 | I3: Verified | J3: =IF(WE!$J$27>0,WE!$J$27,SUM(J40,J86)) -> 5
A5: WEp1 | B5: =IF(RatingSystem=1,HYPERLINK("http://www.usgbc.org/node/2612787",L5),HYPERLINK("http://www.usgbc.org/node/2612787",L5)) -> WE Prerequisite Water Metering | K5: HM | L5: WE Prerequisite Water Metering
K6: HM
B7: Required | F7: Required | I7: Verified | J7: =IF(OR(J10="Y",J18="Y"),"Y","N") -> Y | K7: HM | M7: Responsible Party
K8: HM
K9: HM
C10: Case 1. Single Family | I10: V | J10: Y | K10: HM | L10: =C10 -> Case 1. Single Family
K11: HM
K12: HM
C13: Select one of the following: | K13: HM
C14: True | D14: A whole-house water meter is installed. | K14: HM | L14: Site Verified | M14: JML | N14: 2017-07-26 | P14: Conduct on-site verification that water meter is installed.
C15: False | D15: The house uses only well water and is not connected to a municipal water system. | K15: HM | P15: Conduct on-site verification that only well water is used.
K16: HM
C17: OR | K17: HM
C18: Case 2. Multifamily | I18: V | K18: HM | L18: =C18 -> Case 2. Multifamily
K19: HM
K20: HM
C21: (Select one) | D21: A water meter or submeter is installed for each unit. | K21: HM | P21: Conduct on-site verification that water meters are installed.
C22: (Select one) | D22: A water meter or submeter is installed for the whole building.
K23: HM
B24: Performance Path | K24: HM | L24: Performance Path
A25: WEc1 | B25: =IF(RatingSystem=1,HYPERLINK("http://www.usgbc.org/node/2612793",L25),HYPERLINK("http://www.usgbc.org/node/2612793",L25)) -> WE Credit Total Water Use | K25: HM | L25: WE Credit Total Water Use
K26: HM
B27: Up to 12 points | E27: Preliminary Y | F27: 0 | G27: M | H27: 0 | I27: Verified | J27: 0 | K27: HM | M27: Responsible Party
B28: Exemplary Performance: 70% reduction of indoor and outdoor water consumption | K28: HM
K29: HM
K30: HM
C31: ='Water Reduction Calculator'!I141 -> 0 | D31: Total reduction of indoor and outdoor water consumption as calculated in the Water Reduction Calculator (%) | K31: HM | P31: Visually verify that listed indoor fixtures were installed and that water calculator’s inputs match installed fixtures’ performance criteria. Conduct on-site verification that outdoor water use calculator’s inputs match installed fixtures’ performance criteria; conduct on-site verification of any water-saving items identified in calculation, including high-efficiency irrigation measures and high-low shading conditions; and for any drought-tolerant plants, compare list of installed plants with list of regional drought-tolerant plants created by a third-party entity.
K32: HM
C33: For single family projects | K33: HM | L33: =C33 -> For single family projects
C34: (Select one) | D34: The water pressure does not exceed 60 psi (415 kPa). There are no detectable water leaks. Any installed water softeners are demand initiated. | K34: HM | P34: Test and record water pressure. Test for water leaks. Verify installed water softeners are demand initiated.
K35: HM
K36: HM
B37: Prescriptive Path | K37: HM | L37: Prescriptive Path
A38: WEc2 | B38: =IF(RatingSystem=1,HYPERLINK("http://www.usgbc.org/node/2612799",L38),HYPERLINK("http://www.usgbc.org/node/2612799",L38)) -> WE Credit Indoor Water Use | K38: HM | L38: WE Credit Indoor Water Use
K39: HM
B40: Up to 6 points | E40: Preliminary Y | F40: =IF(F43>0,F43,F64) -> 5 | G40: M | H40: =IF(H43>0,H43,H64) -> 0 | I40: Verified | J40: =IF(J43>0,J43,J64) -> 5 | K40: HM | M40: Responsible Party
K41: HM
K42: HM
C43: Case 1. Single Family | E43: Y | F43: 5 | G43: M | I43: V | J43: 5 | K43: HM | L43: =C43 -> Case 1. Single Family
K44: HM
K45: HM
C46: True | D46: The water pressure does not exceed 60 psi (415 kPa). There are no detectable water leaks. | K46: HM | L46: Site Verified | M46: JML | N46: 2017-07-26 | P46: Test and record water pressure. Test for water leaks.
C47: Meet any of the following: | K47: HM
C48: Lavatory Faucet (1-2 points) | K48: HM | L48: =C48 -> Lavatory Faucet (1-2 points)
C49: True | D49: All installed lavatory faucets and/or faucet aerators are WaterSense labeled. | K49: HM | L49: Site Verified, Niagra Units | M49: JML | N49: 2017-11-14 | P49: Conduct on-site verification that faucets are installed, comparing installed items with manufacturers’ specification sheets where necessary; ensure all items are WaterSense labeled.
C50: 1 | D50: =CONCATENATE("Average rated flow volume across all lavatory faucets",IF(Instructions!$I$62=1," (gpm)"," (lpm)")) -> Average rated flow volume across all lavatory faucets (gpm) | K50: HM | P50: Verify average rated flow.
K51: HM
C52: Showerheads (1-2 points) | K52: HM | L52: =C52 -> Showerheads (1-2 points)
C53: True | D53: All installed showerhead fixtures and fittings are WaterSense labeled. | K53: HM | L53: Site Verified | M53: JML | N53: 2017-11-14 | P53: Conduct on-site verification that showerheads are installed, comparing installed items with manufacturers’ specification sheets where necessary; ensure all items are WaterSense labeled.
C54: 1.5 | D54: =CONCATENATE("Average rated flow volume per shower compartment",IF(Instructions!$I$62=1," (gpm)"," (lpm)")) -> Average rated flow volume per shower compartment (gpm) | K54: HM | P54: Verify average rated flow.
K55: HM
C56: Toilets (1 point) | K56: HM | L56: =C56 -> Toilets (1 point)
C57: True | D57: All installed toilet fixtures and fittings are WaterSense labeled. | K57: HM | L57: Niagra Dual Flush | M57: JML | N57: 2017-11-14 | P57: Conduct on-site verification that high-efficiency toilets are installed, comparing installed items with manufacturers’ specification sheets where necessary; ensure all items are WaterSense labeled.
C58: 0.8 | D58: =CONCATENATE("Average rated flush volume across all toilets",IF(Instructions!$I$62=1," (gpf)"," (lpf)")) -> Average rated flush volume across all toilets (gpf) | K58: HM | P58: Verify average rated flow.
K59: HM
C60: Clothes Washers (1 point) | K60: HM | L60: =C60 -> Clothes Washers (1 point)
C61: (Select one) | D61: All clothes washers are ENERGY STAR qualified or performance equivalent | K61: HM | P61: Conduct on-site verification that clothes washers are installed, comparing installed items with manufacturers’ specification sheets where necessary; ensure all items are ENERGY STAR labeled.
K62: HM
C63: OR | K63: HM
C64: Case 2. Multifamily and Midrise | E64: Y | G64: M | I64: V | K64: HM | L64: =C64 -> Case 2. Multifamily and Midrise
K65: HM
K66: HM
C67: Note: No additional credit is awarded if the fixtures and fittings in non-unit spaces are more efficient than those of in-unit spaces. | K67: HM
C68: Meet any of the following for in-unit spaces and non-unit spaces: | K68: HM
C69: Lavatory Faucet (1-2 points) | K69: HM | L69: =C69 -> Lavatory Faucet (1-2 points)
C70: True | D70: All installed lavatory faucets and/or faucet aerators are WaterSense labeled. | K70: HM | P70: Conduct on-site verification that faucets are installed, comparing installed items with manufacturers’ specification sheets where necessary; ensure all items are WaterSense labeled.
C71: 1.5 | D71: =CONCATENATE("Average rated flow volume across all lavatory faucets",IF(Instructions!$I$62=1," (gpm)"," (lpm)")) -> Average rated flow volume across all lavatory faucets (gpm) | K71: HM | P71: Verify average rated flow.
K72: HM
C73: Showerheads (1-2 points) | K73: HM | L73: =C73 -> Showerheads (1-2 points)
C74: True | D74: All installed showerhead fixtures and fittings are WaterSense labeled. | K74: HM | P74: Conduct on-site verification that showerheads are installed, comparing installed items with manufacturers’ specification sheets where necessary; ensure all items are WaterSense labeled.
C75: 1.5 | D75: =CONCATENATE("Average rated flow volume per shower compartment",IF(Instructions!$I$62=1," (gpm)"," (lpm)")) -> Average rated flow volume per shower compartment (gpm) | K75: HM | P75: Verify average rated flow.
K76: HM
C77: Toilets (1 point) | K77: HM | L77: =C77 -> Toilets (1 point)
C78: True | D78: All installed toilet fixtures and fittings are WaterSense labeled. | K78: HM | P78: Conduct on-site verification that high-efficiency toilets are installed, comparing installed items with manufacturers’ specification sheets where necessary; ensure all items are WaterSense labeled.
C79: 1.28 | D79: =CONCATENATE("Average rated flush volume across all toilets",IF(Instructions!$I$62=1," (gpf)"," (lpf)")) -> Average rated flush volume across all toilets (gpf) | K79: HM | P79: Verify average rated flow.
K80: HM
C81: Clothes Washers (1 point) | K81: HM | L81: =C81 -> Clothes Washers (1 point)
C82: (Select one) | D82: All clothes washers are ENERGY STAR qualified or performance equivalent | K82: HM | P82: Conduct on-site verification that clothes washers are installed, comparing installed items with manufacturers’ specification sheets where necessary; ensure all items are ENERGY STAR labeled.
K83: HM
A84: WEc3 | B84: =IF(RatingSystem=1,HYPERLINK("http://www.usgbc.org/node/2612805",L84),HYPERLINK("http://www.usgbc.org/node/2612805",L84)) -> WE Credit Outdoor Water Use | K84: HM | L84: WE Credit Outdoor Water Use
K85: HM
B86: Up to 4 points | E86: Preliminary Y | F86: 0 | G86: M | H86: 0 | I86: Verified | J86: 0 | K86: HM | M86: Responsible Party
K87: HM
K88: HM
C89: 60 | D89: Turf grass area as a percentage of landscape area (%) | K89: HM | P89: Conduct on-site verification that area calculations match what was installed.
C90: 25 | D90: Native or adapted plant area as a percentage of landscape area (%) | K90: HM | P90: For all native or adapted plants, compare list of installed plants with list of regional native and adapted plants created by third-party entity

Sheet EA
B1: Energy and Atmosphere | L1: Notes | M1: Verified (initials) | N1: Date Verified | O1: Verification Details | P1: Verification Measure | Q1: QAD Verification Notes
E3: Preliminary Y | F3: =IF(Instructions!$J$62=2,IF((F125+F137+F203)>37,37,F125+F137+F203),IF(F101<>0,IF((F101+F137+F203+F254+F273)>38,38,F101+F137+F203+F254+F273),IF((F137+F203+F254+F273+F286+F297+F310+F334+F343+F363+F387+F415+F428+F466+F478)>38,38,F137+F203+F254+F273+F286+F297+F310+F334+F343+F363+F387+F415+F428+F466+F478))) -> 30 | G3: Maybe | H3: =IF(Instructions!$J$62=2,IF((H125+H137+H203)>37,37,H125+H137+H203),IF(H101<>0,IF((H101+H137+H203+H254+H273)>38,38,H101+H137+H203+H254+H273),IF((H137+H203+H254+H273+H286+H297+H310+H334+H343+H363+H387+H415+H428+H466+H478)>38,38,H137+H203+H254+H273+H286+H297+H310+H334+H343+H363+H387+H415+H428+H466+H478))) -> 0 | I3: Verified | J3: =IF(Instructions!$J$62=2,IF((J125+J137+J203)>37,37,J125+J137+J203),IF(J101<>0,IF((J101+J137+J203+J254+J273)>38,38,J101+J137+J203+J254+J273),IF((J137+J203+J254+J273+J286+J297+J310+J334+J343+J363+J387+J415+J428+J466+J478)>38,38,J137+J203+J254+J273+J286+J297+J310+J334+J343+J363+J387+J415+J428+J466+J478))) -> 30
A5: EAp1 | B5: =IF(RatingSystem=1,HYPERLINK("http://www.usgbc.org/node/2611842",L5),HYPERLINK("http://www.usgbc.org/node/2611843",L5)) -> EA Prerequisite Minimum Energy Performance | K5: HM | L5: EA Prerequisite Minimum Energy Performance
K6: HM
B7: Required | F7: Required | I7: Verified | J7: Y | K7: HM | M7: Responsible Party
K8: HM
K9: HM
C10: 1. ENERGY STAR for Homes version 3 | K10: H | L10: =C10 -> 1. ENERGY STAR for Homes version 3
K11: H
C12: True | D12: ENERGY STAR version 3 checklists are complete | K12: H | L12: HERS Documentation attched | M12: JML | N12: 2017-11-15 | P12: Upload energy model file AND upload ENERGY STAR for Homes pdf report demonstrating that project meets ENERGY STAR for Homes requirements; OR upload builders’ option package to demonstrate compliance with prescriptive ENERGY STAR for Homes requirements. Conduct on-site verification of required ENERGY STAR for Homes inspection and upload ENERGY STAR for Homes inspection checklist.
K13: H
C14: 62 | D14: HERS index rating | K14: H | M14: JML | N14: 2017-11-15 | P14: Verify HERS index
C15: 70 | D15: ENERGY STAR HERS index target | K15: H
D16: OR | K16: H
C17: (Select one) | D17: ENERGY STAR Builder Option Package has been followed and all requirements met. | K17: H
K18: H
C19: 2. ENERGY STAR Qualified Appliances | K19: H | L19: =C19 -> 2. ENERGY STAR Qualified Appliances
K20: H
C21: Select at least one of the following: | K21: H | L21: Site Verified | M21: JML | N21: 2017-11-14 | P21: Verify appliance(s) is installed.
C22: True | D22: ENERGY STAR refrigerator is installed. | K22: H
C23: (Select one) | D23: ENERGY STAR dishwasher is installed. | K23: H
C24: (Select one) | D24: ENERGY STAR clothes washer is installed. | K24: H
K25: H
C26: 3. Duct Runs | K26: H | L26: =C26 -> 3. Duct Runs
K27: H
C28: True | D28: All duct runs are fully ducted. | K28: H | L28: Site Verified | M28: JML | N28: 2017-11-14 | P28: Verify duct runs are fully ducted
K29: H
C30: Whole-Building Energy Simulation | K30: M | L30: =C30 -> Whole-Building Energy Simulation
K31: M
D32: =CONCATENATE("Target Finder. Enter energy performance rating target",IF(Instructions!$I$62=1," (kBtu/sq ft per year)"," (GJ/sq m per year)")) -> Target Finder. Enter energy performance rating target (kBtu/sq ft per year) | K32: M
K33: M
C34: (Select one) | D34: The project meets the mandatory requirements of ASHRAE 90.1-2010, Sections 5.4, 6.4, 7.4, 8.4, 9.4 and 10.4 | K34: M
K35: M
D36: Total energy cost savings (%) | K36: M
K37: M
C38: Commissioning | K38: M | L38: =C38 -> Commissioning
K39: M
C40: Option 1. Commissioning using ENERGY STAR Protocols. | I40: V | K40: M | L40: =C40 -> Option 1. Commissioning using ENERGY STAR Protocols.
K41: M
K42: M
C43: (Select one) | D43: The project meets the ENERGY STAR Qualified Multifamily High Rise Buildings Testing and Verification Protocols. | K43: M
K44: M
C45: OR | K45: M
C46: Option 2. Commissioning using Prescriptive Path | I46: V | K46: M | L46: =C46 -> Option 2. Commissioning using Prescriptive Path
K47: M
K48: M
C49: 1. Reduced Heating and Cooling Distribution System Losses for In-Unit HVAC | K49: M
C50: (Select one) | D50: Duct leakage rate does not exceed 4.0 cfm25 per 100 sq ft (1.2 cmm at 25 Pa per 100 sq m) of conditioned floor area. | K50: M | P50: Verify duct leakage test results conducted by a qualified energy rater or USGBC-approved alternative, according to HERS procedures.
K51: M
C52: (Select one) | D52: Duct leakage rate in units smaller than 1,200 sq ft (110 sq m) does not exceed 6.0 cfm25 per 100 sq ft (1.7 cmm at 25 Pa per 100 sq m) of conditioned floor area. | K52: M
K53: M
K54: M
C55: (Select one) | D55: Total duct leakage rate in-units systems does not exceed 8.0 cfm25 per 100 sq ft (2.4 cmm at 25 Pa per 100 sq m) of conditioned floor area. | K55: M
K56: M
C57: (Select one) | D57: The air-handler unit and ductwork are visbly within the unit's envelope. | K57: M
K58: M
C59: 2. Fundamental Commissioning of Central HVAC Systems | K59: M
C60: (Select one) | D60: The project meets the performance testing and ongoing maintenance requirements of LEED v4 New Construction EA Prerequisite Fundamental Commissioning and Verification for central commercial heating, cooling, water heating and ventilation systems. | K60: M
K61: M
K62: M
C63: 3. Construction Document Specifications | K63: M
C64: (Select one) | D64: The following details were included in the bid documents: Elements to be sealed, air barrier sheet and compartmentalization sheet. | K64: M
K65: M
C66: 4. LEED for Homes Multifamily Midrise Thermal Enclosure Inspection Checklist | K66: M
C67: (Select one) | D67: The LEED for Homes Multifamily Midrise Thermal Enclosure Inspection Checklist has been completed. | K67: M
K68: M
C69: (Select one) | D69: The project is a certified Passive House project. | K69: M
K70: M
A71: EAp2 | B71: =IF(RatingSystem=1,HYPERLINK("http://www.usgbc.org/node/2611852",L71),HYPERLINK("http://www.usgbc.org/node/2611852",L71)) -> EA Prerequisite Energy Metering | K71: HM | L71: EA Prerequisite Energy Metering
K72: HM
B73: Required | F73: Required | I73: Verified | J73: =IF(OR(J76="Y",J83="Y"),"Y","N") -> Y | K73: HM | M73: Responsible Party
K74: HM
K75: HM
C76: Case 1. Single Family | I76: V | J76: Y | K76: HM | L76: =C76 -> Case 1. Single Family
K77: HM
K78: HM
C79: True | D79: A whole-house electric meter is installed. | K79: HM | L79: Site Verified | M79: JML | N79: 2017-07-26 | P79: Conduct on-site verification that applicable utility meter is installed.
C80: True | D80: A whole-house gas meter is installed. | K80: HM | L80: Site Verified | M80: JML | N80: 2017-07-26 | P80: Conduct on-site verification that applicable utility meter is installed.
K81: HM
C82: OR | K82: HM
C83: Case 2. Multifamily | I83: V | K83: HM | L83: =C83 -> Case 2. Multifamily
K84: HM
K85: HM
C86: (Select one) | D86: Electric submeters are installed in each residential unit. | K86: HM | P86: Conduct on-site verification that applicable utility meter is installed.
C87: (Select one) | D87: A whole-building gas meter or submeter for each residential unit is installed. | K87: HM | P87: Conduct on-site verification that applicable utility meter is installed.
K88: HM
A89: EAp3 | B89: =IF(RatingSystem=1,HYPERLINK("http://www.usgbc.org/node/2611858",L89),HYPERLINK("http://www.usgbc.org/node/2611858",L89)) -> EA Prerequisite Education of Homeowner, Tenant, or Building Manager | K89: HM | L89: EA Prerequisite Education of Homeowner, Tenant, or Building Manager
K90: HM
B91: Required | F91: Required | I91: Verified | J91: Y | K91: HM | M91: Responsible Party
K92: HM
K93: HM
C94: True | D94: An operations and maintenance manual, binder, or CD has been/will be provided to all individuals or organizations responsible for the maintenance of the home. | K94: HM | M94: JML | N94: 2017-11-14 | P94: Verify that operations and maintenance manual includes required elements.
K95: HM
C96: True | D96: A minimum one-hour walkthrough of the home with the occupants has been conducted. | K96: HM | L96: Well House Has a full time maintance personal | M96: JML | N96: 2017-11-14 | P96: Verify that building walkthrough was performed.
K97: HM
B98: Performance Path | K98: H | L98: Performance Path
A99: EAc1 | B99: =IF(RatingSystem=1,HYPERLINK("http://www.usgbc.org/node/2612022",L99),HYPERLINK("",L99)) -> EA Credit Annual Energy Use | K99: H | L99: EA Credit Annual Energy Use
K100: H
B101: =CONCATENATE("Up to",IF(Instructions!$J$62=1," 29"," 30")," points") -> Up to 29 points | E101: Preliminary Y | F101: =IF(F105>0,F105,F113) -> 28 | G101: M | H101: =IF(H105>0,H105,H113) -> 0 | I101: Verified | J101: =IF(J105>0,J105,J113) -> 28 | K101: H | M101: Responsible Party
B102: Exemplary Performance: For Option 1, 100% reduction; For Option 2, -10 HERS index rating. | K102: H
K103: H
K104: H
C105: Option 1. LEED Energy Budget (1-29 points) | E105: Y | G105: M | I105: V | K105: H | L105: =C105 -> Option 1. LEED Energy Budget (1-29 points)
K106: H
K107: H
D108: LEED Energy Budget (MBtu/year) | K108: H | P108: Verify energy model output demonstrating energy savings from energy model.
D109: Annual energy consumption (MBtu/year) | K109: H
C110: =IFERROR(1-C109/C108,0) -> 0 | D110: Percent reduction below LEED Energy Budget (%) | K110: H
K111: H
C112: OR | K112: H
C113: Option 2. HERS Index with Home Size Adjuster (0.5-29 points) | E113: Y | F113: 28 | G113: M | I113: V | J113: 28 | K113: H | L113: =C113 -> Option 2. HERS Index with Home Size Adjuster (0.5-29 points)
K114: H
K115: H
C116: =C14 -> 62 | D116: HERS index rating | K116: H | L116: See Attached HERS Certificate | M116: JML | N116: 2017-11-15 | P116: Verify building area for each building
C117: 4 | D117: Number of bedrooms | K117: H | L117: See Attached building file report | M117: JML | N117: 2017-11-15 | P117: Verify number of bedrooms.
C118: 1055 | D118: =CONCATENATE("Conditioned floor area of the house",IF(Instructions!$I$62=1," (sq ft)"," (sq m)")) -> Conditioned floor area of the house (sq ft) | K118: H | M118: JML | N118: 2017-11-15 | P118: Verify home size adjustment calculation (including ensuring that only appropriate rooms are counted as bedrooms), or perform home size adjustment calculation for each building
C119: =IF(C117=0,"",IF(Instructions!$I$62=1,IF(C117>1,1000+((C117-1)*600),1000),IF(C117>1,(1000+((C117-1)*600))*0.0927,93))) -> 2800 | D119: =CONCATENATE("ENERGY STAR for Homes, version 3, reference home floor area",IF(Instructions!$I$62=1," (sq ft)"," (sq m)")) -> ENERGY STAR for Homes, version 3, reference home floor area (sq ft) | K119: H
C120: =IFERROR(1-(C118/C119),0) -> 0.6232142857 | D120: Home size adjustment | K120: H
C121: =IFERROR(ROUNDDOWN(((C119-C118)/C119*100)/4,0),0) -> 15 | D121: Point adjustment | K121: H
K122: H
A123: EAc1_M | B123: =IF(RatingSystem=1,HYPERLINK("",L123),HYPERLINK("http://www.usgbc.org/node/2612392",L123)) -> EA Credit Annual Energy Use | K123: M | L123: EA Credit Annual Energy Use
K124: M
B125: Up to 30 points | E125: Preliminary Y | F125: 0 | G125: M | H125: 0 | I125: V | J125: 0 | K125: M | M125: Responsible Party
B126: Exemplary Performance: 65% or better reduction from ASHRAE 90.1-2010. | K126: M
K127: M
K128: M
D129: Percent reduction from ASHRAE 90.1-2010 | K129: M | P129: Verify home size adjustment calculation (including ensuring that only appropriate rooms are counted as bedrooms), or perform home size adjustment calculation for each building
D130: Points earned | K130: M | L130: M | M130: M | N130: M | O130: M | P130: M | Q130: M
D131: Average home size point adjustment (from the Multifamily HSA tab or from the Batch - Multifamily tab) | K131: M
C132: =C130+C131 -> 0 | D132: Final points earned | K132: M
K133: M
B134: Performance and Prescriptive Paths | K134: H | L134: Performance and Prescriptive Paths
A135: EAc2 | B135: =IF(RatingSystem=1,HYPERLINK("http://www.usgbc.org/node/2611817",L135),HYPERLINK("http://www.usgbc.org/node/2611817",L135)) -> EA Credit Efficient Hot Water Distribution System | K135: HM | L135: EA Credit Efficient Hot Water Distribution System
K136: HM
B137: Up to 5 points | E137: Preliminary Y | F137: =IF(F140>0,F140+F196,F175+F196) -> 2 | G137: M | H137: =IF(H140>0,H140+H196,H175+H196) -> 0 | I137: Verified | J137: =IF(J140>0,J140+J196,J175+J196) -> 2 | K137: HM | M137: Responsible Party
K138: HM
K139: HM
C140: Option 1. Efficient Hot Water Distribution (2 points) | E140: Y | F140: =IF(F159>0,F159,F169) -> 0 | G140: M | H140: =IF(H159>0,H159,H169) -> 0 | I140: V | J140: =IF(J159>0,J159,J169) -> 0 | K140: HM | L140: =C140 -> Option 1. Efficient Hot Water Distribution (2 points)
K141: HM
K142: HM
C143: Note: Projects using heat traces that serve a single unit or house are awarded only half credit. | K143: HM
C144: For projects using circulating systems | K144: HM | L144: =C144 -> For projects using circulating systems
C145: (Select one) | D145: Circulating pump does not operate continuously, is on a timer, or is on a water temperature sensor. | K145: HM | P145: Verify circulating pump does not operate continuously, on a timer, or on a water temperature sensor.
K146: HM
C147: (Select one) | D147: Circulating pump is demand activated by a momentary contact switch, motion sensor, flow switch, door switch or voice command. | K147: HM | P147: Verify circulating pump is demand activated by a momentary contact switch, motion sensor, flow switch, door switch or voice command.
K148: HM
C149: (Select one) | D149: After the pump starts, the controls allow the pump to operate until the water temperature in the return pipe rises not more than 10ºF (6 ºC) above the initial temperature of the water in the pipe. Controls limit the water temperature to a maximum of 105ºF (40 ºC). Controls limit pump operation to not more than 5 minutes per activation in the event that both means of shutting off the pump have failed. | K149: HM
K150: HM
K151: HM
K152: HM
C153: (Select one) | D153: Circulating hot water systems have with an automatic or readily accessible manual switch to turn off the hot water circulating pump when not in use. | K153: HM
K154: HM
K155: HM
C156: For projects using heat-traced piping systems | K156: HM | L156: =C156 -> For projects using heat-traced piping systems
C157: (Select one) | D157: Piping is insulated. | K157: HM | P157: If system uses heat traced piping, verify piping is insulated.
K158: HM
C159: Path 1. Maximum Allowable Pipe Length (2 points) | E159: Y | G159: M | I159: V | K159: HM | L159: =C159 -> Path 1. Maximum Allowable Pipe Length (2 points)
K160: HM
K161: HM
D162: =CONCATENATE("Pipe or tube length installed",IF(Instructions!$I$62=1," (ft)"," (m)")) -> Pipe or tube length installed (ft) | K162: HM | P162: Conduct on-site verification that installed hot water distribution system meets requirements for plumbing run lengths and diameter.
D163: =CONCATENATE("Nominal pipe size",IF(Instructions!$I$62=1," (in)"," (mm)")) -> Nominal pipe size (in) | K163: HM
C164: =IFERROR(IF(Instructions!$I$62=1,LOOKUP(C163,Instructions!$I$66:$I$76,Instructions!$J$66:$J$76),LOOKUP(C163,Instructions!$I$78:$I$88,Instructions!$J$78:$J$88)),"") ->  | D164: =CONCATENATE("Maximum pipe or tube length allowed for water heaters, boilers with no circulation loop or heat traced pipe or in multifamily buildings a central circulation loop or heat traced pipe",IF(Instructions!$I$62=1," (ft)"," (m)")) -> Maximum pipe or tube length allowed for water heaters, boilers with no circulation loop or heat traced pipe or in multifamily buildings a central circulation loop or heat traced pipe (ft) | K164: HM
K165: HM
C166: =IFERROR(IF(Instructions!$I$62=1,LOOKUP(C163,Instructions!$I$66:$I$76,Instructions!$K$66:K$76),LOOKUP(C163,Instructions!$I$78:$I$88,Instructions!$K$78:$K$88)),"") ->  | D166: =CONCATENATE("Maximum pipe or tube length allowed for circulation loop or heat traced pipe serving a single unit or house",IF(Instructions!$I$62=1," (ft)"," (m)")) -> Maximum pipe or tube length allowed for circulation loop or heat traced pipe serving a single unit or house (ft) | K166: HM
K167: HM
C168: OR | K168: HM
C169: Path 2. Maximum Allowable Pipe Volume (2 points) | E169: Y | G169: M | I169: V | K169: HM | L169: =C169 -> Path 2. Maximum Allowable Pipe Volume (2 points)
K170: HM
K171: HM
D172: =CONCATENATE("Volume of hot or tempered water from source to termination",IF(Instructions!$I$62=1," (oz)"," (L)")) -> Volume of hot or tempered water from source to termination (oz) | K172: HM | P172: Conduct on-site verification that installed hot water distribution system meets requirements for plumbing run lengths and diameter.
K173: HM
C174: OR | K174: HM
C175: Option 2. Performance Test (3 points) | E175: Y | F175: =IF(F179>0,F179,F187) -> 0 | G175: M | H175: =IF(H179>0,H179,H187) -> 0 | I175: V | J175: =IF(J179>0,J179,J187) -> 0 | K175: HM | L175: =C175 -> Option 2. Performance Test (3 points)
K176: HM
K177: HM
C178: Note: Projects using heat traces that serve a single unit or house are awarded only half credit. | K178: HM
C179: Case 1. Hot water source is a water heater or boiler with no circulation loop or heat traced pipe; or in multifamily buildings a central circulation loop or heat traced pipe. | E179: Y | G179: M | I179: V | K179: HM | L179: =C179 -> Case 1. Hot water source is a water heater or boiler with no circulation loop or heat traced pipe; or in multifamily buildings a central circulation loop or heat traced pipe.
K181: HM
C182: (Select one) | D182: Meets WaterSense Labeled New Homes requirements | K182: HM | P182: Verify project meets WaterSense Labeled New Homes requirements
K183: HM
D184: =CONCATENATE("Tested volume of water stored in piping",IF(Instructions!$I$62=1," (gal)"," (L)")) -> Tested volume of water stored in piping (gal) | K184: HM | P184: Conduct test to determine volume of water in hot water plumbing runs.
K185: HM
C186: OR | K186: HM
C187: Case 2. Hot water source is a circulation loop or heat traced pipe serving a single unit or house | E187: Y | G187: M | I187: V | K187: HM | L187: =C187 -> Case 2. Hot water source is a circulation loop or heat traced pipe serving a single unit or house
K189: HM
D190: =CONCATENATE("Tested volume of water stored in piping",IF(Instructions!$I$62=1," (gal)"," (L)")) -> Tested volume of water stored in piping (gal) | K190: HM | P190: Conduct test to determine volume of water in hot water plumbing runs.
K191: HM
C192: For projects using heat-traced piping systems | K192: HM | L192: =C192 -> For projects using heat-traced piping systems
C193: (Select one) | D193: Piping is insulated. | K193: HM | P193: If system uses heat traced piping, verify piping is insulated.
K194: HM
C195: OR | K195: HM
C196: Option 3. Pipe Insulation (2 points) | E196: Y | F196: 2 | G196: M | I196: V | J196: 2 | K196: HM | L196: =C196 -> Option 3. Pipe Insulation (2 points)
K197: HM
K198: HM
C199: R4 | D199: Insulation R-value | K199: HM | L199: Site Verified | M199: JML | N199: 2017-07-26 | P199: Conduct on-site verification that installed hot water distribution system meets requirements for pipe insulation.
K200: HM
A201: EAc3 | B201: =IF(RatingSystem=1,HYPERLINK("http://www.usgbc.org/node/2612056",L201),HYPERLINK("http://www.usgbc.org/node/2612056",L201)) -> EA Credit Advanced Utility Tracking | K201: HM | L201: EA Credit Advanced Utility Tracking
K202: HM
B203: Up to 2 points | E203: Preliminary Y | F203: =IF(F207>0,F207,F225) -> 0 | G203: M | H203: =IF(H207>0,H207,H225) -> 0 | I203: Verified | J203: =IF(J207>0,J207,J225) -> 0 | K203: HM | M203: Responsible Party
B204: Exemplary Performance: Meter separate energy usage information for at least four end uses. | K204: HM
... 282 more rows

Sheet MR
B1: Materials and Resources | L1: Notes | M1: Verified (initials) | N1: Date Verified | O1: Verification Details | P1: Verification Measure | Q1: QAD Verification Notes
E3: Preliminary Y | F3: =SUM(F37,F45,F109,F96) -> 5 | G3: Maybe | H3: =SUM(H37,H45,H109,H96) -> 0 | I3: Verified | J3: =SUM(J37,J45,J109,J96) -> 5
A5: MRp1 | B5: =IF(RatingSystem=1,HYPERLINK("http://www.usgbc.org/node/2612898",L5),HYPERLINK("http://www.usgbc.org/node/2612898",L5)) -> MR Prerequisite Certified Tropical Wood | K5: HM | L5: MR Prerequisite Certified Tropical Wood
K6: HM
B7: Required | F7: Required | I7: Verified | J7: Y | K7: HM | M7: Responsible Party
K8: HM
K9: HM
C10: True | D10: All wood in the building is nontropical, reused or reclaimed, or certified by the Forest Stewardship Council, or USGBC-approved equivalent. | K10: HM | L10: No topical wood | M10: JML | N10: 2017-11-14 | P10: Verify that no wood used in project comes from tropical country unless reclaimed or FSC certified, using information provided by suppliers and vendors.
K11: HM
A12: MRp2 | B12: =IF(RatingSystem=1,HYPERLINK("http://www.usgbc.org/node/2612917",L12),HYPERLINK("http://www.usgbc.org/node/2612917",L12)) -> MR Prerequisite Durability Management | K12: HM | L12: MR Prerequisite Durability Management
K13: HM
B14: Required | F14: Required | I14: Verified | J14: Y | K14: HM | M14: Responsible Party
K15: HM
K16: HM
C17: True | D17: ENERGY STAR for Homes, version 3, water management system checklist is collected from builder. | K17: HM | L17: Used V 3.1, no checklist but followed guidelines | M17: JML | N17: 2017-11-14
K18: HM
C19: Confirm all of the following have been implemented on the project: | K19: HM
C20: True | D20: Nonpaper-faced backer board, or a product or coating over wallboard that meets standard ASTM D 3273 standard, was installed on the area above bathtub, spa or shower, and in areas behind fiberglass enclosures where wallboard is installed. | K20: HM | M20: JML | N20: 2017-07-31 | P20: Conduct on-site verification that indoor moisture control measure is installed.
K21: HM
K22: HM
C23: True | D23: Water-resistant flooring was installed in the kitchen, bathroom(s), laundry room, spa area(s). No carpet was installed in these areas. | K23: HM | L23: Site Verified | M23: JML | N23: 2017-07-26 | P23: Conduct on-site verification that indoor moisture control measure is installed.
K24: HM
C25: True | D25: Water-resistant flooring was installed in entryways within 3 feet of exterior door(s). | K25: HM | L25: Site Verified | M25: JML | N25: 2017-07-26 | P25: Conduct on-site verification that indoor moisture control measure is installed.
K26: HM
C27: N/A | D27: A drain and drain pan, drain pan and automatic water shut-off or flow restrictors, or floor drain with floor sloped to drain was installed for all tank water heaters in or over living space. | K27: HM | P27: Conduct on-site verification that indoor moisture control measure is installed.
K28: HM
K29: HM
C30: N/A | D30: A drain and drain pan, drain pan and automatic water shut-off or flow restrictors, or floor drain with floor sloped to drain was installed for clothes washer in or over living space. | K30: HM | P30: Conduct on-site verification that indoor moisture control measure is installed.
K31: HM
K32: HM
C33: N/A | D33: Conventional clothes dryers exhaust directly to outdoors. | K33: HM | L33: No Dryer | M33: JML | N33: 2017-11-14 | P33: Conduct on-site verification that indoor moisture control measure is installed.
K34: HM
A35: MRc1 | B35: =IF(RatingSystem=1,HYPERLINK("http://www.usgbc.org/node/2612923",L35),HYPERLINK("http://www.usgbc.org/node/2612923",L35)) -> MR Credit Durability Management Verification | K35: HM | L35: MR Credit Durability Management Verification
K36: HM
B37: 1 point | E37: Preliminary Y | F37: 1 | G37: M | H37: 0 | I37: Verified | J37: 1 | K37: HM | M37: Responsible Party
K38: HM
K39: HM
C40: True | D40: Each measure in the ENERGY STAR for Homes, version 3, water management system builder checklist was verified by the verification team. | K40: HM | L40: Site Verified by the HERS Rater | M40: JML | N40: 2017-11-14 | P40: Conduct on-site verification of each measured listed in ENERGY STAR for Homes water management system checklist, or verify that qualified energy rater signed off on each measure.
K41: HM
K42: HM
A43: MRc2 | B43: =IF(RatingSystem=1,HYPERLINK("http://www.usgbc.org/node/2613082",L43),HYPERLINK("http://www.usgbc.org/node/2695211",L43)) -> MR Credit Environmentally Preferable Products | K43: HM | L43: MR Credit Environmentally Preferable Products
K44: HM
B45: =CONCATENATE("Up to",IF(Instructions!$J$62=1," 4"," 5")," points") -> Up to 4 points | E45: Preliminary Y | F45: =IF(Instructions!$J$62=1,IF(SUM(F49,F58)>4,4,SUM(F49,F58)),IF(SUM(F49,F58)>5,5,SUM(F49,F58))) -> 4 | G45: M | H45: =IF(Instructions!$J$62=1,IF(SUM(H49,H58)>4,4,SUM(H49,H58)),IF(SUM(H49,H58)>5,5,SUM(H49,H58))) -> 0 | I45: Verified | J45: =IF(Instructions!$J$62=1,IF(SUM(J49,J58)>4,4,SUM(J49,J58)),IF(SUM(J49,J58)>5,5,SUM(J49,J58))) -> 4 | K45: HM | M45: Responsible Party
B46: Exemplary Performance: For Option 2, achieve a minimum of 4 points to earn another 2 points for purchasing products that meet the requirements. | K46: HM
K47: HM
K48: HM
C49: Option 1. Local Production | E49: Preliminary Y | F49: 1 | G49: M | I49: Verified | J49: 1 | K49: HM | L49: =C49 -> Option 1. Local Production
K50: HM
K51: HM
C52: Select which the following were extracted, processed, and manufactured within 100 miles (160 km) of the project site: | K52: HM
C53: 100 | D53: Percentage of locally produced framing (%) (0.5 point) | K53: HM | L53: Gut Rehab | M53: JML | N53: 2017-07-26 | P53: Verify that installed components meet definition of local production, using product literature, letters from manufacturers or suppliers, or other documentation.
C54: 100 | D54: Percentage of locally produced aggregate for concrete and foundation (%) (0.5 point) | K54: HM | L54: Reuse | M54: JML | N54: 2017-07-26 | P54: Verify that installed components meet definition of local production, using product literature, letters from manufacturers or suppliers, or other documentation.
D55: Percentage of locally produced drywall and interior sheathing (%) (0.5 point) | K55: HM | P55: Verify that installed components meet definition of local production, using product literature, letters from manufacturers or suppliers, or other documentation.
K56: HM
C57: AND/OR | K57: HM
C58: Option 2. Environmentally Preferable Products | E58: Preliminary Y | F58: 3 | G58: M | H58: 0 | I58: Verified | J58: 3 | K58: HM | L58: =C58 -> Option 2. Environmentally Preferable Products
K59: HM
K60: HM
C61: Select the criteria met by at least 90% of the component: | K61: HM
C62: No Floor Covering (2 points) | K62: HM | P62: Verify that installed components satisfy specific credit requirements, using product literature, labels, or other documentation.
C63: Floor Covering (1 point) | D63: At least 25% reclaimed | K63: HM | L63: Reused wood floors | M63: JML | N63: 2017-11-14 | P63: Verify that installed components satisfy specific credit requirements, using product literature, labels, or other documentation.
K64: HM
C65: Insulation (1 point) | D65: At least 25% postconsumer or 50% preconsumer recycled content | K65: HM | L65: Cellulose | M65: JML | N65: 2017-11-14 | P65: Verify that installed components satisfy specific credit requirements, using product literature, labels, or other documentation.
K66: HM
C67: Sheathing (1 point) | K67: HM | P67: Verify that installed components satisfy specific credit requirements, using product literature, labels, or other documentation.
K68: HM
C69: Framing (1 point) | D69: At least 25% reclaimed | K69: HM | L69: Complete Rehab | M69: JML | P69: Verify that installed components satisfy specific credit requirements, using product literature, labels, or other documentation.
K70: HM
C71: Drywall (1 point) | K71: HM | P71: Verify that installed components satisfy specific credit requirements, using product literature, labels, or other documentation.
K72: HM
C73: Concrete (1 point) | D73: Concrete with 90% recycled content aggregate | K73: HM | L73: Rehab | M73: JML | P73: Verify that installed components satisfy specific credit requirements, using product literature, labels, or other documentation.
K74: HM
C75: Roofing (1 point) | K75: HM | L75: Rehab, re used roof framing members | M75: JML | P75: Verify that installed components satisfy specific credit requirements, using product literature, labels, or other documentation.
D76: At least 25% reclaimed | K76: HM
C77: Siding (1 point) | K77: HM | P77: Verify that installed components satisfy specific credit requirements, using product literature, labels, or other documentation.
K78: HM
K79: HM
C80: Select criteria met for at least 3 of the following additional components by at least 90% of the component (1 point): | K80: HM
C81: Doors | K81: HM | P81: Verify that installed components satisfy specific credit requirements, using product literature, labels, or other documentation.
K82: HM
C83: Cabinets | K83: HM | P83: Verify that installed components satisfy specific credit requirements, using product literature, labels, or other documentation.
K84: HM
C85: Counters | K85: HM | P85: Verify that installed components satisfy specific credit requirements, using product literature, labels, or other documentation.
K86: HM
C87: Interior Trim | K87: HM | P87: Verify that installed components satisfy specific credit requirements, using product literature, labels, or other documentation.
K88: HM
C89: Decking/Patio | K89: HM | P89: Verify that installed components satisfy specific credit requirements, using product literature, labels, or other documentation.
K90: HM
C91: Windows | K91: HM | P91: Verify that installed components satisfy specific credit requirements, using product literature, labels, or other documentation.
K92: HM
K93: HM
A94: MRc3 | B94: =IF(RatingSystem=1,HYPERLINK("http://www.usgbc.org/node/2613092",L94),HYPERLINK("http://www.usgbc.org/node/2695214",L94)) -> MR Credit Construction Waste Management | K94: HM | L94: MR Credit Construction Waste Management
K95: HM
B96: Up to 3 points | E96: Preliminary Y | F96: 0 | G96: M | H96: 0 | I96: Verified | J96: 0 | K96: HM | M96: Responsible Party
B97: Exemplary Performance: For renovation projects, track and divert at least 50% of demolition waste. | K97: HM
K98: HM
K99: HM
C100: 11460 | D100: =CONCATENATE("LEED Reference Home Baseline Waste",IF(Instructions!$I$62=1," (lbs)"," (kg)")) -> LEED Reference Home Baseline Waste (lbs) | K100: HM | P100: Verify that calculations of construction waste rate are based on waste hauling documents.
K101: HM
D102: =CONCATENATE("Total Waste",IF(Instructions!$I$62=1," (lbs)"," (kg)")) -> Total Waste (lbs) | K102: HM
D103: =CONCATENATE("Recycled Waste",IF(Instructions!$I$62=1," (lbs)"," (kg)")) -> Recycled Waste (lbs) | K103: HM
C104: =C102-(0.25*C103) -> 0 | D104: =CONCATENATE("Project Construction Waste",IF(Instructions!$I$62=1," (lbs)"," (kg)")) -> Project Construction Waste (lbs) | K104: HM
C105: =IFERROR(IF(AND(C100="",C102="",C103=""),"",(1-(C104/C100))),0) -> 1 | D105: Percent reduction below baseline (%) | K105: HM
K106: HM
A107: MRc4 | B107: =IF(RatingSystem=1,HYPERLINK("http://www.usgbc.org/node/2613034",L107),HYPERLINK("",L107)) -> MR Credit Material-Efficient Framing | K107: H | L107: MR Credit Material-Efficient Framing
K108: H
B109: Up to 2 points | E109: Preliminary Y | F109: 0 | G109: M | H109: 0 | I109: Verified | J109: 0 | K109: H | M109: Responsible Party
B110: Exemplary Performance: Achieve a minimum of 2 points to earn up to 1/2 point for each additional requirement met. | K110: H
K111: H
K112: H
C113: Select one of the following for at least 90% of each component: (1 point) | K113: H
C114: (Select one) | D114: No more than one horizontal 2x top plate on walls by aligning studs with joists and roof rafters was installed. | K114: H | P114: Conduct on-site verification that framing was installed per credit requirements.
C115: (Select one) | D115: Window and door headers were placed in the rim joist. | K115: H | P115: Conduct on-site verification that framing was installed per credit requirements.
C116: (Select one) | D116: Raised (directly beneath the top plate), single-ply headers not more than 2 inches nominal thickness in a 2x4 wall or 4 inches nominal thickness in a 2x6 wall, were installed. | K116: H | P116: Conduct on-site verification that framing was installed per credit requirements.
K117: H
C118: (Select one) | D118: Structural insulated panels (SIPs) were installed for walls. | K118: H | P118: Conduct on-site verification that framing was installed per credit requirements.
K119: H
C120: Select at least 2 of the following for at least 90% of each component: (0.5 point) | K120: H
C121: (Select one) | D121: Headers were sized for actual loads. | K121: H | P121: Conduct on-site verification that framing was installed per credit requirements.
C122: (Select one) | D122: Ladder blocking or drywall clips were used. | K122: H | P122: Conduct on-site verification that framing was installed per credit requirements.
C123: (Select one) | D123: Two-stud corners or California corners were used. | K123: H | P123: Conduct on-site verification that framing was installed per credit requirements.
K124: H
C125: Select all that apply for at least 90% of each component: (0.5 point each) | K125: H
C126: (Select one) | D126: Interior wall studs were spaced greater than 16 inches (400 mm) o.c. | K126: H | P126: Conduct on-site verification that framing was installed per credit requirements.
C127: (Select one) | D127: Floor joists were spaced greater than 16 inches (400 mm) o.c. | K127: H | P127: Conduct on-site verification that framing was installed per credit requirements.
C128: (Select one) | D128: Roof rafters were spaced greater than 16 inches (400 mm) o.c | K128: H | P128: Conduct on-site verification that framing was installed per credit requirements.

Sheet EQ
B1: Indoor Environmental Quality | L1: Notes | M1: Verified (initials) | N1: Date Verified | O1: Verification Details | P1: Verification Measure | Q1: QAD Verification Notes
E3: Preliminary Y | F3: =SUM(F424,F407,F312,F291,F284,F237,F196,F177) -> 10.5 | G3: Maybe | H3: =SUM(H424,H407,H312,H291,H284,H237,H196,H177) -> 0 | I3: Verified | J3: =SUM(J424,J407,J312,J291,J284,J237,J196,J177) -> 10.5
A5: EQp1 | B5: =IF(RatingSystem=1,HYPERLINK("http://www.usgbc.org/node/2612401",L5),HYPERLINK("http://www.usgbc.org/node/2612401",L5)) -> EQ Prerequisite Ventilation | K5: HM | L5: EQ Prerequisite Ventilation
K6: HM
B7: Required | F7: Required | I7: Verified | J7: =IF(OR(J10="Y",J31="Y"),"Y","N") -> Y | K7: HM | M7: Responsible Party
K8: HM
K9: HM
C10: Case 1. Single Family | I10: V | J10: Y | K10: HM | L10: =C10 -> Case 1. Single Family
K11: HM
K12: HM
C13: False | D13: The project has earned the EPA Indoor airPLUS label | K13: HM
C14: OR | K14: HM
C15: Local Exhaust | K15: HM | L15: =C15 -> Local Exhaust
C16: Confirm all of the following have been implemented on the project: | K16: HM
C17: True | D17: Local exhaust systems meeting the requirements of ASHRAE Standard 62.2–2010, Sections 5 and 7 or local equivalent, whichever is more stringent, were installed in all bathrooms (including half-baths) and the kitchen. | K17: HM | L17: Site verified | M17: JML | N17: 2017-11-14 | P17: Verify that bathroom fans meet prerequisite requirements for sound and performance AND Test exhaust fans to ensure they are exhausting sufficient airflow to meet prerequisite requirements, and verify that exhaust goes directly to outdoors.
K18: HM | L18: Site Verified | M18: JML | N18: 2017-11-14 | P18: Verify that kitchen fans meet prerequisite requirements for sound and performance; AND Test exhaust fans to ensure they are exhausting sufficient airflow to meet prerequisite requirements, and verify that exhaust goes directly to outdoors.
K19: HM
C20: True | D20: Local exhaust systems exhaust air directly to the outdoors. | K20: HM
K21: HM
C22: True | D22: All bathroom exhaust fans are ENERGY STAR-labeled or an HRV or ERV is used. | K22: HM
K23: HM
C24: (Select one) | D24: For exhaust hood systems capable of exhausting in excess of 400 cubic feet per minute (188 liters per second), makeup air is provided at a rate approximately equal to the exhaust air rate. Makeup air systems have a means of closure and can be automatically controlled to start and operate simultaneously with the exhaust system. | K24: HM | P24: If exhaust hood can exhaust more than 400 cfm, conduct on-site verification that makeup air source is installed with damper that opens when exhaust fan is turned on.
K25: HM
K26: HM
C27: Whole House Mechanical Ventilation | K27: HM | L27: =C27 -> Whole House Mechanical Ventilation
C28: True | D28: The building meets ASHRAE Standard 62.2-2010 Sections 4 and 7 or local equivalent, whichever is more stringent. | K28: HM | L28: Balanced ERV | M28: JML | N28: 2017-11-14 | P28: Verify that whole house mechanical ventilation calculation is correct.
K29: HM
C30: OR | K30: HM
C31: Case 2. Multifamily | I31: V | K31: HM | L31: =C31 -> Case 2. Multifamily
K32: HM
K33: HM
C34: Local Exhaust | K34: HM | L34: =C34 -> Local Exhaust
C35: Confirm all of the following have been implemented on the project: | K35: HM
C36: (Select one) | D36: Local exhaust systems meeting the requirements of ASHRAE Standard 62.2–2010, Sections 5 and 7 or local equivalent, whichever is more stringent, were installed in all bathrooms (including half-baths) and the kitchen. | K36: HM | P36: Verify that bathroom fans meet prerequisite requirements for sound and performance AND Test exhaust fans to ensure they are exhausting sufficient airflow to meet prerequisite requirements, and verify that exhaust goes directly to outdoors.
K37: HM | P37: Verify that kitchen fans meet prerequisite requirements for sound and performance; AND Test exhaust fans to ensure they are exhausting sufficient airflow to meet prerequisite requirements, and verify that exhaust goes directly to outdoors.
K38: HM
C39: (Select one) | D39: Local exhaust systems exhaust air directly to the outdoors. | K39: HM
K40: HM
C41: (Select one) | D41: All bathroom exhaust fans are ENERGY STAR-labeled or an HRV or ERV is used. | K41: HM
K42: HM
C43: (Select one) | D43: For exhaust hood systems capable of exhausting in excess of 400 cubic feet per minute (188 liters per second), makeup air is provided at a rate approximately equal to the exhaust air rate. Makeup air systems have a means of closure and can be automatically controlled to start and operate simultaneously with the exhaust system. | K43: HM | P43: If exhaust hood can exhaust more than 400 cfm (188 lps), conduct on-site verification that makeup air source is installed with damper that opens when exhaust fan is turned on.
K44: HM
K46: HM
C47: Whole Unit Mechanical Ventilation | K47: HM | L47: =C47 -> Whole Unit Mechanical Ventilation
C48: (Select one) | D48: The project meets ASHRAE Standard 62.2-2010 Sections 4 and 7 or local equivalent, whichever is more stringent. | K48: HM | P48: Verify that whole house mechanical ventilation calculation is correct.
K49: HM
C50: Non-Unit Spaces | K50: HM
C51: (Select one) | D51: The project meets the minimum requirements of ASHRAE Standard 62.1-2010 Sections 4 -7 or local equivalent, whichever is more stringent. | K51: HM
K52: HM
C53: (Select one) | D53: The project is located in a nonattainment area for PM2.5. The project has installed MERV 11 or higher filters. | K53: HM
K54: HM
C55: (Select one) | D55: The project is located in a nonattainment area for ozone. | K55: HM
K56: HM
A57: EQp2 | B57: =IF(RatingSystem=1,HYPERLINK("http://www.usgbc.org/node/2612425",L57),HYPERLINK("http://www.usgbc.org/node/2612425",L57)) -> EQ Prerequisite Combustion Venting | K57: HM | L57: EQ Prerequisite Combustion Venting
K58: HM
B59: Required | F59: Required | I59: Verified | J59: Y | K59: HM | M59: Responsible Party
K60: HM
K61: HM
C62: False | D62: The project has earned the EPA Indoor airPLUS label | K62: HM
D63: OR | K63: HM
C64: True | D64: No unvented combustion appliances were installed (ovens and ranges excluded). | K64: HM | L64: Site verified | M64: JML | N64: 2017-11-14 | P64: Conduct on-site verification that no unvented combustion appliances are installed.
C65: True | D65: A carbon monoxide (CO) monitor is installed on each floor, hard-wired with a battery backup. | K65: HM | L65: Site verified | M65: JML | N65: 2017-11-14 | P65: Conduct on-site verification that carbon monoxide monitors or sensors are installed on each floor and in every unit.
K66: HM
C67: For projects with fireplaces or woodstoves installed | K67: HM | L67: =C67 -> For projects with fireplaces or woodstoves installed
C68: N/A | D68: Provide doors that close or a solid glass enclosure. | K68: HM | P68: Conduct on-site verification that any fireplace or woodstove has doors or seal AND for any fireplaces or woodstoves that are not closed-combustion or power-vented, conduct combustion appliance zone depressurization to ensure depressurization of zone is less than 5 Pa.
K69: HM
C70: N/A | D70: Closed-combustion, power-vented or passes BPI or RESENT combustion safety protocols | K70: HM
K71: HM
C72: For projects where space and water heating equipment involving combustion are installed | K72: HM | L72: =C72 -> For projects where space and water heating equipment involving combustion are installed
C73: Select one of the following: | K73: HM
C74: N/A | D74: Equipment is installed with closed combustion (i.e. sealed supply air and exhaust ducting) | K74: HM | P74: Conduct on-site verification that any combustion space- or water-heating equipment is installed with closed combustion or power-vented exhaust or is located in a detached building or open-air facility.
K75: HM
C76: N/A | D76: Equipment is installed with power-vented exhaust | K76: HM
K77: HM
C78: N/A | D78: Equipment is located in a detached utility building or open-air facility | K78: HM
K79: HM
A80: EQp3 | B80: =IF(RatingSystem=1,HYPERLINK("http://www.usgbc.org/node/2612431",L80),HYPERLINK("http://www.usgbc.org/node/2612431",L80)) -> EQ Prerequisite Garage Pollutant Protection | K80: HM | L80: EQ Prerequisite Garage Pollutant Protection
K81: HM
B82: Required | F82: Required | I82: Verified | J82: Y | K82: HM | M82: Responsible Party
K83: HM
K84: HM
C85: False | D85: The project has earned the EPA Indoor airPLUS label | K85: HM | L85: No Garage
D86: OR | K86: HM
C87: (Select one) | D87: All air-handling equipment and ductwork is placed outside the fire-rated envelope of the garage. | K87: HM | L87: No Garage | P87: Conduct on-site verification that all air-handling equipment and ductwork are located outside fire-rated envelope of garage.
C88: (Select one) | D88: Shared surfaces between the garage and conditioned spaces are tightly sealed. | K88: HM
K89: HM
C90: Conditioned Spaces Above Garage | K90: HM | L90: =C90 -> Conditioned Spaces Above Garage
C91: N/A | D91: All penetrations and all connecting floor and ceiling joist bays are sealed. | K91: HM | P91: Conduct on-site verification that surfaces between garage and conditioned spaces are sealed and weather-stripped.
K92: HM
C93: Conditioned Spaces Next to Garage | K93: HM | L93: =C93 -> Conditioned Spaces Next to Garage
C94: N/A | D94: All doors are weather-striped. | K94: HM | P94: Conduct on-site verification that carbon monoxide monitors are installed in all rooms that share door with garage.
K95: HM
C96: N/A | D96: Carbon monoxide detectors are installed in rooms that share a door with the garage | K96: HM
K97: HM
C98: N/A | D98: All penetrations and all cracks at the base of the walls are sealed. | K98: HM
K99: HM
A100: EQp4 | B100: =IF(RatingSystem=1,HYPERLINK("http://www.usgbc.org/node/2612438",L100),HYPERLINK("http://www.usgbc.org/node/2612438",L100)) -> EQ Prerequisite Radon-Resistant Construction | K100: HM | L100: EQ Prerequisite Radon-Resistant Construction
K101: HM
B102: Required | F102: Required | I102: Verified | J102: =IF(OR(J106="Y",J112="Y",J126="Y"),"Y","N") -> Y | K102: HM | M102: Responsible Party
B103: Exemplary Performance: For projects in radon zones 2 and 3, install a qualifying passive radon ventilation system. | K103: HM
K104: HM
K105: HM
C106: EPA Indoor airPLUS label | I106: V | K106: HM | L106: =C106 -> EPA Indoor airPLUS label
K107: HM
K108: HM
C109: False | D109: The project has earned the EPA Indoor airPLUS label | K109: HM
K110: HM
C111: OR | K111: HM
C112: Case 1. New Construction | I112: V | K112: HM | L112: =C112 -> Case 1. New Construction
K113: HM
K114: HM
D115: EPA radon zone | K115: HM | P115: Conduct on-site verification that building is elevated at least 2 feet (600 millimeters), with open air space between building and ground, or built over the garage.
K116: HM
C117: For projects in EPA radon zone 1 | K117: HM | L117: =C117 -> For projects in EPA radon zone 1
C118: (Select one) | D118: There is a capillary break per the Indoor airPLUS specifications. | K118: HM | P118: Conduct on-site verification that radon-resistant construction elements are installed, including gas-permeable layer (e.g., gravel) and capillary break (e.g., plastic sheeting).
C119: (Select one) | D119: An electrical outlet has been provided near vent piping in the attic to facilitate future fan installation. | K119: HM | P119: Conduct on-site verification that radon-resistant construction elements are installed, including electrical outlet near vent piping.
C120: (Select one) | D120: A gas-tight vertical vent pipe extending up through the conditioned spaces and terminating above the roof opening has been installed. | K120: HM | P120: Conduct on-site verification that radon-resistant construction elements are installed, including 3- or 4-inch (approximately 80- or 100-millimeter) vent piping that meets requirements.
D121: OR | K121: HM
C122: (Select one) | D122: The house is elevated by at least 2 feet (600 millimeters) with open air space between building and ground or there is a garage under the building. | K122: HM
K123: HM
K124: HM
C125: OR | K125: HM
C126: Case 2. Renovation of Existing Building | I126: V | J126: Y | K126: HM | L126: =C126 -> Case 2. Renovation of Existing Building
K127: HM
K128: HM
C129: 2 | D129: EPA radon zone | K129: HM | L129: Radon Zone 2 | M129: JML | N129: 2017-07-26 | P129: Conduct on-site verification that building is elevated at least 2 feet (600 millimeters), with open air space between building and ground, or built over the garage.
K130: HM
C131: For renovation projects in EPA radon zone 1 with no slab work being performed | K131: HM
D132: Radon test results (pCi/L) | K132: HM
K133: HM
C134: (Select one) | D134: If results are greater than 4 pCi/L, an active ventilation system has been installed. | K134: HM
K135: HM
A136: EQp5 | B136: =IF(RatingSystem=1,HYPERLINK("http://www.usgbc.org/node/2612443",L136),HYPERLINK("http://www.usgbc.org/node/2612443",L136)) -> EQ Prerequisite Air Filtering | K136: HM | L136: EQ Prerequisite Air Filtering
K137: HM
B138: Required | F138: Required | I138: Verified | J138: Y | K138: HM | M138: Responsible Party
K139: HM
K140: HM
C141: False | D141: The project has earned the EPA Indoor airPLUS label | K141: HM
D142: OR | K142: HM
C143: 8 | D143: MERV rating of filters on recirculating space conditioning systems | K143: HM | L143: Site verified | M143: JML | N143: 2017-11-14 | P143: Conduct on-site verification that air filters of MERV 8 or higher are installed on all forced-air heating and cooling systems, using product literature or labels AND Conduct on-site verification that mechanical air filters are installed on all nonducted forced air heating and cooling systems in air-handling unit.
C144: 6 | D144: MERV rating of filters on mechanically supplied outdoor air systems with 10 ft (3 m) or more of ductwork | K144: HM | L144: Site verified | M144: JML | N144: 2017-11-14 | P144: Conduct on-site verification that air filters of MERV 6 or higher are installed on all supply ventilation systems with at least 10 feet (3 meters) of ductwork, using product literature or labels.
K145: HM
A146: EQp6 | B146: =IF(RatingSystem=1,HYPERLINK("http://www.usgbc.org/node/2612450",L146),HYPERLINK("http://www.usgbc.org/node/2612450",L146)) -> EQ Prerequisite Environmental Tobacco Smoke | K146: HM | L146: EQ Prerequisite Environmental Tobacco Smoke
K147: HM
B148: Required | F148: Required | I148: Verified | J148: N | K148: HM | M148: Responsible Party
K149: HM
K150: HM
C151: For multifamily projects | K151: HM | L151: =C151 -> For multifamily projects
C152: (Select one) | D152: Smoking is prohibited in all common areas of the building. | K152: HM | P152: Conduct on-site verification of signage indicating smoking and nonsmoking areas.
K153: HM
C154: (Select one) | D154: Smoking is prohibited outside the project building(s) except in designated smoking areas located at least 25 ft (7.5 m) from all entries, outdoor air intakes, and operable windows. | K154: HM | P154: Conduct on-site verification that any smoking areas are at least 25 feet (7.5 meters) away from entries, outdoor air intakes, and operable windows.
K155: HM
K156: HM
C157: (Select one) | D157: Signage communicating the smoking policy has been installed. | K157: HM
K158: HM
A159: EQp7 | B159: =IF(RatingSystem=1,HYPERLINK("http://www.usgbc.org/node/2612457",L159),HYPERLINK("http://www.usgbc.org/node/2612457",L159)) -> EQ Prerequisite Compartmentalization | K159: HM | L159: EQ Prerequisite Compartmentalization
K160: HM
B161: Required | F161: Required | I161: Verified | J161: N | K161: HM | M161: Responsible Party
K162: HM
K163: HM
C164: For multifamily and attached single-family projects | K164: HM | L164: =C164 -> For multifamily and attached single-family projects
C165: True | D165: Each residential unit has sealed penetrations through walls, ceilings, and floors and vertical chases adjacent to units. | K165: HM | L165: Single Family Detached | P165: Verify penetrations in walls, ceilings, and floors and vertical chases adjacent to the units are sealed.
K166: HM
C167: (Select one) | D167: All doors in the residential units leading to common hallways have weather-stripping. | K167: HM | P167: Verify all doors in the residential units leading to common hallways are weather-striped.
K168: HM
C169: True | D169: All exterior doors and operable windows have weather-stripping.. | K169: HM | P169: Verify all exterior doors and operable windows are weather-stripped.
K170: HM
D171: =CONCATENATE("Blower door test results",IF(Instructions!$I$62=1," (cfm50)"," (cmm50)")) -> Blower door test results (cfm50) | K171: HM | P171: Conduct on-site testing of compartmentalization using a blower door; OR Verify compartmentalization test results conducted by qualified energy rater or USGBC-approved alternative, according to HERS procedures.
D172: =CONCATENATE("Envelope enclosure area",IF(Instructions!$I$62=1," (sq ft)"," (sq m)")) -> Envelope enclosure area (sq ft) | K172: HM
C173: =IFERROR(C171/C172,0) -> 0 | D173: =CONCATENATE("Leakage per area of enclosure",IF(Instructions!$I$62=1," (cfm50/sq ft)"," (cmm50/sq m)")) -> Leakage per area of enclosure (cfm50/sq ft) | K173: HM
K174: HM
A175: EQc1 | B175: =IF(RatingSystem=1,HYPERLINK("http://www.usgbc.org/node/2612464",L175),HYPERLINK("http://www.usgbc.org/node/2612464",L175)) -> EQ Credit Enhanced Ventilation | K175: HM | L175: EQ Credit Enhanced Ventilation
K176: HM
B177: Up to 3 points | E177: Preliminary Y | F177: =SUM(F180,F186) -> 3 | G177: M | H177: =SUM(H180,H186) -> 0 | I177: Verified | J177: =SUM(J180,J186) -> 3 | K177: HM | M177: Responsible Party
K178: HM
K179: HM
C180: Option 1. Enhanced Local Exhaust (1 point) | E180: Y | F180: 1 | G180: M | H180: 0 | I180: V | J180: 1 | K180: HM | L180: =C180 -> Option 1. Enhanced Local Exhaust (1 point)
K181: HM
K182: HM
C183: automatic humidistat controller | E183: Bathroom exhaust fan control type in every bathroom with a shower, bathtub, or spa | K183: HM | L183: Site verified | M183: JML | N183: 2017-11-14 | P183: Conduct on-site verification that each full bathroom has exhaust fan that either is controlled by occupancy sensor, humidistat, or delay timer that operates fan for at least 20 minutes, or runs continuously.
K184: HM
C185: AND/OR | K185: HM
C186: Option 2. Enhanced Whole-House Ventilation (2 points) | E186: Y | F186: 2 | G186: M | H186: 0 | I186: V | J186: 2 | K186: HM | L186: =C186 -> Option 2. Enhanced Whole-House Ventilation (2 points)
K187: HM
K188: HM
C189: True | D189: A balanced whole-house ventilation system was designed and installed that meets ASHRAE 62.2-2010 sections 4 and 7 in each home or unit. | K189: HM | L189: Site verified | M189: JML | N189: 2017-11-14 | P189: Conduct on-site verification that whole-house (or whole-unit) ventilation strategy is balanced.
K191: HM
C192: True | D192: The system does not exceed ASHRAE 62.2-2010 requirements by more than 10%. | K192: HM | L192: Site verified,ERV ran at 70% | M192: JML | N192: 2017-11-14 | P192: Conduct on-site verification that ventilation system is programmed to not exceed ASHRAE 62.2 by more than 10%.
K193: HM
A194: EQc2 | B194: =IF(RatingSystem=1,HYPERLINK("http://www.usgbc.org/node/2612496",L194),HYPERLINK("http://www.usgbc.org/node/2612497",L194)) -> EQ Credit Contaminant Control | K194: HM | L194: EQ Credit Contaminant Control
K195: HM
B196: Up to 2 points | E196: Preliminary Y | F196: =IF(SUM(F200,F209,F217,F230)>2,2,SUM(F200,F209,F217,F230)) -> 1 | G196: M | H196: =IF(SUM(H200,H209,H217,H230)>2,2,SUM(H200,H209,H217,H230)) -> 0 | I196: Verified | J196: =IF(SUM(J200,J209,J217,J230)>2,2,SUM(J200,J209,J217,J230)) -> 1 | K196: HM | M196: Responsible Party
B197: Exemplary Performance: Achieve a minimum of 2 1/2 points to earn another 1/2 point. | K197: HM
K198: HM
K199: HM
C200: Option 1. Walk-off Mats (0.5 point) | E200: Y | G200: M | I200: V | K200: HM | L200: =C200 -> Option 1. Walk-off Mats (0.5 point)
K201: HM
K202: HM
C203: False | D203: For all primary entryways, a permanent walk-off mat that is at least 4 feet (1.2 meters) long and allows access for cleaning has been installed. | K203: HM | P203: Conduct on-site verification that permanent, cleanable, walk-off mats at least 4 feet (1.2 meters) long are installed at each entry (for common exterior entryways in multifamily buildings, at least 10 feet, or 3 meters, long).
K204: HM
... 226 more rows

Sheet IN
B1: Innovation | L1: Notes | M1: Verified (initials) | N1: Date Verified | O1: Verification Details | P1: Verification Measure | Q1: QAD Verification Notes
E3: Preliminary Y | F3: =SUM(F14,F53) -> 2 | G3: Maybe | H3: =SUM(H14,H53) -> 0 | I3: Verified | J3: =SUM(J14,J53) -> 2
A5: INp1 | B5: =IF(RatingSystem=1,HYPERLINK("http://www.usgbc.org/node/2613096",L5),HYPERLINK("http://www.usgbc.org/node/2613096",L5)) -> IN Prerequisite Preliminary Rating | K5: HM | L5: IN Prerequisite Preliminary Rating
K6: HM
B7: Required | F7: Required | I7: Verified | J7: Y | K7: HM | M7: Responsible Party
K8: HM
K9: HM
C10: True | D10: Preliminary rating and meeting are complete. | K10: HM | L10: Meeting was held 3/29/17 at Catalyst Partners | M10: JML | N10: 2017-03-29 | P10: Participate in preliminary rating.
K11: HM
A12: INc1 | B12: =IF(RatingSystem=1,HYPERLINK("http://www.usgbc.org/node/2613189",L12),HYPERLINK("http://www.usgbc.org/node/2613189",L12)) -> IN Credit Innovation | K12: HM | L12: IN Credit Innovation
K13: HM
B14: Up to 5 points | E14: Preliminary Y | F14: =SUM(F17,F24,F30) -> 1 | G14: M | H14: =SUM(H17,H24,H30) -> 0 | I14: Verified | J14: =SUM(J17,J24,J30) -> 1 | K14: HM | M14: Responsible Party
K15: HM
K16: HM
C17: Option 1. Innovation (1 point) | E17: Y | G17: M | I17: V | K17: HM | L17: =C17 -> Option 1. Innovation (1 point)
K18: HM
K19: HM
C20: Describe the intent of the proposed innovation credit. | K20: HM
K21: HM | P21: Verify that all components listed in USGBC-approved Innovation request are installed;
K22: HM
C23: AND/OR | K23: HM
C24: Option 2. Pilot (1 point) | E24: Y | G24: M | I24: V | K24: HM | L24: =C24 -> Option 2. Pilot (1 point)
K25: HM
K26: HM
F27: Pilot credit name | K27: HM | P27: Verify that all components listed in USGBC-approved pilot credit are installed.
K28: HM
C29: AND/OR | K29: HM
C30: Option 3. Additional Strategies (0.5-3 points) | E30: Y | F30: 1 | G30: M | I30: V | J30: 1 | K30: HM | L30: =C30 -> Option 3. Additional Strategies (0.5-3 points)
K31: HM
K32: HM
C33: Exemplary Performance | F33: Strategy | K33: HM | M33: JML | N33: 2017-11-14 | P33: Verify that all components listed in USGBC-approved Innovation request are installed; OR Verify that all components listed in USGBC-approved pilot credit are installed.
C34: MR Option 2 | F34: Credit name | K34: HM
K35: HM
F36: Strategy | K36: HM | P36: Verify that all components listed in USGBC-approved Innovation request are installed; OR Verify that all components listed in USGBC-approved pilot credit are installed.
F37: Credit name | K37: HM
K38: HM
F39: Strategy | K39: HM | P39: Verify that all components listed in USGBC-approved Innovation request are installed; OR Verify that all components listed in USGBC-approved pilot credit are installed.
F40: Credit name | K40: HM
K41: HM
F42: Strategy | K42: HM | P42: Verify that all components listed in USGBC-approved Innovation request are installed; OR Verify that all components listed in USGBC-approved pilot credit are installed.
F43: Credit name | K43: HM
K44: HM
F45: Strategy | K45: HM | P45: Verify that all components listed in USGBC-approved Innovation request are installed; OR Verify that all components listed in USGBC-approved pilot credit are installed.
F46: Credit name | K46: HM
K47: HM
F48: Strategy | K48: HM | P48: Verify that all components listed in USGBC-approved Innovation request are installed; OR Verify that all components listed in USGBC-approved pilot credit are installed.
F49: Credit name | K49: HM
K50: HM
A51: INc2 | B51: =IF(RatingSystem=1,HYPERLINK("http://www.usgbc.org/node/2613192",L51),HYPERLINK("http://www.usgbc.org/node/2613192",L51)) -> IN Credit LEED Accredited Professional | K51: HM | L51: IN Credit LEED Accredited Professional
K52: HM
B53: 1 point | E53: Preliminary Y | F53: 1 | G53: M | H53: 0 | I53: Verified | J53: 1 | K53: HM | M53: Responsible Party
K54: HM
K55: HM
C56: Jordin Winn | F56: Name of credential holder | K56: HM | L56: Verified on USGBC.org | M56: JML | N56: 2017-11-14 | P56: Verify that principal member of project team is LEED AP Homes.

Sheet RP
B1: Regional Priority | L1: Notes | M1: Verified (initials) | N1: Date Verified | O1: Verification Details | P1: Verification Measure | Q1: QAD Verification Notes
E3: Preliminary Y | F3: =F7 -> 3 | G3: Maybe | H3: =H7 -> 0 | I3: Verified | J3: =J7 -> 3
A5: RPc1 | B5: =IF(RatingSystem=1,HYPERLINK("http://www.usgbc.org/node/2613197",L5),HYPERLINK("http://www.usgbc.org/node/2613197",L5)) -> RP Credit Regional Priority | K5: HM | L5: RP Credit Regional Priority
K6: HM
B7: Up to 4 points | E7: Preliminary Y | F7: 3 | G7: M | H7: 0 | I7: Verified | J7: 3 | K7: HM | M7: Responsible Party
K8: HM
K9: HM
C10: Regional priority credits may be found on www.usgbc.org/rpc. | K10: HM
C11: Regional Priority Credit Name | E11: Zone
C12: Indoor Water Use | K12: HM | M12: JML
C13: Site Selection | K13: HM | M13: JML
C14: Annual Energy Use | K14: HM | M14: JML
K15: HM | M15: JML
K16: HM
K17: HM
K18: HM
K19: HM

Sheet Water Reduction Calculator
B2: Water Reduction Calculator
B5: Use this calculator to determine if your building uses less water than the requirements of WE Credit Total Water Use. Note: This calculator is a relative measure of water use based on how the products are designed and not how they actually perform in the field. Therefore, please use values/rates from the product specifications. Measurements from field testing should NOT be used in this calculator, but may be used to identify improperly installed or malfunctioning products.
B7: Outdoor Water Use
B8: Provide the following values from the WaterSense Water Budget Calculator
B9: =CONCATENATE("Baseline for the site",IF(Instructions!$I$62=1," (gal/peak month)"," (l/peak month)")) -> Baseline for the site (gal/peak month)
B10: =CONCATENATE("Landscape water requirement for site",IF(Instructions!$I$62=1," (gal/peak month)"," (l/peak month)")) -> Landscape water requirement for site (gal/peak month)
B11: =CONCATENATE("Rainwater or graywater",IF(Instructions!$I$62=1," (gal/peak month)"," (l/peak month)")) -> Rainwater or graywater (gal/peak month)
B13: Unit Information
B14: List the number of each type of unit for the building. This information is used to double check your entries for each fixture type. For single family homes, put '1' by the number of bedrooms.
B15: Unit Type | C15: Number of Units | D15: Occupants | V15: Number of Bedrooms | W15: All units
A16: =IF(B16>0,0,0) -> 0 | B16: Efficiency | D16: =(1+1)*C16 -> 0 | V16: 1 | W16: Efficiency
A17: =IF(B17>0,0,0) -> 0 | B17: 1 Bedroom | D17: =(1+1)*C17 -> 0 | V17: 1 | W17: 1 Bedroom
A18: =IF(B18>0,0,0) -> 0 | B18: 2 Bedrooms | D18: =(2+1)*C18 -> 0 | V18: 2 | W18: 2 Bedrooms
A19: =IF(B19>0,0,0) -> 0 | B19: 3 Bedrooms | D19: =(3+1)*C19 -> 0 | V19: 3 | W19: 3 Bedrooms
A20: =IF(B20>0,0,0) -> 0 | B20: 4 Bedrooms | D20: =(4+1)*C20 -> 0 | V20: 4 | W20: 4 Bedrooms
B21: 5 Bedrooms | D21: =(5+1)*C21 -> 0 | V21: 5 | W21: 5 Bedrooms
B22: 6 Bedrooms | D22: =(6+1)*C22 -> 0 | V22: 6 | W22: 6 Bedrooms
B23: Totals | C23: =SUM(C16:C22) -> 0 | D23: =SUM(D16:D22) -> 0
A24: A
B25: Indoor Water Use
B26: This section determines the average flow rate of each fixture, for each unique unit type which is used to calculate the average indoor water use for each unit's occupants.
B27: Fixture Use for Showers
B28: Enter the flow rate and a brief description for each type of fixture.
B29: Fixture ID | C29: =CONCATENATE("Flow Rate ",IF(Instructions!$I$62=1,"(gpm)","(lpm)")) -> Flow Rate (gpm)
A30: =IF(B30>0,0,0) -> 0
A31: =IF(B31>0,0,0) -> 0
A32: =IF(B32>0,0,0) -> 0
B35: Complete one row for each unique set of units and enter each fixture's information. This will calculate the average water use of the occupant of each unit type. If the fixture is the same throughout the building, select 'All units' under 'Unit Type' and select the appropriate fixture in Fixture 1.
B36: Unit Information | F36: Design | P36: Baseline | S36: Totals
B37: Unit Type | C37: Unit Description | D37: Number of Units | E37: Occupants | F37: Fixture 1 | H37: Fixture 2 | J37: Fixture 3 | L37: Fixture 4 | N37: =CONCATENATE("Average Flow Rate ",IF(Instructions!$I$62=1,"(gpm)","(lpm)")) -> Average Flow Rate (gpm) | O37: =CONCATENATE("Calculated Water Usage ",IF(Instructions!$I$62=1," (gallons)"," (liters)")) -> Calculated Water Usage (gallons) | P37: Estimated Fixture Usage (minutes) | Q37: =CONCATENATE("Flow Rate ",IF(Instructions!$I$62=1,"(gpm)","(lpm)")) -> Flow Rate (gpm) | R37: =CONCATENATE("Estimated Water Usage ",IF(Instructions!$I$62=1," (gallons)"," (liters)")) -> Estimated Water Usage (gallons) | S37: =CONCATENATE("Design Monthly Water Use ",IF(Instructions!$I$62=1," (gal/month)"," (l/month)")) -> Design Monthly Water Use (gal/month) | T37: =CONCATENATE("Baseline Monthly Water Use ",IF(Instructions!$I$62=1," (gal/month)"," (l/month)")) -> Baseline Monthly Water Use (gal/month) | V37: Number of Bedrooms
F38: Fixture 1 ID | G38: =CONCATENATE("Fixture 1 Flow Rate ",IF(Instructions!$I$62=1,"(gpm)","(lpm)")) -> Fixture 1 Flow Rate (gpm) | H38: Fixture 2 ID | I38: =CONCATENATE("Fixture 2 Flow Rate ",IF(Instructions!$I$62=1,"(gpm)","(lpm)")) -> Fixture 2 Flow Rate (gpm) | J38: Fixture 3 ID | K38: =CONCATENATE("Fixture 3 Flow Rate ",IF(Instructions!$I$62=1,"(gpm)","(lpm)")) -> Fixture 3 Flow Rate (gpm) | L38: Fixture 4 ID | M38: =CONCATENATE("Fixture 4 Flow Rate ",IF(Instructions!$I$62=1,"(gpm)","(lpm)")) -> Fixture 4 Flow Rate (gpm)
A39: =IF(B39>0,0,0) -> 0 | E39: =IFERROR(IF(B39="All units",$D$23,(V39+1)*D39),0) -> 0 | G39: =IFERROR(VLOOKUP(F39,$B$30:$C$33,2,FALSE),"") ->  | I39: =IFERROR(VLOOKUP(H39,$B$30:$C$33,2,FALSE),"") ->  | K39: =IFERROR(VLOOKUP(J39,$B$30:$C$33,2,FALSE),"") ->  | M39: =IFERROR(VLOOKUP(L39,$B$30:$C$33,2,FALSE),"") ->  | N39: =IFERROR(SUM(G39,I39,K39,M39)/COUNTA(F39,H39,J39,L39),"") ->  | O39: =IFERROR(N39*$P39,"") ->  | P39: =IF(B39<>"",$C$146,"") ->  | Q39: =IF(B39<>"",IF(Instructions!$I$62=1,$F$146,$H$146),"") ->  | R39: =IF(B39<>"",IF(Instructions!$I$62=1,$J$146,$K$146),"") ->  | S39: =IFERROR(O39*30*$E39,"") ->  | T39: =IFERROR(R39*30*$E39,"") ->  | V39: =IFERROR(VLOOKUP(B39,$B$16:$V$22,21,FALSE),"") -> 
A40: =IF(B40>0,0,0) -> 0 | E40: =IFERROR(IF(B40="All units",$D$23,(V40+1)*D40),0) -> 0 | G40: =IFERROR(VLOOKUP(F40,$B$30:$C$33,2,FALSE),"") ->  | K40: =IFERROR(VLOOKUP(J40,$B$30:$C$33,2,FALSE),"") ->  | M40: =IFERROR(VLOOKUP(L40,$B$30:$C$33,2,FALSE),"") ->  | N40: =IFERROR(SUM(G40,I40,K40,M40)/COUNTA(F40,H40,J40,L40),"") ->  | O40: =IFERROR(N40*$P40,"") ->  | P40: =IF(B40<>"",$C$146,"") ->  | Q40: =IF(B40<>"",IF(Instructions!$I$62=1,$F$146,$H$146),"") ->  | R40: =IF(B40<>"",IF(Instructions!$I$62=1,$J$146,$K$146),"") ->  | S40: =IFERROR(O40*30*$E40,"") ->  | T40: =IFERROR(R40*30*$E40,"") ->  | V40: =IFERROR(VLOOKUP(B40,$B$16:$V$22,21,FALSE),"") -> 
A41: =IF(B41>0,0,0) -> 0 | E41: =IFERROR(IF(B41="All units",$D$23,(V41+1)*D41),0) -> 0 | K41: =IFERROR(VLOOKUP(J41,$B$30:$C$33,2,FALSE),"") ->  | M41: =IFERROR(VLOOKUP(L41,$B$30:$C$33,2,FALSE),"") ->  | N41: =IFERROR(SUM(G41,I41,K41,M41)/COUNTA(F41,H41,J41,L41),"") ->  | O41: =IFERROR(N41*$P41,"") ->  | P41: =IF(B41<>"",$C$146,"") ->  | Q41: =IF(B41<>"",IF(Instructions!$I$62=1,$F$146,$H$146),"") ->  | R41: =IF(B41<>"",IF(Instructions!$I$62=1,$J$146,$K$146),"") ->  | S41: =IFERROR(O41*30*$E41,"") ->  | T41: =IFERROR(R41*30*$E41,"") ->  | V41: =IFERROR(VLOOKUP(B41,$B$16:$V$22,21,FALSE),"") -> 
E42: =IFERROR(IF(B42="All units",$D$23,(V42+1)*D42),0) -> 0 | K42: =IFERROR(VLOOKUP(J42,$B$30:$C$33,2,FALSE),"") ->  | M42: =IFERROR(VLOOKUP(L42,$B$30:$C$33,2,FALSE),"") ->  | N42: =IFERROR(SUM(G42,I42,K42,M42)/COUNTA(F42,H42,J42,L42),"") ->  | O42: =IFERROR(N42*$P42,"") ->  | P42: =IF(B42<>"",$C$146,"") ->  | Q42: =IF(B42<>"",IF(Instructions!$I$62=1,$F$146,$H$146),"") ->  | R42: =IF(B42<>"",IF(Instructions!$I$62=1,$J$146,$K$146),"") ->  | S42: =IFERROR(O42*30*$E42,"") ->  | T42: =IFERROR(R42*30*$E42,"") ->  | V42: =IFERROR(VLOOKUP(B42,$B$16:$V$22,21,FALSE),"") -> 
E43: =IFERROR(IF(B43="All units",$D$23,(V43+1)*D43),0) -> 0 | K43: =IFERROR(VLOOKUP(J43,$B$30:$C$33,2,FALSE),"") ->  | M43: =IFERROR(VLOOKUP(L43,$B$30:$C$33,2,FALSE),"") ->  | N43: =IFERROR(SUM(G43,I43,K43,M43)/COUNTA(F43,H43,J43,L43),"") ->  | O43: =IFERROR(N43*$P43,"") ->  | P43: =IF(B43<>"",$C$146,"") ->  | Q43: =IF(B43<>"",IF(Instructions!$I$62=1,$F$146,$H$146),"") ->  | R43: =IF(B43<>"",IF(Instructions!$I$62=1,$J$146,$K$146),"") ->  | S43: =IFERROR(O43*30*$E43,"") ->  | T43: =IFERROR(R43*30*$E43,"") ->  | V43: =IFERROR(VLOOKUP(B43,$B$16:$V$22,21,FALSE),"") -> 
A44: B | B44: Totals for showers | D44: =SUM(D39:D43) -> 0 | E44: =SUM(E39:E43) -> 0 | S44: =SUM(S39:S43) -> 0 | T44: =SUM(T39:T43) -> 0
B47: Fixture Use for Lavatories and Kitchen Faucets
B48: Fixture ID | C48: =CONCATENATE("Flow Rate ",IF(Instructions!$I$62=1,"(gpm)","(lpm)")) -> Flow Rate (gpm)
A49: =IF(B49>0,0,0) -> 0
A50: =IF(B50>0,0,0) -> 0
A51: =IF(B51>0,0,0) -> 0
B54: Unit Information | F54: Design | P54: Baseline | S54: Totals
B55: Unit Type | C55: Unit Description | D55: Number of Units | E55: Occupants | F55: Fixture 1 | H55: Fixture 2 | J55: Fixture 3 | L55: Fixture 4 | N55: =CONCATENATE("Average Flow Rate ",IF(Instructions!$I$62=1,"(gpm)","(lpm)")) -> Average Flow Rate (gpm) | O55: =CONCATENATE("Calculated Water Usage ",IF(Instructions!$I$62=1," (gallons)"," (liters)")) -> Calculated Water Usage (gallons) | P55: Estimated Fixture Usage (minutes) | Q55: =CONCATENATE("Flow Rate ",IF(Instructions!$I$62=1,"(gpm)","(lpm)")) -> Flow Rate (gpm) | R55: =CONCATENATE("Estimated Water Usage ",IF(Instructions!$I$62=1," (gallons)"," (liters)")) -> Estimated Water Usage (gallons) | S55: =CONCATENATE("Design Monthly Water Use ",IF(Instructions!$I$62=1," (gal/month)"," (l/month)")) -> Design Monthly Water Use (gal/month) | T55: =CONCATENATE("Baseline Monthly Water Use ",IF(Instructions!$I$62=1," (gal/month)"," (l/month)")) -> Baseline Monthly Water Use (gal/month) | V55: Number of Bedrooms
F56: Fixture 1 ID | G56: =CONCATENATE("Fixture 1 Flow Rate ",IF(Instructions!$I$62=1,"(gpm)","(lpm)")) -> Fixture 1 Flow Rate (gpm) | H56: Fixture 2 ID | I56: =CONCATENATE("Fixture 2 Flow Rate ",IF(Instructions!$I$62=1,"(gpm)","(lpm)")) -> Fixture 2 Flow Rate (gpm) | J56: Fixture 3 ID | K56: =CONCATENATE("Fixture 3 Flow Rate ",IF(Instructions!$I$62=1,"(gpm)","(lpm)")) -> Fixture 3 Flow Rate (gpm) | L56: Fixture 4 ID | M56: =CONCATENATE("Fixture 4 Flow Rate ",IF(Instructions!$I$62=1,"(gpm)","(lpm)")) -> Fixture 4 Flow Rate (gpm)
A57: =IF(B57>0,0,0) -> 0 | E57: =IFERROR(IF(B57="All units",$D$23,(V57+1)*D57),0) -> 0 | G57: =IFERROR(VLOOKUP(F57,$B$49:$C$52,2,FALSE),"") ->  | I57: =IFERROR(VLOOKUP(H57,$B$49:$C$52,2,FALSE),"") ->  | K57: =IFERROR(VLOOKUP(J57,$B$49:$C$52,2,FALSE),"") ->  | M57: =IFERROR(VLOOKUP(L57,$B$49:$C$52,2,FALSE),"") ->  | N57: =IFERROR(SUM(G57,I57,K57,M57)/COUNTA(F57,H57,J57,L57),"") ->  | O57: =IFERROR(N57*$P57,"") ->  | P57: =IF(B57<>"",$C$147,"") ->  | Q57: =IF(B57<>"",IF(Instructions!$I$62=1,$F$147,$H$147),"") ->  | R57: =IF(B57<>"",IF(Instructions!$I$62=1,$J$147,$K$147),"") ->  | S57: =IFERROR(O57*30*$E57,"") ->  | T57: =IFERROR(R57*30*$E57,"") ->  | V57: =IFERROR(VLOOKUP(B57,$B$16:$V$22,21,FALSE),"") -> 
A58: =IF(B58>0,0,0) -> 0 | E58: =IFERROR(IF(B58="All units",$D$23,(V58+1)*D58),0) -> 0 | G58: =IFERROR(VLOOKUP(F58,$B$49:$C$52,2,FALSE),"") ->  | K58: =IFERROR(VLOOKUP(J58,$B$49:$C$52,2,FALSE),"") ->  | M58: =IFERROR(VLOOKUP(L58,$B$49:$C$52,2,FALSE),"") ->  | N58: =IFERROR(SUM(G58,I58,K58,M58)/COUNTA(F58,H58,J58,L58),"") ->  | O58: =IFERROR(N58*$P58,"") ->  | P58: =IF(B58<>"",$C$147,"") ->  | Q58: =IF(B58<>"",IF(Instructions!$I$62=1,$F$147,$H$147),"") ->  | R58: =IF(B58<>"",IF(Instructions!$I$62=1,$J$147,$K$147),"") ->  | S58: =IFERROR(O58*30*$E58,"") ->  | T58: =IFERROR(R58*30*$E58,"") ->  | V58: =IFERROR(VLOOKUP(B58,$B$16:$V$22,21,FALSE),"") -> 
A59: =IF(B59>0,0,0) -> 0 | E59: =IFERROR(IF(B59="All units",$D$23,(V59+1)*D59),0) -> 0 | K59: =IFERROR(VLOOKUP(J59,$B$49:$C$52,2,FALSE),"") ->  | M59: =IFERROR(VLOOKUP(L59,$B$49:$C$52,2,FALSE),"") ->  | N59: =IFERROR(SUM(G59,I59,K59,M59)/COUNTA(F59,H59,J59,L59),"") ->  | O59: =IFERROR(N59*$P59,"") ->  | P59: =IF(B59<>"",$C$147,"") ->  | Q59: =IF(B59<>"",IF(Instructions!$I$62=1,$F$147,$H$147),"") ->  | R59: =IF(B59<>"",IF(Instructions!$I$62=1,$J$147,$K$147),"") ->  | S59: =IFERROR(O59*30*$E59,"") ->  | T59: =IFERROR(R59*30*$E59,"") ->  | V59: =IFERROR(VLOOKUP(B59,$B$16:$V$22,21,FALSE),"") -> 
E60: =IFERROR(IF(B60="All units",$D$23,(V60+1)*D60),0) -> 0 | K60: =IFERROR(VLOOKUP(J60,$B$49:$C$52,2,FALSE),"") ->  | M60: =IFERROR(VLOOKUP(L60,$B$49:$C$52,2,FALSE),"") ->  | N60: =IFERROR(SUM(G60,I60,K60,M60)/COUNTA(F60,H60,J60,L60),"") ->  | O60: =IFERROR(N60*$P60,"") ->  | P60: =IF(B60<>"",$C$147,"") ->  | Q60: =IF(B60<>"",IF(Instructions!$I$62=1,$F$147,$H$147),"") ->  | R60: =IF(B60<>"",IF(Instructions!$I$62=1,$J$147,$K$147),"") ->  | S60: =IFERROR(O60*30*$E60,"") ->  | T60: =IFERROR(R60*30*$E60,"") ->  | V60: =IFERROR(VLOOKUP(B60,$B$16:$V$22,21,FALSE),"") -> 
E61: =IFERROR(IF(B61="All units",$D$23,(V61+1)*D61),0) -> 0 | K61: =IFERROR(VLOOKUP(J61,$B$49:$C$52,2,FALSE),"") ->  | M61: =IFERROR(VLOOKUP(L61,$B$49:$C$52,2,FALSE),"") ->  | N61: =IFERROR(SUM(G61,I61,K61,M61)/COUNTA(F61,H61,J61,L61),"") ->  | O61: =IFERROR(N61*$P61,"") ->  | P61: =IF(B61<>"",$C$147,"") ->  | Q61: =IF(B61<>"",IF(Instructions!$I$62=1,$F$147,$H$147),"") ->  | R61: =IF(B61<>"",IF(Instructions!$I$62=1,$J$147,$K$147),"") ->  | S61: =IFERROR(O61*30*$E61,"") ->  | T61: =IFERROR(R61*30*$E61,"") ->  | V61: =IFERROR(VLOOKUP(B61,$B$16:$V$22,21,FALSE),"") -> 
A62: C | B62: Totals for lavs and kitchen faucets | D62: =SUM(D57:D61) -> 0 | E62: =SUM(E57:E61) -> 0 | S62: =SUM(S57:S61) -> 0 | T62: =SUM(T57:T61) -> 0
B65: Fixture Use for Toilets
B67: For projects with dual-flush toilets Calculate the average flush rate below and enter the resulting flush rate into the design case flush rate section for toilet.
B68: =CONCATENATE("High flush rate",IF(Instructions!$I$62=1," (gpf)"," (lpf)")) -> High flush rate (gpf)
B69: =CONCATENATE("Low flush rate",IF(Instructions!$I$62=1," (gpf)"," (lpf)")) -> Low flush rate (gpf)
B70: =CONCATENATE("Average flush rate",IF(Instructions!$I$62=1," (gpf)"," (lpf)")) -> Average flush rate (gpf) | E70: =IFERROR((2*E69+E68)/3,0) -> 0
B72: Fixture ID | C72: =CONCATENATE("Flush Rate ",IF(Instructions!$I$62=1,"(gpf)","(lpf)")) -> Flush Rate (gpf)
A73: =IF(B73>0,0,0) -> 0
A74: =IF(B74>0,0,0) -> 0
A75: =IF(B75>0,0,0) -> 0
B78: Unit Information | F78: Design | P78: Baseline | S78: Totals
B79: Unit Type | C79: Unit Description | D79: Number of Units | E79: Occupants | F79: Fixture 1 | H79: Fixture 2 | J79: Fixture 3 | L79: Fixture 4 | N79: =CONCATENATE("Average Flush Rate ",IF(Instructions!$I$62=1,"(gpf)","(lpf)")) -> Average Flush Rate (gpf) | O79: =CONCATENATE("Calculated Water Usage ",IF(Instructions!$I$62=1," (gallons)"," (liters)")) -> Calculated Water Usage (gallons) | P79: Estimated Fixture Usage (flushes) | Q79: =CONCATENATE("Flush Rate ",IF(Instructions!$I$62=1,"(gpf)","(lpf)")) -> Flush Rate (gpf) | R79: =CONCATENATE("Estimated Water Usage ",IF(Instructions!$I$62=1," (gallons)"," (liters)")) -> Estimated Water Usage (gallons) | S79: =CONCATENATE("Design Monthly Water Use ",IF(Instructions!$I$62=1," (gal/month)"," (l/month)")) -> Design Monthly Water Use (gal/month) | T79: =CONCATENATE("Baseline Monthly Water Use ",IF(Instructions!$I$62=1," (gal/month)"," (l/month)")) -> Baseline Monthly Water Use (gal/month) | V79: Number of Bedrooms
F80: Fixture 1 ID | G80: =CONCATENATE("Fixture 1 Flush Rate ",IF(Instructions!$I$62=1,"(gpf)","(lpf)")) -> Fixture 1 Flush Rate (gpf) | H80: Fixture 2 ID | I80: =CONCATENATE("Fixture 2 Flush Rate ",IF(Instructions!$I$62=1,"(gpf)","(lpf)")) -> Fixture 2 Flush Rate (gpf) | J80: Fixture 3 ID | K80: =CONCATENATE("Fixture 3 Flush Rate ",IF(Instructions!$I$62=1,"(gpf)","(lpf)")) -> Fixture 3 Flush Rate (gpf) | L80: Fixture 4 ID | M80: =CONCATENATE("Fixture 4 Flush Rate ",IF(Instructions!$I$62=1,"(gpf)","(lpf)")) -> Fixture 4 Flush Rate (gpf)
A81: =IF(B81>0,0,0) -> 0 | E81: =IFERROR(IF(B81="All units",$D$23,(V81+1)*D81),0) -> 0 | G81: =IFERROR(VLOOKUP(F81,$B$73:$C$76,2,FALSE),"") ->  | I81: =IFERROR(VLOOKUP(H81,$B$73:$C$76,2,FALSE),"") ->  | K81: =IFERROR(VLOOKUP(J81,$B$73:$C$76,2,FALSE),"") ->  | M81: =IFERROR(VLOOKUP(L81,$B$73:$C$76,2,FALSE),"") ->  | N81: =IFERROR(SUM(G81,I81,K81,M81)/COUNTA(F81,H81,J81,L81),"") ->  | O81: =IFERROR(N81*$P81,"") ->  | P81: =IF(B81<>"",$C$148,"") ->  | Q81: =IF(B81<>"",IF(Instructions!$I$62=1,$F$148,$H$148),"") ->  | R81: =IF(B81<>"",IF(Instructions!$I$62=1,$J$148,$K$148),"") ->  | S81: =IFERROR(O81*30*$E81,"") ->  | T81: =IFERROR(R81*30*$E81,"") ->  | V81: =IFERROR(VLOOKUP(B81,$B$16:$V$22,21,FALSE),"") -> 
A82: =IF(B82>0,0,0) -> 0 | E82: =IFERROR(IF(B82="All units",$D$23,(V82+1)*D82),0) -> 0 | K82: =IFERROR(VLOOKUP(J82,$B$73:$C$76,2,FALSE),"") ->  | M82: =IFERROR(VLOOKUP(L82,$B$73:$C$76,2,FALSE),"") ->  | N82: =IFERROR(SUM(G82,I82,K82,M82)/COUNTA(F82,H82,J82,L82),"") ->  | O82: =IFERROR(N82*$P82,"") ->  | P82: =IF(B82<>"",$C$148,"") ->  | Q82: =IF(B82<>"",IF(Instructions!$I$62=1,$F$148,$H$148),"") ->  | R82: =IF(B82<>"",IF(Instructions!$I$62=1,$J$148,$K$148),"") ->  | S82: =IFERROR(O82*30*$E82,"") ->  | T82: =IFERROR(R82*30*$E82,"") ->  | V82: =IFERROR(VLOOKUP(B82,$B$16:$V$22,21,FALSE),"") -> 
A83: =IF(B83>0,0,0) -> 0 | E83: =IFERROR(IF(B83="All units",$D$23,(V83+1)*D83),0) -> 0 | K83: =IFERROR(VLOOKUP(J83,$B$73:$C$76,2,FALSE),"") ->  | M83: =IFERROR(VLOOKUP(L83,$B$73:$C$76,2,FALSE),"") ->  | N83: =IFERROR(SUM(G83,I83,K83,M83)/COUNTA(F83,H83,J83,L83),"") ->  | O83: =IFERROR(N83*$P83,"") ->  | P83: =IF(B83<>"",$C$148,"") ->  | Q83: =IF(B83<>"",IF(Instructions!$I$62=1,$F$148,$H$148),"") ->  | R83: =IF(B83<>"",IF(Instructions!$I$62=1,$J$148,$K$148),"") ->  | S83: =IFERROR(O83*30*$E83,"") ->  | T83: =IFERROR(R83*30*$E83,"") ->  | V83: =IFERROR(VLOOKUP(B83,$B$16:$V$22,21,FALSE),"") -> 
E84: =IFERROR(IF(B84="All units",$D$23,(V84+1)*D84),0) -> 0 | K84: =IFERROR(VLOOKUP(J84,$B$73:$C$76,2,FALSE),"") ->  | M84: =IFERROR(VLOOKUP(L84,$B$73:$C$76,2,FALSE),"") ->  | N84: =IFERROR(SUM(G84,I84,K84,M84)/COUNTA(F84,H84,J84,L84),"") ->  | O84: =IFERROR(N84*$P84,"") ->  | P84: =IF(B84<>"",$C$148,"") ->  | Q84: =IF(B84<>"",IF(Instructions!$I$62=1,$F$148,$H$148),"") ->  | R84: =IF(B84<>"",IF(Instructions!$I$62=1,$J$148,$K$148),"") ->  | S84: =IFERROR(O84*30*$E84,"") ->  | T84: =IFERROR(R84*30*$E84,"") ->  | V84: =IFERROR(VLOOKUP(B84,$B$16:$V$22,21,FALSE),"") -> 
E85: =IFERROR(IF(B85="All units",$D$23,(V85+1)*D85),0) -> 0 | K85: =IFERROR(VLOOKUP(J85,$B$73:$C$76,2,FALSE),"") ->  | M85: =IFERROR(VLOOKUP(L85,$B$73:$C$76,2,FALSE),"") ->  | N85: =IFERROR(SUM(G85,I85,K85,M85)/COUNTA(F85,H85,J85,L85),"") ->  | O85: =IFERROR(N85*$P85,"") ->  | P85: =IF(B85<>"",$C$148,"") ->  | Q85: =IF(B85<>"",IF(Instructions!$I$62=1,$F$148,$H$148),"") ->  | R85: =IF(B85<>"",IF(Instructions!$I$62=1,$J$148,$K$148),"") ->  | S85: =IFERROR(O85*30*$E85,"") ->  | T85: =IFERROR(R85*30*$E85,"") ->  | V85: =IFERROR(VLOOKUP(B85,$B$16:$V$22,21,FALSE),"") -> 
A86: D | B86: Totals for toilets | D86: =SUM(D81:D85) -> 0 | E86: =SUM(E81:E85) -> 0 | S86: =SUM(S81:S85) -> 0 | T86: =SUM(T81:T85) -> 0
B89: Fixture Use for Clothes Washers
B90: Enter the flow rate and a brief description for each type of fixture. If no clothes washer is installed in the project, enter 'Baseline' under 'Fixture ID' and '9.5' under 'Flow Rate.'
B91: Fixture ID | C91: Flow Rate (water factor)
A92: =IF(B92>0,0,0) -> 0
A93: =IF(B93>0,0,0) -> 0
A94: =IF(B94>0,0,0) -> 0
B97: Unit Information | F97: Design | P97: Baseline | S97: Totals
B98: Unit Type | C98: Unit Description | D98: Number of Units | E98: Occupants | F98: Fixture 1 | H98: Fixture 2 | J98: Fixture 3 | L98: Fixture 4 | N98: Average Flow Rate (water factor) | O98: =CONCATENATE("Calculated Water Usage ",IF(Instructions!$I$62=1," (gallons)"," (liters)")) -> Calculated Water Usage (gallons) | P98: =CONCATENATE("Estimated Fixture Usage (cycles ",IF(Instructions!$I$62=1,"at 3.5 cu ft)","at 0.1 cu m)")) -> Estimated Fixture Usage (cycles at 3.5 cu ft) | Q98: Flow Rate (water factor) | R98: =CONCATENATE("Estimated Water Usage ",IF(Instructions!$I$62=1," (gallons)"," (liters)")) -> Estimated Water Usage (gallons) | S98: =CONCATENATE("Design Monthly Water Use ",IF(Instructions!$I$62=1," (gal/month)"," (l/month)")) -> Design Monthly Water Use (gal/month) | T98: =CONCATENATE("Baseline Monthly Water Use ",IF(Instructions!$I$62=1," (gal/month)"," (l/month)")) -> Baseline Monthly Water Use (gal/month) | V98: Number of Bedrooms
F99: Fixture 1 ID | G99: Fixture 1 Flow Rate (water factor) | H99: Fixture 2 ID | I99: Fixture 2 Flow Rate (water factor) | J99: Fixture 3 ID | K99: Fixture 3 Flow Rate (water factor) | L99: Fixture 4 ID | M99: Fixture 4 Flow Rate (water factor)
A100: =IF(B100>0,0,0) -> 0 | E100: =IFERROR(IF(B100="All units",$D$23,(V100+1)*D100),0) -> 0 | G100: =IFERROR(VLOOKUP(F100,$B$92:$C$95,2,FALSE),"") ->  | I100: =IFERROR(VLOOKUP(H100,$B$92:$C$95,2,FALSE),"") ->  | K100: =IFERROR(VLOOKUP(J100,$B$92:$C$95,2,FALSE),"") ->  | M100: =IFERROR(VLOOKUP(L100,$B$92:$C$95,2,FALSE),"") ->  | N100: =IFERROR(SUM(G100,I100,K100,M100)/COUNTA(F100,H100,J100,L100),"") ->  | O100: =IFERROR(IF(N100="","",IF(Instructions!$I$62=1,(P100*N100*3.5)*1.23,((P100*N100*3.5)*1.23)*3.78)),"") ->  | P100: =IF(B100<>"",$C$149,"") ->  | Q100: =IF(B100<>"",$F$149,"") ->  | R100: =IF(B100<>"",IF(Instructions!$I$62=1,$J$149,$K$149),"") ->  | S100: =IFERROR(O100*30*$E100,"") ->  | T100: =IFERROR(R100*30*$E100,"") ->  | V100: =IFERROR(VLOOKUP(B100,$B$16:$V$22,21,FALSE),"") -> 
A101: =IF(B101>0,0,0) -> 0 | E101: =IFERROR(IF(B101="All units",$D$23,(V101+1)*D101),0) -> 0 | G101: =IFERROR(VLOOKUP(F101,$B$92:$C$95,2,FALSE),"") ->  | K101: =IFERROR(VLOOKUP(J101,$B$92:$C$95,2,FALSE),"") ->  | M101: =IFERROR(VLOOKUP(L101,$B$92:$C$95,2,FALSE),"") ->  | N101: =IFERROR(SUM(G101,I101,K101,M101)/COUNTA(F101,H101,J101,L101),"") ->  | O101: =IFERROR(IF(N101="","",IF(Instructions!$I$62=1,(P101*N101*3.5)*1.23,((P101*N101*3.5)*1.23)*3.78)),"") ->  | P101: =IF(B101<>"",$C$149,"") ->  | Q101: =IF(B101<>"",$F$149,"") ->  | R101: =IF(B101<>"",IF(Instructions!$I$62=1,$J$149,$K$149),"") ->  | S101: =IFERROR(O101*30*$E101,"") ->  | T101: =IFERROR(R101*30*$E101,"") ->  | V101: =IFERROR(VLOOKUP(B101,$B$16:$V$22,21,FALSE),"") -> 
A102: =IF(B102>0,0,0) -> 0 | E102: =IFERROR(IF(B102="All units",$D$23,(V102+1)*D102),0) -> 0 | K102: =IFERROR(VLOOKUP(J102,$B$92:$C$95,2,FALSE),"") ->  | M102: =IFERROR(VLOOKUP(L102,$B$92:$C$95,2,FALSE),"") ->  | N102: =IFERROR(SUM(G102,I102,K102,M102)/COUNTA(F102,H102,J102,L102),"") ->  | O102: =IFERROR(IF(N102="","",IF(Instructions!$I$62=1,(P102*N102*3.5)*1.23,((P102*N102*3.5)*1.23)*3.78)),"") ->  | P102: =IF(B102<>"",$C$149,"") ->  | Q102: =IF(B102<>"",$F$149,"") ->  | R102: =IF(B102<>"",IF(Instructions!$I$62=1,$J$149,$K$149),"") ->  | S102: =IFERROR(O102*30*$E102,"") ->  | T102: =IFERROR(R102*30*$E102,"") ->  | V102: =IFERROR(VLOOKUP(B102,$B$16:$V$22,21,FALSE),"") -> 
E103: =IFERROR(IF(B103="All units",$D$23,(V103+1)*D103),0) -> 0 | K103: =IFERROR(VLOOKUP(J103,$B$92:$C$95,2,FALSE),"") ->  | M103: =IFERROR(VLOOKUP(L103,$B$92:$C$95,2,FALSE),"") ->  | N103: =IFERROR(SUM(G103,I103,K103,M103)/COUNTA(F103,H103,J103,L103),"") ->  | O103: =IFERROR(IF(N103="","",IF(Instructions!$I$62=1,(P103*N103*3.5)*1.23,((P103*N103*3.5)*1.23)*3.78)),"") ->  | P103: =IF(B103<>"",$C$149,"") ->  | Q103: =IF(B103<>"",$F$149,"") ->  | R103: =IF(B103<>"",IF(Instructions!$I$62=1,$J$149,$K$149),"") ->  | S103: =IFERROR(O103*30*$E103,"") ->  | T103: =IFERROR(R103*30*$E103,"") ->  | V103: =IFERROR(VLOOKUP(B103,$B$16:$V$22,21,FALSE),"") -> 
E104: =IFERROR(IF(B104="All units",$D$23,(V104+1)*D104),0) -> 0 | K104: =IFERROR(VLOOKUP(J104,$B$92:$C$95,2,FALSE),"") ->  | M104: =IFERROR(VLOOKUP(L104,$B$92:$C$95,2,FALSE),"") ->  | N104: =IFERROR(SUM(G104,I104,K104,M104)/COUNTA(F104,H104,J104,L104),"") ->  | O104: =IFERROR(IF(N104="","",IF(Instructions!$I$62=1,(P104*N104*3.5)*1.23,((P104*N104*3.5)*1.23)*3.78)),"") ->  | P104: =IF(B104<>"",$C$149,"") ->  | Q104: =IF(B104<>"",$F$149,"") ->  | R104: =IF(B104<>"",IF(Instructions!$I$62=1,$J$149,$K$149),"") ->  | S104: =IFERROR(O104*30*$E104,"") ->  | T104: =IFERROR(R104*30*$E104,"") ->  | V104: =IFERROR(VLOOKUP(B104,$B$16:$V$22,21,FALSE),"") -> 
A105: E | B105: Totals for clothes washers | D105: =SUM(D100:D104) -> 0 | E105: =SUM(E100:E104) -> 0 | S105: =SUM(S100:S104) -> 0 | T105: =SUM(T100:T104) -> 0
B108: Fixture Use for Dishwashers
B109: =CONCATENATE("Enter the flow rate and a brief description for each type of fixture. If no dishwasher is installed in the project, enter 'Baseline' under 'Fixture ID', and '",IF(Instructions!$I$62=1,"'6.5' under 'Flow Rate'.","3 under 'Flow Rate'.")) -> Enter the flow rate and a brief description for each type of fixture. If no dishwasher is installed in the project, enter 'Baseline' under 'Fixture ID', and ''6.5' under 'Flow Rate'.
B110: Fixture ID | C110: =CONCATENATE("Flow Rate ",IF(Instructions!$I$62=1,"(gpc)","(lpc)")) -> Flow Rate (gpc)
A111: =IF(B111>0,0,0) -> 0
A112: =IF(B112>0,0,0) -> 0
A113: =IF(B113>0,0,0) -> 0
B116: Unit Information | F116: Design | P116: Baseline | S116: Totals
B117: Unit Type | C117: Unit Description | D117: Number of Units | E117: Occupants | F117: Fixture 1 | H117: Fixture 2 | J117: Fixture 3 | L117: Fixture 4 | N117: =CONCATENATE("Average Flow Rate ",IF(Instructions!$I$62=1,"(gpc)","(lpc)")) -> Average Flow Rate (gpc) | O117: =CONCATENATE("Calculated Water Usage ",IF(Instructions!$I$62=1," (gallons)"," (liters)")) -> Calculated Water Usage (gallons) | P117: Estimated Fixture Usage (cycles) | Q117: =CONCATENATE("Flow Rate ",IF(Instructions!$I$62=1,"(gpc)","(lpc)")) -> Flow Rate (gpc) | R117: =CONCATENATE("Estimated Water Usage ",IF(Instructions!$I$62=1," (gallons)"," (liters)")) -> Estimated Water Usage (gallons) | S117: =CONCATENATE("Design Monthly Water Use ",IF(Instructions!$I$62=1," (gal/month)"," (l/month)")) -> Design Monthly Water Use (gal/month) | T117: =CONCATENATE("Baseline Monthly Water Use ",IF(Instructions!$I$62=1," (gal/month)"," (l/month)")) -> Baseline Monthly Water Use (gal/month) | V117: Number of Bedrooms
F118: Fixture 1 ID | G118: =CONCATENATE("Fixture 1 Flow Rate ",IF(Instructions!$I$62=1,"(gpc)","(lpc)")) -> Fixture 1 Flow Rate (gpc) | H118: Fixture 2 ID | I118: =CONCATENATE("Fixture 2 Flow Rate ",IF(Instructions!$I$62=1,"(gpc)","(lpc)")) -> Fixture 2 Flow Rate (gpc) | J118: Fixture 3 ID | K118: =CONCATENATE("Fixture 3 Flow Rate ",IF(Instructions!$I$62=1,"(gpc)","(lpc)")) -> Fixture 3 Flow Rate (gpc) | L118: Fixture 4 ID | M118: =CONCATENATE("Fixture 4 Flow Rate ",IF(Instructions!$I$62=1,"(gpc)","(lpc)")) -> Fixture 4 Flow Rate (gpc)
A119: =IF(B119>0,0,0) -> 0 | E119: =IFERROR(IF(B119="All units",$D$23,(V119+1)*D119),0) -> 0 | G119: =IFERROR(VLOOKUP(F119,$B$111:$C$114,2,FALSE),"") ->  | I119: =IFERROR(VLOOKUP(H119,$B$111:$C$114,2,FALSE),"") ->  | K119: =IFERROR(VLOOKUP(J119,$B$111:$C$114,2,FALSE),"") ->  | M119: =IFERROR(VLOOKUP(L119,$B$111:$C$114,2,FALSE),"") ->  | N119: =IFERROR(SUM(G119,I119,K119,M119)/COUNTA(F119,H119,J119,L119),"") ->  | O119: =IFERROR(N119*$P119,"") ->  | P119: =IF(B119<>"",$C$150,"") ->  | Q119: =IF(B119<>"",IF(Instructions!$I$62=1,$F$150,$H$150),"") ->  | R119: =IF(B119<>"",IF(Instructions!$I$62=1,$J$150,$K$150),"") ->  | S119: =IFERROR(O119*30*$E119,"") ->  | T119: =IFERROR(R119*30*$E119,"") ->  | V119: =IFERROR(VLOOKUP(B119,$B$16:$V$22,21,FALSE),"") -> 
A120: =IF(B120>0,0,0) -> 0 | E120: =IFERROR(IF(B120="All units",$D$23,(V120+1)*D120),0) -> 0 | G120: =IFERROR(VLOOKUP(F120,$B$111:$C$114,2,FALSE),"") ->  | K120: =IFERROR(VLOOKUP(J120,$B$111:$C$114,2,FALSE),"") ->  | M120: =IFERROR(VLOOKUP(L120,$B$111:$C$114,2,FALSE),"") ->  | N120: =IFERROR(SUM(G120,I120,K120,M120)/COUNTA(F120,H120,J120,L120),"") ->  | O120: =IFERROR(N120*$P120,"") ->  | P120: =IF(B120<>"",$C$150,"") ->  | Q120: =IF(B120<>"",IF(Instructions!$I$62=1,$F$150,$H$150),"") ->  | R120: =IF(B120<>"",IF(Instructions!$I$62=1,$J$150,$K$150),"") ->  | S120: =IFERROR(O120*30*$E120,"") ->  | T120: =IFERROR(R120*30*$E120,"") ->  | V120: =IFERROR(VLOOKUP(B120,$B$16:$V$22,21,FALSE),"") -> 
A121: =IF(B121>0,0,0) -> 0 | E121: =IFERROR(IF(B121="All units",$D$23,(V121+1)*D121),0) -> 0 | K121: =IFERROR(VLOOKUP(J121,$B$111:$C$114,2,FALSE),"") ->  | M121: =IFERROR(VLOOKUP(L121,$B$111:$C$114,2,FALSE),"") ->  | N121: =IFERROR(SUM(G121,I121,K121,M121)/COUNTA(F121,H121,J121,L121),"") ->  | O121: =IFERROR(N121*$P121,"") ->  | P121: =IF(B121<>"",$C$150,"") ->  | Q121: =IF(B121<>"",IF(Instructions!$I$62=1,$F$150,$H$150),"") ->  | R121: =IF(B121<>"",IF(Instructions!$I$62=1,$J$150,$K$150),"") ->  | S121: =IFERROR(O121*30*$E121,"") ->  | T121: =IFERROR(R121*30*$E121,"") ->  | V121: =IFERROR(VLOOKUP(B121,$B$16:$V$22,21,FALSE),"") -> 
E122: =IFERROR(IF(B122="All units",$D$23,(V122+1)*D122),0) -> 0 | K122: =IFERROR(VLOOKUP(J122,$B$111:$C$114,2,FALSE),"") ->  | M122: =IFERROR(VLOOKUP(L122,$B$111:$C$114,2,FALSE),"") ->  | N122: =IFERROR(SUM(G122,I122,K122,M122)/COUNTA(F122,H122,J122,L122),"") ->  | O122: =IFERROR(N122*$P122,"") ->  | P122: =IF(B122<>"",$C$150,"") ->  | Q122: =IF(B122<>"",IF(Instructions!$I$62=1,$F$150,$H$150),"") ->  | R122: =IF(B122<>"",IF(Instructions!$I$62=1,$J$150,$K$150),"") ->  | S122: =IFERROR(O122*30*$E122,"") ->  | T122: =IFERROR(R122*30*$E122,"") ->  | V122: =IFERROR(VLOOKUP(B122,$B$16:$V$22,21,FALSE),"") -> 
E123: =IFERROR(IF(B123="All units",$D$23,(V123+1)*D123),0) -> 0 | K123: =IFERROR(VLOOKUP(J123,$B$111:$C$114,2,FALSE),"") ->  | M123: =IFERROR(VLOOKUP(L123,$B$111:$C$114,2,FALSE),"") ->  | N123: =IFERROR(SUM(G123,I123,K123,M123)/COUNTA(F123,H123,J123,L123),"") ->  | O123: =IFERROR(N123*$P123,"") ->  | P123: =IF(B123<>"",$C$150,"") ->  | Q123: =IF(B123<>"",IF(Instructions!$I$62=1,$F$150,$H$150),"") ->  | R123: =IF(B123<>"",IF(Instructions!$I$62=1,$J$150,$K$150),"") ->  | S123: =IFERROR(O123*30*$E123,"") ->  | T123: =IFERROR(R123*30*$E123,"") ->  | V123: =IFERROR(VLOOKUP(B123,$B$16:$V$22,21,FALSE),"") -> 
A124: F | B124: Totals for dishwashers | D124: =SUM(D119:D123) -> 0 | E124: =SUM(E119:E123) -> 0 | S124: =SUM(S119:S123) -> 0 | T124: =SUM(T119:T123) -> 0
B127: Indoor Water Use Summary
B128: Fixture Type | G128: =CONCATENATE("Design Water Use ",IF(Instructions!$I$62=1," (gal/month)"," (l/month)")) -> Design Water Use (gal/month) | H128: =CONCATENATE("Baseline Water Use ",IF(Instructions!$I$62=1," (gal/month)"," (l/month)")) -> Baseline Water Use (gal/month) | I128: =CONCATENATE("Savings ",IF(Instructions!$I$62=1," (gal/month)"," (l/month)")) -> Savings (gal/month)
B129: Showers | G129: =S44 -> 0 | H129: =T44 -> 0 | I129: =IF(G129=0,0,H129-G129) -> 0
B130: Lavatories and kitchen faucets | G130: =S62 -> 0 | H130: =T62 -> 0 | I130: =IF(G130=0,0,H130-G130) -> 0
B131: Toilets | G131: =S86 -> 0 | H131: =T86 -> 0 | I131: =IF(G131=0,0,H131-G131) -> 0
B132: Clothes washers | G132: =S105 -> 0 | H132: =T105 -> 0 | I132: =IF(G132=0,0,H132-G132) -> 0
B133: Dishwashers | G133: =S124 -> 0 | H133: =T124 -> 0 | I133: =IF(G133=0,0,H133-G133) -> 0
B134: Totals | G134: =SUM(G129:G133) -> 0 | H134: =SUM(H129:H133) -> 0 | I134: =SUM(I129:I133) -> 0
B136: Results
G137: =CONCATENATE("Design Water Use ",IF(Instructions!$I$62=1," (gal/month)"," (l/month)")) -> Design Water Use (gal/month) | H137: =CONCATENATE("Baseline Water Use ",IF(Instructions!$I$62=1," (gal/month)"," (l/month)")) -> Baseline Water Use (gal/month) | I137: =CONCATENATE("Savings ",IF(Instructions!$I$62=1," (gal/month)"," (l/month)")) -> Savings (gal/month)
B138: Outdoor water use | G138: =(I10-I11) -> 0 | H138: =I9 -> 0 | I138: =H138-G138 -> 0
B139: Indoor water use | G139: =G134 -> 0 | H139: =H134 -> 0 | I139: =I134 -> 0
B140: Totals | G140: =SUM(G138:G139) -> 0 | H140: =SUM(H138:H139) -> 0 | I140: =SUM(I138:I139) -> 0
B141: Total monthly water savings as a percentage of total water use (%) | I141: =IFERROR((H140-G140)/H140,0) -> 0
B143: Assumptions
B144: Fixture | C144: Estimated Fixture Usage | F144: Baseline Flush or Flow Rate | J144: Estimated Water Usage
F145: IP | H145: SI | J145: IP (gallons per person) | K145: SI (liters per person)
B146: Shower | C146: =8.2*0.75 -> 6.15 | D146: minutes | F146: 2.5 | G146: gpm | H146: 9.5 | I146: lpm | J146: =F146*C146 -> 15.375 | K146: =H146*C146 -> 58.425
B147: Lavatory or kitchen faucet | C147: 5 | D147: minutes | F147: 2.2 | G147: gpm | H147: 8.3 | I147: lpm | J147: =F147*C147 -> 11 | K147: =H147*C147 -> 41.5
B148: Toilet | C148: 5.05 | D148: flushes | F148: 1.6 | G148: gpf | H148: 6 | I148: lpf | J148: =F148*C148 -> 8.08 | K148: =H148*C148 -> 30.3
B149: Clothes washer | C149: 0.37 | D149: at 3.5 cu ft (0.1 cu m) | F149: 9.5 | G149: WF | H149: 9.5 | I149: WF | J149: =(C149*F149*3.5)*1.23 -> 15.132075 | K149: =((C149*F149*3.5)*1.23)*3.78 -> 57.1992435
B150: Dishwasher | C150: 0.1 | D150: cycles | F150: 6.5 | G150: gpc | H150: 24 | I150: lpc | J150: =F150*C150 -> 0.65 | K150: =H150*C150 -> 2.4

Sheet Sampling Reporting Form
B2: Sampling Reporting Form
B5: Sample Set | C5: Size of Sample Set (Number of Lots/Units) | D5: Lot/Unit Numbers within Sample Set | E5: Sampling Rate (%) | F5: Number of Units or Buildings Verified | G5: Lot/Unit Numbers Verified | H5: On-site Verification | K5: Failures | M5: Notes
H6: Pre-Slab Verification Date | I6: Pre-Drywall Verification Date | J6: Final Verification Date | K6: Lot/Unit Number of any Failures | L6: Remediation Activity for Failure
A7: =IF(B7=1,0,0) -> 0 | B7: 1
A8: =IF(B8=1,0,0) -> 0 | B8: 2
A9: 0 | B9: 3
A10: 0 | B10: 4
A11: 0 | B11: 5
A12: =IF(B12=1,0,0) -> 0 | B12: 1
A13: 0 | B13: 2
A14: 0 | B14: 3
A15: 0 | B15: 4
A16: 0 | B16: 5
A17: =IF(B17=1,0,0) -> 0
A20: A | B20: Total number of units selected for verification | F20: =SUM(F7:F19) -> 0
B21: Total number of units or buildings utilizing sampling | F21: =SUM(C7:C19) -> 0
B22: Overall sampling rate (%) | F22: =IFERROR(F20/F21,0) -> 0

Sheet Scorecard Data (hidden)
A1: Project ID # | B1: =Instructions!F34 -> Woodlawn Residence
A2: Units | B2: =Instructions!F12 -> IP units
A3: Rating System | B3: =Instructions!F15 -> LEED BD+C: Homes and Multifamily Lowrise v4 - LEED v4
A4: Building type | B4: =IF(Type="Batch",Instructions!F49,Instructions!F41) -> 1
A5: Project name | B5: =Instructions!F35 -> 537 Woodlawn
A6: Project address | B6: =Instructions!F36 -> Grand Rapids
A7: City | B7: =Instructions!F37 -> Michigan
A8: State | B8: =Instructions!F38 -> USA
A9: Country | B9: =Instructions!F39 -> 49507
A10: Zip code | B10: =Instructions!F40 -> Single family detached
A11: Number of stories | B11: =Instructions!F42 -> 4
A12: Conditioned floor area | B12: =Instructions!#REF! -> 
A13: Gross floor area | B13: =Instructions!F44 -> 0
A14: Number of bedrooms | B14: =Instructions!F43 -> 1055
A15: Number of units | B15: ='Multifamily HSA'!P12 -> 0
A16: Gut-rehab | B16: =IF(Instructions!F21="Gut-rehab","Yes","No") -> Yes
A17: Sampling applied | B17: =IF('Sampling Reporting Form'!F22>0,"Yes","No") -> No
A18: Rating system | B18: Credit category | C18: P/C | D18: Credit name | E18: Credit ID | F18: Credit Attempted | G18: Pts Verified | H18: Total Pts Possible | I18: Threshold Name | J18: Short ID | K18: Attempted | L18: Option name | M18: Short ID | N18: Attempted | O18: Path name | P18: Short ID | Q18: Attempted
A19: LEED v4 BD+C: Homes | B19: IP | C19: C | D19: Integrative process | E19: IP102 | F19: =IF(IP!$J$7>0,"X","") -> X | G19: =IP!$J$7 -> 1 | H19: 2 | L19: Option 1 | M19: IP02O1 | N19: =IF(IP!$J$11>0,"X","") -> X
A20: LEED v4 BD+C: Homes | B20: IP | C20: C | D20: Integrative process | E20: IP102 | F20: =IF(IP!$J$7>0,"X","") -> X | G20: =IP!$J$7 -> 1 | H20: 2 | L20: Option 2 | M20: IP02O2 | N20: =IF(IP!$J$33>0,"X","") -> 
A21: LEED v4 BD+C: Homes | B21: IP | C21: C | D21: Integrative process | E21: IP102 | F21: =IF(IP!$J$7>0,"X","") -> X | G21: =IP!$J$7 -> 1 | H21: 2 | L21: Option 3 | M21: IP02O3 | N21: =IF(IP!$J$42>0,"X","") -> 
A22: LEED v4 BD+C: Homes | B22: LT | C22: P | D22: Floodplain avoidance | E22: LT101 | F22: x | G22: =LT!$J$7 -> Y | H22: 0
A23: LEED v4 BD+C: Homes | B23: LT | C23: C | D23: LEED for Neighborhood Development | E23: LT102 | F23: =IF(LT!$J$20>0,"X","") ->  | G23: =LT!$J$20 -> 0 | H23: 15
A24: LEED v4 BD+C: Homes | B24: LT | C24: C | D24: Site selection | E24: LT103 | F24: =IF(LT!$J$34>0,"X","") -> X | G24: =LT!$J$34 -> 8 | H24: 8 | L24: Option 1 | M24: LT03O1 | N24: =IF(LT!$J$38>0,"X","") -> X
A25: LEED v4 BD+C: Homes | B25: LT | C25: C | D25: Site selection | E25: LT103 | F25: =IF(LT!$J$34>0,"X","") -> X | G25: =LT!$J$34 -> 8 | H25: 8 | L25: Option 1 | M25: LT03O1 | N25: =IF(LT!$J$38>0,"X","") -> X | O25: Path 1 | P25: LT03O1P1 | Q25: =IF(LT!$J$41>0,"X","") -> X
A26: LEED v4 BD+C: Homes | B26: LT | C26: C | D26: Site selection | E26: LT103 | F26: =IF(LT!$J$34>0,"X","") -> X | G26: =LT!$J$34 -> 8 | H26: 8 | L26: Option 1 | M26: LT03O1 | N26: =IF(LT!$J$38>0,"X","") -> X | O26: Path 2 | P26: LT03O1P2 | Q26: =IF(LT!$J$49>0,"X","") -> 
A27: LEED v4 BD+C: Homes | B27: LT | C27: C | D27: Site selection | E27: LT103 | F27: =IF(LT!$J$34>0,"X","") -> X | G27: =LT!$J$34 -> 8 | H27: 8 | L27: Option 2 | M27: LT03O2 | N27: =IF(LT!$J$69>0,"X","") -> X
A28: LEED v4 BD+C: Homes | B28: LT | C28: C | D28: Site selection | E28: LT103 | F28: =IF(LT!$J$34>0,"X","") -> X | G28: =LT!$J$34 -> 8 | H28: 8 | L28: Option 3 | M28: LT03O3 | N28: =IF(LT!$J$78>0,"X","") -> X
A29: LEED v4 BD+C: Homes | B29: LT | C29: C | D29: Site selection | E29: LT103 | F29: =IF(LT!$J$34>0,"X","") -> X | G29: =LT!$J$34 -> 8 | H29: 8 | L29: Option 4 | M29: LT03O4 | N29: =IF(LT!$J$86>0,"X","") -> X
A30: LEED v4 BD+C: Homes | B30: LT | C30: C | D30: Site selection | E30: LT103 | F30: =IF(LT!$J$34>0,"X","") -> X | G30: =LT!$J$34 -> 8 | H30: 8 | L30: Option 5 | M30: LT03O5 | N30: =IF(LT!$J$92>0,"X","") -> 
A31: LEED v4 BD+C: Homes | B31: LT | C31: C | D31: Compact development | E31: LT104 | F31: =IF(LT!$J$117>0,"X","") -> X | G31: =LT!$J$117 -> 1 | H31: 3 | I31: 1 point | J31: LT04T1 | K31: =IF($G$31=1,"X","") -> X
A32: LEED v4 BD+C: Homes | B32: LT | C32: C | D32: Compact development | E32: LT104 | F32: =IF(LT!$J$117>0,"X","") -> X | G32: =LT!$J$117 -> 1 | H32: 3 | I32: 2 points | J32: LT04T2 | K32: =IF($G$32=2,"X","") -> 
A33: LEED v4 BD+C: Homes | B33: LT | C33: C | D33: Compact development | E33: LT104 | F33: =IF(LT!$J$117>0,"X","") -> X | G33: =LT!$J$117 -> 1 | H33: 3 | I33: 3 points | J33: LT04T3 | K33: =IF($G$33=3,"X","") -> 
A34: LEED v4 BD+C: Homes | B34: LT | C34: C | D34: Community resources | E34: LT105 | F34: =IF(LT!$J$127>0,"X","") ->  | G34: =LT!$J$127 -> 0 | H34: 2 | I34: 1 point | J34: LT05T1 | K34: =IF($G$34=1,"X","") -> 
A35: LEED v4 BD+C: Homes | B35: LT | C35: C | D35: Community resources | E35: LT105 | F35: =IF(LT!$J$127>0,"X","") ->  | G35: =LT!$J$127 -> 0 | H35: 2 | I35: 1.5 points | J35: LT05T2 | K35: =IF($G$35=1.5,"X","") -> 
A36: LEED v4 BD+C: Homes | B36: LT | C36: C | D36: Community resources | E36: LT105 | F36: =IF(LT!$J$127>0,"X","") ->  | G36: =LT!$J$127 -> 0 | H36: 2 | I36: 2 points | J36: LT05T3 | K36: =IF($G$36=2,"X","") -> 
A37: LEED v4 BD+C: Homes | B37: LT | C37: C | D37: Access to transit | E37: LT106 | F37: =IF(LT!$J$135>0,"X","") ->  | G37: =LT!$J$135 -> 0 | H37: 2 | I37: 1 point | J37: LT06T1 | K37: =IF($G$37=1,"X","") -> 
A38: LEED v4 BD+C: Homes | B38: LT | C38: C | D38: Access to transit | E38: LT106 | F38: =IF(LT!$J$135>0,"X","") ->  | G38: =LT!$J$135 -> 0 | H38: 2 | I38: 1.5 points | J38: LT06T2 | K38: =IF($G$38=1.5,"X","") -> 
A39: LEED v4 BD+C: Homes | B39: LT | C39: C | D39: Access to transit | E39: LT106 | F39: =IF(LT!$J$135>0,"X","") ->  | G39: =LT!$J$135 -> 0 | H39: 2 | I39: 2 points | J39: LT06T3 | K39: =IF($G$39=2,"X","") -> 
A40: LEED v4 BD+C: Homes | B40: SS | C40: P | D40: Construction activity pollution prevention | E40: SS101 | F40: x | G40: =SS!$J$7 -> Y | H40: 0
A41: LEED v4 BD+C: Homes | B41: SS | C41: P | D41: No invasive plants | E41: SS102 | F41: x | G41: =SS!$J$34 -> Y | H41: 0
A42: LEED v4 BD+C: Homes | B42: SS | C42: C | D42: Heat island reduction | E42: SS110 | F42: =IF(SS!$J$41>0,"X","") ->  | G42: =SS!$J$41 -> 0 | H42: 2 | L42: Option 1 | M42: SS10O1 | N42: =IF(SS!$J$44>0,"X","") -> 
A43: LEED v4 BD+C: Homes | B43: SS | C43: C | D43: Heat island reduction | E43: SS110 | F43: =IF(SS!$J$41>0,"X","") ->  | G43: =SS!$J$41 -> 0 | H43: 2 | L43: Option 1 | M43: SS10O1 | N43: =IF(SS!$J$44>0,"X","") ->  | O43: 1 point | P43: SS10O1P1 | Q43: =IF(SS!$J$44=1,"X","") -> 
A44: LEED v4 BD+C: Homes | B44: SS | C44: C | D44: Heat island reduction | E44: SS110 | F44: =IF(SS!$J$41>0,"X","") ->  | G44: =SS!$J$41 -> 0 | H44: 2 | L44: Option 1 | M44: SS10O1 | N44: =IF(SS!$J$44>0,"X","") ->  | O44: 2 points | P44: SS10O1P2 | Q44: =IF(SS!$J$44=2,"X","") -> 
A45: LEED v4 BD+C: Homes | B45: SS | C45: C | D45: Heat island reduction | E45: SS110 | F45: =IF(SS!$J$41>0,"X","") ->  | G45: =SS!$J$41 -> 0 | H45: 2 | L45: Option 2 | M45: SS10O2 | N45: =IF(SS!$J$50>0,"X","") -> 
A46: LEED v4 BD+C: Homes | B46: SS | C46: C | D46: Heat island reduction | E46: SS110 | F46: =IF(SS!$J$41>0,"X","") ->  | G46: =SS!$J$41 -> 0 | H46: 2 | L46: Option 2 | M46: SS10O2 | N46: =IF(SS!$J$50>0,"X","") ->  | O46: 1 point | P46: SS10O2P1 | Q46: =IF(SS!$J$50=1,"X","") -> 
A47: LEED v4 BD+C: Homes | B47: SS | C47: C | D47: Heat island reduction | E47: SS110 | F47: =IF(SS!$J$41>0,"X","") ->  | G47: =SS!$J$41 -> 0 | H47: 2 | L47: Option 2 | M47: SS10O2 | N47: =IF(SS!$J$50>0,"X","") ->  | O47: 2 points | P47: SS10O2P2 | Q47: =IF(SS!$J$50=2,"X","") -> 
A48: LEED v4 BD+C: Homes | B48: SS | C48: C | D48: Rainwater management | E48: SS108 | F48: =IF(SS!$J$69>0,"X","") ->  | G48: =SS!$J$69 -> 0 | H48: 3 | L48: Case 1 | M48: SS08O1 | N48: =IF(SS!$J$73>0,"X","") -> 
A49: LEED v4 BD+C: Homes | B49: SS | C49: C | D49: Rainwater management | E49: SS108 | F49: =IF(SS!$J$69>0,"X","") ->  | G49: =SS!$J$69 -> 0 | H49: 3 | L49: Case 1 | M49: SS08O1 | N49: =IF(SS!$J$73>0,"X","") ->  | O49: 1 point | P49: SS08O1P1 | Q49: =IF(SS!$J$73=1,"X","") -> 
A50: LEED v4 BD+C: Homes | B50: SS | C50: C | D50: Rainwater management | E50: SS108 | F50: =IF(SS!$J$69>0,"X","") ->  | G50: =SS!$J$69 -> 0 | H50: 3 | L50: Case 1 | M50: SS08O1 | N50: =IF(SS!$J$73>0,"X","") ->  | O50: 2 points | P50: SS08O1P2 | Q50: =IF(SS!$J$73=2,"X","") -> 
A51: LEED v4 BD+C: Homes | B51: SS | C51: C | D51: Rainwater management | E51: SS108 | F51: =IF(SS!$J$69>0,"X","") ->  | G51: =SS!$J$69 -> 0 | H51: 3 | L51: Case 1 | M51: SS08O1 | N51: =IF(SS!$J$73>0,"X","") ->  | O51: 3 points | P51: SS08O1P3 | Q51: =IF(SS!$J$73=3,"X","") -> 
A52: LEED v4 BD+C: Homes | B52: SS | C52: C | D52: Rainwater management | E52: SS108 | F52: =IF(SS!$J$69>0,"X","") ->  | G52: =SS!$J$69 -> 0 | H52: 3 | L52: Case 2 | M52: SS08O2 | N52: =IF(SS!$J$88>0,"X","") -> 
A53: LEED v4 BD+C: Homes | B53: SS | C53: C | D53: Rainwater management | E53: SS108 | F53: =IF(SS!$J$69>0,"X","") ->  | G53: =SS!$J$69 -> 0 | H53: 3 | L53: Case 2 | M53: SS08O2 | N53: =IF(SS!$J$88>0,"X","") ->  | O53: 2 points | P53: SS08O2P1 | Q53: =IF(SS!$J$88=2,"X","") -> 
A54: LEED v4 BD+C: Homes | B54: SS | C54: C | D54: Rainwater management | E54: SS108 | F54: =IF(SS!$J$69>0,"X","") ->  | G54: =SS!$J$69 -> 0 | H54: 3 | L54: Case 2 | M54: SS08O2 | N54: =IF(SS!$J$88>0,"X","") ->  | O54: 3 points | P54: SS08O2P2 | Q54: =IF(SS!$J$88=3,"X","") -> 
A55: LEED v4 BD+C: Homes | B55: SS | C55: C | D55: Nontoxic pest control | E55: SS112 | F55: =IF(SS!$J$95>0,"X","") -> X | G55: =SS!$J$95 -> 1.5 | H55: 2 | I55: 0.5 points | J55: SS12T1 | K55: =IF($G$55=0.5,"X","") -> 
A56: LEED v4 BD+C: Homes | B56: SS | C56: C | D56: Nontoxic pest control | E56: SS112 | F56: =IF(SS!$J$95>0,"X","") -> X | G56: =SS!$J$95 -> 1.5 | H56: 2 | I56: 1 point | J56: SS12T2 | K56: =IF($G$56=1,"X","") -> 
A57: LEED v4 BD+C: Homes | B57: SS | C57: C | D57: Nontoxic pest control | E57: SS112 | F57: =IF(SS!$J$95>0,"X","") -> X | G57: =SS!$J$95 -> 1.5 | H57: 2 | I57: 1.5 points | J57: SS12T3 | K57: =IF($G$57=1.5,"X","") -> X
A58: LEED v4 BD+C: Homes | B58: SS | C58: C | D58: Nontoxic pest control | E58: SS112 | F58: =IF(SS!$J$95>0,"X","") -> X | G58: =SS!$J$95 -> 1.5 | H58: 2 | I58: 2 points | J58: SS12T4 | K58: =IF($G$58=2,"X","") -> 
A59: LEED v4 BD+C: Homes | B59: WE | C59: P | D59: Water metering | E59: WE101 | F59: x | G59: =WE!$J$7 -> Y | H59: 0 | L59: Case 1 | M59: WE01O1 | N59: =IF(WE!$J$10="Y","X","") -> X
A60: LEED v4 BD+C: Homes | B60: WE | C60: P | D60: Water metering | E60: WE101 | F60: x | G60: =WE!$J$7 -> Y | H60: 0 | L60: Case 2 | M60: WE01O2 | N60: =IF(WE!$J$18="Y","X","") -> 
A61: LEED v4 BD+C: Homes | B61: WE | C61: C | D61: Total water use | E61: WE102 | F61: =IF(WE!$J$27>0,"X","") ->  | G61: =WE!$J$27 -> 0 | H61: 12 | I61: 1 point | J61: WE02T1 | K61: =IF($G$61=1,"X","") -> 
A62: LEED v4 BD+C: Homes | B62: WE | C62: C | D62: Total water use | E62: WE102 | F62: =IF(WE!$J$27>0,"X","") ->  | G62: =WE!$J$27 -> 0 | H62: 12 | I62: 2 points | J62: WE02T2 | K62: =IF($G$62=2,"X","") -> 
A63: LEED v4 BD+C: Homes | B63: WE | C63: C | D63: Total water use | E63: WE102 | F63: =IF(WE!$J$27>0,"X","") ->  | G63: =WE!$J$27 -> 0 | H63: 12 | I63: 3 points | J63: WE02T3 | K63: =IF($G$63=3,"X","") -> 
A64: LEED v4 BD+C: Homes | B64: WE | C64: C | D64: Total water use | E64: WE102 | F64: =IF(WE!$J$27>0,"X","") ->  | G64: =WE!$J$27 -> 0 | H64: 12 | I64: 4 points | J64: WE02T4 | K64: =IF($G$64=4,"X","") -> 
A65: LEED v4 BD+C: Homes | B65: WE | C65: C | D65: Total water use | E65: WE102 | F65: =IF(WE!$J$27>0,"X","") ->  | G65: =WE!$J$27 -> 0 | H65: 12 | I65: 5 points | J65: WE02T5 | K65: =IF($G$65=5,"X","") -> 
A66: LEED v4 BD+C: Homes | B66: WE | C66: C | D66: Total water use | E66: WE102 | F66: =IF(WE!$J$27>0,"X","") ->  | G66: =WE!$J$27 -> 0 | H66: 12 | I66: 6 points | J66: WE02T6 | K66: =IF($G$66=6,"X","") -> 
A67: LEED v4 BD+C: Homes | B67: WE | C67: C | D67: Total water use | E67: WE102 | F67: =IF(WE!$J$27>0,"X","") ->  | G67: =WE!$J$27 -> 0 | H67: 12 | I67: 7 points | J67: WE02T7 | K67: =IF($G$67=7,"X","") -> 
A68: LEED v4 BD+C: Homes | B68: WE | C68: C | D68: Total water use | E68: WE102 | F68: =IF(WE!$J$27>0,"X","") ->  | G68: =WE!$J$27 -> 0 | H68: 12 | I68: 8 points | J68: WE02T8 | K68: =IF($G$68=8,"X","") -> 
A69: LEED v4 BD+C: Homes | B69: WE | C69: C | D69: Total water use | E69: WE102 | F69: =IF(WE!$J$27>0,"X","") ->  | G69: =WE!$J$27 -> 0 | H69: 12 | I69: 9 points | J69: WE02T9 | K69: =IF($G$69=9,"X","") -> 
A70: LEED v4 BD+C: Homes | B70: WE | C70: C | D70: Total water use | E70: WE102 | F70: =IF(WE!$J$27>0,"X","") ->  | G70: =WE!$J$27 -> 0 | H70: 12 | I70: 10 points | J70: WE02T10 | K70: =IF($G$70=10,"X","") -> 
A71: LEED v4 BD+C: Homes | B71: WE | C71: C | D71: Total water use | E71: WE102 | F71: =IF(WE!$J$27>0,"X","") ->  | G71: =WE!$J$27 -> 0 | H71: 12 | I71: 11 points | J71: WE02T11 | K71: =IF($G$71=11,"X","") -> 
A72: LEED v4 BD+C: Homes | B72: WE | C72: C | D72: Total water use | E72: WE102 | F72: =IF(WE!$J$27>0,"X","") ->  | G72: =WE!$J$27 -> 0 | H72: 12 | I72: 12 points | J72: WE02T12 | K72: =IF($G$72=12,"X","") -> 
A73: LEED v4 BD+C: Homes | B73: WE | C73: C | D73: Indoor water use | E73: WE103 | F73: =IF(WE!$J$40>0,"X","") -> X | G73: =WE!$J$40 -> 5 | H73: 6 | L73: Case 1 | M73: WE03O1 | N73: =IF(WE!$J$43>0,"X","") -> X
A74: LEED v4 BD+C: Homes | B74: WE | C74: C | D74: Indoor water use | E74: WE103 | F74: =IF(WE!$J$40>0,"X","") -> X | G74: =WE!$J$40 -> 5 | H74: 6 | L74: Case 1 | M74: WE03O1 | N74: =IF(WE!$J$43>0,"X","") -> X | O74: 1 point | P74: WE03O1P1 | Q74: =IF(WE!$J$43=1,"X","") -> 
A75: LEED v4 BD+C: Homes | B75: WE | C75: C | D75: Indoor water use | E75: WE103 | F75: =IF(WE!$J$40>0,"X","") -> X | G75: =WE!$J$40 -> 5 | H75: 6 | L75: Case 1 | M75: WE03O1 | N75: =IF(WE!$J$43>0,"X","") -> X | O75: 2 points | P75: WE03O1P2 | Q75: =IF(WE!$J$43=2,"X","") -> 
A76: LEED v4 BD+C: Homes | B76: WE | C76: C | D76: Indoor water use | E76: WE103 | F76: =IF(WE!$J$40>0,"X","") -> X | G76: =WE!$J$40 -> 5 | H76: 6 | L76: Case 1 | M76: WE03O1 | N76: =IF(WE!$J$43>0,"X","") -> X | O76: 3 points | P76: WE03O1P3 | Q76: =IF(WE!$J$43=3,"X","") -> 
A77: LEED v4 BD+C: Homes | B77: WE | C77: C | D77: Indoor water use | E77: WE103 | F77: =IF(WE!$J$40>0,"X","") -> X | G77: =WE!$J$40 -> 5 | H77: 6 | L77: Case 1 | M77: WE03O1 | N77: =IF(WE!$J$43>0,"X","") -> X | O77: 4 points | P77: WE03O1P4 | Q77: =IF(WE!$J$43=4,"X","") -> 
A78: LEED v4 BD+C: Homes | B78: WE | C78: C | D78: Indoor water use | E78: WE103 | F78: =IF(WE!$J$40>0,"X","") -> X | G78: =WE!$J$40 -> 5 | H78: 6 | L78: Case 1 | M78: WE03O1 | N78: =IF(WE!$J$43>0,"X","") -> X | O78: 5 points | P78: WE03O1P5 | Q78: =IF(WE!$J$43=5,"X","") -> X
A79: LEED v4 BD+C: Homes | B79: WE | C79: C | D79: Indoor water use | E79: WE103 | F79: =IF(WE!$J$40>0,"X","") -> X | G79: =WE!$J$40 -> 5 | H79: 6 | L79: Case 1 | M79: WE03O1 | N79: =IF(WE!$J$43>0,"X","") -> X | O79: 6 points | P79: WE03O1P6 | Q79: =IF(WE!$J$43=6,"X","") -> 
A80: LEED v4 BD+C: Homes | B80: WE | C80: C | D80: Indoor water use | E80: WE103 | F80: =IF(WE!$J$40>0,"X","") -> X | G80: =WE!$J$40 -> 5 | H80: 6 | L80: Case 2 | M80: WE03O2 | N80: =IF(WE!$J$64>0,"X","") -> 
A81: LEED v4 BD+C: Homes | B81: WE | C81: C | D81: Indoor water use | E81: WE103 | F81: =IF(WE!$J$40>0,"X","") -> X | G81: =WE!$J$40 -> 5 | H81: 6 | L81: Case 2 | M81: WE03O2 | N81: =IF(WE!$J$64>0,"X","") ->  | O81: 1 point | P81: WE03O2P1 | Q81: =IF(WE!$J$64=1,"X","") -> 
A82: LEED v4 BD+C: Homes | B82: WE | C82: C | D82: Indoor water use | E82: WE103 | F82: =IF(WE!$J$40>0,"X","") -> X | G82: =WE!$J$40 -> 5 | H82: 6 | L82: Case 2 | M82: WE03O2 | N82: =IF(WE!$J$64>0,"X","") ->  | O82: 2 points | P82: WE03O2P2 | Q82: =IF(WE!$J$64=2,"X","") -> 
A83: LEED v4 BD+C: Homes | B83: WE | C83: C | D83: Indoor water use | E83: WE103 | F83: =IF(WE!$J$40>0,"X","") -> X | G83: =WE!$J$40 -> 5 | H83: 6 | L83: Case 2 | M83: WE03O2 | N83: =IF(WE!$J$64>0,"X","") ->  | O83: 3 points | P83: WE03O2P3 | Q83: =IF(WE!$J$64=3,"X","") -> 
A84: LEED v4 BD+C: Homes | B84: WE | C84: C | D84: Indoor water use | E84: WE103 | F84: =IF(WE!$J$40>0,"X","") -> X | G84: =WE!$J$40 -> 5 | H84: 6 | L84: Case 2 | M84: WE03O2 | N84: =IF(WE!$J$64>0,"X","") ->  | O84: 4 points | P84: WE03O2P4 | Q84: =IF(WE!$J$64=4,"X","") -> 
A85: LEED v4 BD+C: Homes | B85: WE | C85: C | D85: Indoor water use | E85: WE103 | F85: =IF(WE!$J$40>0,"X","") -> X | G85: =WE!$J$40 -> 5 | H85: 6 | L85: Case 2 | M85: WE03O2 | N85: =IF(WE!$J$64>0,"X","") ->  | O85: 5 points | P85: WE03O2P5 | Q85: =IF(WE!$J$64=5,"X","") -> 
A86: LEED v4 BD+C: Homes | B86: WE | C86: C | D86: Indoor water use | E86: WE103 | F86: =IF(WE!$J$40>0,"X","") -> X | G86: =WE!$J$40 -> 5 | H86: 6 | L86: Case 2 | M86: WE03O2 | N86: =IF(WE!$J$64>0,"X","") ->  | O86: 6 points | P86: WE03O2P6 | Q86: =IF(WE!$J$64=6,"X","") -> 
A87: LEED v4 BD+C: Homes | B87: WE | C87: C | D87: Outdoor water use | E87: WE104 | F87: =IF(WE!$J$86>0,"X","") ->  | G87: =WE!$J$86 -> 0 | H87: 4 | I87: 1 point | J87: WE04T1 | K87: =IF(G87=1,"X","") -> 
A88: LEED v4 BD+C: Homes | B88: WE | C88: C | D88: Outdoor water use | E88: WE104 | F88: =IF(WE!$J$86>0,"X","") ->  | G88: =WE!$J$86 -> 0 | H88: 4 | I88: 2 points | J88: WE04T2 | K88: =IF(G88=2,"X","") -> 
A89: LEED v4 BD+C: Homes | B89: WE | C89: C | D89: Outdoor water use | E89: WE104 | F89: =IF(WE!$J$86>0,"X","") ->  | G89: =WE!$J$86 -> 0 | H89: 4 | I89: 3 points | J89: WE04T3 | K89: =IF(G89=3,"X","") -> 
A90: LEED v4 BD+C: Homes | B90: WE | C90: C | D90: Outdoor water use | E90: WE104 | F90: =IF(WE!$J$86>0,"X","") ->  | G90: =WE!$J$86 -> 0 | H90: 4 | I90: 4 points | J90: WE04T4 | K90: =IF(G90=4,"X","") -> 
A91: LEED v4 BD+C: Homes | B91: EA | C91: P | D91: Minimum energy performance | E91: EA101 | F91: x | G91: =EA!$J$7 -> Y | H91: 0
A92: LEED v4 BD+C: Homes | B92: EA | C92: P | D92: Energy metering | E92: EA102 | F92: x | G92: =EA!$J$73 -> Y | H92: 0 | L92: Case 1 | M92: EA02O1 | N92: =IF(EA!$J$76="Y","X","") -> X
A93: LEED v4 BD+C: Homes | B93: EA | C93: P | D93: Energy metering | E93: EA102 | F93: x | G93: =EA!$J$73 -> Y | H93: 0 | L93: Case 2 | M93: EA02O2 | N93: =IF(EA!$J$83="Y","X","") -> 
A94: LEED v4 BD+C: Homes | B94: EA | C94: P | D94: Education of homeowner, tenant, or building manager | E94: EA103 | F94: x | G94: =EA!$J$91 -> Y | H94: 0
A95: LEED v4 BD+C: Homes | B95: EA | C95: C | D95: Annual energy use | E95: EA105 | F95: =IF(EA!$J$101>0,"X","") -> X | G95: =EA!$J$101 -> 28 | H95: 29 | L95: Option 1 | M95: EA05O1 | N95: =IF(EA!$J$105>0,"X","") -> 
A96: LEED v4 BD+C: Homes | B96: EA | C96: C | D96: Annual energy use | E96: EA105 | F96: =IF(EA!$J$101>0,"X","") -> X | G96: =EA!$J$101 -> 28 | H96: 29 | L96: Option 1 | M96: EA05O1 | N96: =IF(EA!$J$105>0,"X","") ->  | O96: 1 point | P96: EA05O1P1 | Q96: =IF(EA!$J$105=1,"X","") -> 
A97: LEED v4 BD+C: Homes | B97: EA | C97: C | D97: Annual energy use | E97: EA105 | F97: =IF(EA!$J$101>0,"X","") -> X | G97: =EA!$J$101 -> 28 | H97: 29 | L97: Option 1 | M97: EA05O1 | N97: =IF(EA!$J$105>0,"X","") ->  | O97: 2 points | P97: EA05O1P2 | Q97: =IF(EA!$J$105=2,"X","") -> 
A98: LEED v4 BD+C: Homes | B98: EA | C98: C | D98: Annual energy use | E98: EA105 | F98: =IF(EA!$J$101>0,"X","") -> X | G98: =EA!$J$101 -> 28 | H98: 29 | L98: Option 1 | M98: EA05O1 | N98: =IF(EA!$J$105>0,"X","") ->  | O98: 3 points | P98: EA05O1P3 | Q98: =IF(EA!$J$105=3,"X","") -> 
A99: LEED v4 BD+C: Homes | B99: EA | C99: C | D99: Annual energy use | E99: EA105 | F99: =IF(EA!$J$101>0,"X","") -> X | G99: =EA!$J$101 -> 28 | H99: 29 | L99: Option 1 | M99: EA05O1 | N99: =IF(EA!$J$105>0,"X","") ->  | O99: 4 points | P99: EA05O1P4 | Q99: =IF(EA!$J$105=4,"X","") -> 
A100: LEED v4 BD+C: Homes | B100: EA | C100: C | D100: Annual energy use | E100: EA105 | F100: =IF(EA!$J$101>0,"X","") -> X | G100: =EA!$J$101 -> 28 | H100: 29 | L100: Option 1 | M100: EA05O1 | N100: =IF(EA!$J$105>0,"X","") ->  | O100: 5 points | P100: EA05O1P5 | Q100: =IF(EA!$J$105=5,"X","") -> 
A101: LEED v4 BD+C: Homes | B101: EA | C101: C | D101: Annual energy use | E101: EA105 | F101: =IF(EA!$J$101>0,"X","") -> X | G101: =EA!$J$101 -> 28 | H101: 29 | L101: Option 1 | M101: EA05O1 | N101: =IF(EA!$J$105>0,"X","") ->  | O101: 6 points | P101: EA05O1P6 | Q101: =IF(EA!$J$105=6,"X","") -> 
A102: LEED v4 BD+C: Homes | B102: EA | C102: C | D102: Annual energy use | E102: EA105 | F102: =IF(EA!$J$101>0,"X","") -> X | G102: =EA!$J$101 -> 28 | H102: 29 | L102: Option 1 | M102: EA05O1 | N102: =IF(EA!$J$105>0,"X","") ->  | O102: 7 points | P102: EA05O1P7 | Q102: =IF(EA!$J$105=7,"X","") -> 
A103: LEED v4 BD+C: Homes | B103: EA | C103: C | D103: Annual energy use | E103: EA105 | F103: =IF(EA!$J$101>0,"X","") -> X | G103: =EA!$J$101 -> 28 | H103: 29 | L103: Option 1 | M103: EA05O1 | N103: =IF(EA!$J$105>0,"X","") ->  | O103: 8 points | P103: EA05O1P8 | Q103: =IF(EA!$J$105=8,"X","") -> 
A104: LEED v4 BD+C: Homes | B104: EA | C104: C | D104: Annual energy use | E104: EA105 | F104: =IF(EA!$J$101>0,"X","") -> X | G104: =EA!$J$101 -> 28 | H104: 29 | L104: Option 1 | M104: EA05O1 | N104: =IF(EA!$J$105>0,"X","") ->  | O104: 9 points | P104: EA05O1P9 | Q104: =IF(EA!$J$105=9,"X","") -> 
A105: LEED v4 BD+C: Homes | B105: EA | C105: C | D105: Annual energy use | E105: EA105 | F105: =IF(EA!$J$101>0,"X","") -> X | G105: =EA!$J$101 -> 28 | H105: 29 | L105: Option 1 | M105: EA05O1 | N105: =IF(EA!$J$105>0,"X","") ->  | O105: 10 points | P105: EA05O1P10 | Q105: =IF(EA!$J$105=10,"X","") -> 
A106: LEED v4 BD+C: Homes | B106: EA | C106: C | D106: Annual energy use | E106: EA105 | F106: =IF(EA!$J$101>0,"X","") -> X | G106: =EA!$J$101 -> 28 | H106: 29 | L106: Option 1 | M106: EA05O1 | N106: =IF(EA!$J$105>0,"X","") ->  | O106: 11 points | P106: EA05O1P11 | Q106: =IF(EA!$J$105=11,"X","") -> 
A107: LEED v4 BD+C: Homes | B107: EA | C107: C | D107: Annual energy use | E107: EA105 | F107: =IF(EA!$J$101>0,"X","") -> X | G107: =EA!$J$101 -> 28 | H107: 29 | L107: Option 1 | M107: EA05O1 | N107: =IF(EA!$J$105>0,"X","") ->  | O107: 12 points | P107: EA05O1P12 | Q107: =IF(EA!$J$105=12,"X","") -> 
A108: LEED v4 BD+C: Homes | B108: EA | C108: C | D108: Annual energy use | E108: EA105 | F108: =IF(EA!$J$101>0,"X","") -> X | G108: =EA!$J$101 -> 28 | H108: 29 | L108: Option 1 | M108: EA05O1 | N108: =IF(EA!$J$105>0,"X","") ->  | O108: 13 points | P108: EA05O1P13 | Q108: =IF(EA!$J$105=13,"X","") -> 
A109: LEED v4 BD+C: Homes | B109: EA | C109: C | D109: Annual energy use | E109: EA105 | F109: =IF(EA!$J$101>0,"X","") -> X | G109: =EA!$J$101 -> 28 | H109: 29 | L109: Option 1 | M109: EA05O1 | N109: =IF(EA!$J$105>0,"X","") ->  | O109: 14 points | P109: EA05O1P14 | Q109: =IF(EA!$J$105=14,"X","") -> 
A110: LEED v4 BD+C: Homes | B110: EA | C110: C | D110: Annual energy use | E110: EA105 | F110: =IF(EA!$J$101>0,"X","") -> X | G110: =EA!$J$101 -> 28 | H110: 29 | L110: Option 1 | M110: EA05O1 | N110: =IF(EA!$J$105>0,"X","") ->  | O110: 15 points | P110: EA05O1P15 | Q110: =IF(EA!$J$105=15,"X","") -> 
A111: LEED v4 BD+C: Homes | B111: EA | C111: C | D111: Annual energy use | E111: EA105 | F111: =IF(EA!$J$101>0,"X","") -> X | G111: =EA!$J$101 -> 28 | H111: 29 | L111: Option 1 | M111: EA05O1 | N111: =IF(EA!$J$105>0,"X","") ->  | O111: 16 points | P111: EA05O1P16 | Q111: =IF(EA!$J$105=16,"X","") -> 
A112: LEED v4 BD+C: Homes | B112: EA | C112: C | D112: Annual energy use | E112: EA105 | F112: =IF(EA!$J$101>0,"X","") -> X | G112: =EA!$J$101 -> 28 | H112: 29 | L112: Option 1 | M112: EA05O1 | N112: =IF(EA!$J$105>0,"X","") ->  | O112: 17 points | P112: EA05O1P17 | Q112: =IF(EA!$J$105=17,"X","") -> 
A113: LEED v4 BD+C: Homes | B113: EA | C113: C | D113: Annual energy use | E113: EA105 | F113: =IF(EA!$J$101>0,"X","") -> X | G113: =EA!$J$101 -> 28 | H113: 29 | L113: Option 1 | M113: EA05O1 | N113: =IF(EA!$J$105>0,"X","") ->  | O113: 18 points | P113: EA05O1P18 | Q113: =IF(EA!$J$105=18,"X","") -> 
A114: LEED v4 BD+C: Homes | B114: EA | C114: C | D114: Annual energy use | E114: EA105 | F114: =IF(EA!$J$101>0,"X","") -> X | G114: =EA!$J$101 -> 28 | H114: 29 | L114: Option 1 | M114: EA05O1 | N114: =IF(EA!$J$105>0,"X","") ->  | O114: 19 points | P114: EA05O1P19 | Q114: =IF(EA!$J$105=19,"X","") -> 
A115: LEED v4 BD+C: Homes | B115: EA | C115: C | D115: Annual energy use | E115: EA105 | F115: =IF(EA!$J$101>0,"X","") -> X | G115: =EA!$J$101 -> 28 | H115: 29 | L115: Option 1 | M115: EA05O1 | N115: =IF(EA!$J$105>0,"X","") ->  | O115: 20 points | P115: EA05O1P20 | Q115: =IF(EA!$J$105=20,"X","") -> 
A116: LEED v4 BD+C: Homes | B116: EA | C116: C | D116: Annual energy use | E116: EA105 | F116: =IF(EA!$J$101>0,"X","") -> X | G116: =EA!$J$101 -> 28 | H116: 29 | L116: Option 1 | M116: EA05O1 | N116: =IF(EA!$J$105>0,"X","") ->  | O116: 21 points | P116: EA05O1P21 | Q116: =IF(EA!$J$105=21,"X","") -> 
A117: LEED v4 BD+C: Homes | B117: EA | C117: C | D117: Annual energy use | E117: EA105 | F117: =IF(EA!$J$101>0,"X","") -> X | G117: =EA!$J$101 -> 28 | H117: 29 | L117: Option 1 | M117: EA05O1 | N117: =IF(EA!$J$105>0,"X","") ->  | O117: 22 points | P117: EA05O1P22 | Q117: =IF(EA!$J$105=22,"X","") -> 
A118: LEED v4 BD+C: Homes | B118: EA | C118: C | D118: Annual energy use | E118: EA105 | F118: =IF(EA!$J$101>0,"X","") -> X | G118: =EA!$J$101 -> 28 | H118: 29 | L118: Option 1 | M118: EA05O1 | N118: =IF(EA!$J$105>0,"X","") ->  | O118: 23 points | P118: EA05O1P23 | Q118: =IF(EA!$J$105=23,"X","") -> 
A119: LEED v4 BD+C: Homes | B119: EA | C119: C | D119: Annual energy use | E119: EA105 | F119: =IF(EA!$J$101>0,"X","") -> X | G119: =EA!$J$101 -> 28 | H119: 29 | L119: Option 1 | M119: EA05O1 | N119: =IF(EA!$J$105>0,"X","") ->  | O119: 24 points | P119: EA05O1P24 | Q119: =IF(EA!$J$105=24,"X","") -> 
A120: LEED v4 BD+C: Homes | B120: EA | C120: C | D120: Annual energy use | E120: EA105 | F120: =IF(EA!$J$101>0,"X","") -> X | G120: =EA!$J$101 -> 28 | H120: 29 | L120: Option 1 | M120: EA05O1 | N120: =IF(EA!$J$105>0,"X","") ->  | O120: 25 points | P120: EA05O1P25 | Q120: =IF(EA!$J$105=25,"X","") -> 
A121: LEED v4 BD+C: Homes | B121: EA | C121: C | D121: Annual energy use | E121: EA105 | F121: =IF(EA!$J$101>0,"X","") -> X | G121: =EA!$J$101 -> 28 | H121: 29 | L121: Option 1 | M121: EA05O1 | N121: =IF(EA!$J$105>0,"X","") ->  | O121: 26 points | P121: EA05O1P26 | Q121: =IF(EA!$J$105=26,"X","") -> 
A122: LEED v4 BD+C: Homes | B122: EA | C122: C | D122: Annual energy use | E122: EA105 | F122: =IF(EA!$J$101>0,"X","") -> X | G122: =EA!$J$101 -> 28 | H122: 29 | L122: Option 1 | M122: EA05O1 | N122: =IF(EA!$J$105>0,"X","") ->  | O122: 27 points | P122: EA05O1P27 | Q122: =IF(EA!$J$105=27,"X","") -> 
A123: LEED v4 BD+C: Homes | B123: EA | C123: C | D123: Annual energy use | E123: EA105 | F123: =IF(EA!$J$101>0,"X","") -> X | G123: =EA!$J$101 -> 28 | H123: 29 | L123: Option 1 | M123: EA05O1 | N123: =IF(EA!$J$105>0,"X","") ->  | O123: 28 points | P123: EA05O1P28 | Q123: =IF(EA!$J$105=28,"X","") -> 
A124: LEED v4 BD+C: Homes | B124: EA | C124: C | D124: Annual energy use | E124: EA105 | F124: =IF(EA!$J$101>0,"X","") -> X | G124: =EA!$J$101 -> 28 | H124: 29 | L124: Option 1 | M124: EA05O1 | N124: =IF(EA!$J$105>0,"X","") ->  | O124: 29 points | P124: EA05O1P29 | Q124: =IF(EA!$J$105=29,"X","") -> 
A125: LEED v4 BD+C: Homes | B125: EA | C125: C | D125: Annual energy use | E125: EA105 | F125: =IF(EA!$J$101>0,"X","") -> X | G125: =EA!$J$101 -> 28 | H125: 29 | L125: Option 2 | M125: EA05O2 | N125: =IF(EA!$J$113>0,"X","") -> X
A126: LEED v4 BD+C: Homes | B126: EA | C126: C | D126: Annual energy use | E126: EA105 | F126: =IF(EA!$J$101>0,"X","") -> X | G126: =EA!$J$101 -> 28 | H126: 29 | L126: Option 2 | M126: EA05O2 | N126: =IF(EA!$J$113>0,"X","") -> X | O126: 0.5 points | P126: EA05O2P1 | Q126: =IF(EA!$J$113=0.5,"X","") -> 
A127: LEED v4 BD+C: Homes | B127: EA | C127: C | D127: Annual energy use | E127: EA105 | F127: =IF(EA!$J$101>0,"X","") -> X | G127: =EA!$J$101 -> 28 | H127: 29 | L127: Option 2 | M127: EA05O2 | N127: =IF(EA!$J$113>0,"X","") -> X | O127: 1 point | P127: EA05O2P2 | Q127: =IF(EA!$J$113=1,"X","") -> 
A128: LEED v4 BD+C: Homes | B128: EA | C128: C | D128: Annual energy use | E128: EA105 | F128: =IF(EA!$J$101>0,"X","") -> X | G128: =EA!$J$101 -> 28 | H128: 29 | L128: Option 2 | M128: EA05O2 | N128: =IF(EA!$J$113>0,"X","") -> X | O128: 1.5 points | P128: EA05O2P3 | Q128: =IF(EA!$J$113=1.5,"X","") -> 
A129: LEED v4 BD+C: Homes | B129: EA | C129: C | D129: Annual energy use | E129: EA105 | F129: =IF(EA!$J$101>0,"X","") -> X | G129: =EA!$J$101 -> 28 | H129: 29 | L129: Option 2 | M129: EA05O2 | N129: =IF(EA!$J$113>0,"X","") -> X | O129: 2 points | P129: EA05O2P4 | Q129: =IF(EA!$J$113=2,"X","") -> 
A130: LEED v4 BD+C: Homes | B130: EA | C130: C | D130: Annual energy use | E130: EA105 | F130: =IF(EA!$J$101>0,"X","") -> X | G130: =EA!$J$101 -> 28 | H130: 29 | L130: Option 2 | M130: EA05O2 | N130: =IF(EA!$J$113>0,"X","") -> X | O130: 2.5 points | P130: EA05O2P5 | Q130: =IF(EA!$J$113=2.5,"X","") -> 
A131: LEED v4 BD+C: Homes | B131: EA | C131: C | D131: Annual energy use | E131: EA105 | F131: =IF(EA!$J$101>0,"X","") -> X | G131: =EA!$J$101 -> 28 | H131: 29 | L131: Option 2 | M131: EA05O2 | N131: =IF(EA!$J$113>0,"X","") -> X | O131: 3 points | P131: EA05O2P6 | Q131: =IF(EA!$J$113=3,"X","") -> 
A132: LEED v4 BD+C: Homes | B132: EA | C132: C | D132: Annual energy use | E132: EA105 | F132: =IF(EA!$J$101>0,"X","") -> X | G132: =EA!$J$101 -> 28 | H132: 29 | L132: Option 2 | M132: EA05O2 | N132: =IF(EA!$J$113>0,"X","") -> X | O132: 3.5 points | P132: EA05O2P7 | Q132: =IF(EA!$J$113=3.5,"X","") -> 
A133: LEED v4 BD+C: Homes | B133: EA | C133: C | D133: Annual energy use | E133: EA105 | F133: =IF(EA!$J$101>0,"X","") -> X | G133: =EA!$J$101 -> 28 | H133: 29 | L133: Option 2 | M133: EA05O2 | N133: =IF(EA!$J$113>0,"X","") -> X | O133: 4 points | P133: EA05O2P8 | Q133: =IF(EA!$J$113=4,"X","") -> 
A134: LEED v4 BD+C: Homes | B134: EA | C134: C | D134: Annual energy use | E134: EA105 | F134: =IF(EA!$J$101>0,"X","") -> X | G134: =EA!$J$101 -> 28 | H134: 29 | L134: Option 2 | M134: EA05O2 | N134: =IF(EA!$J$113>0,"X","") -> X | O134: 4.5 points | P134: EA05O2P9 | Q134: =IF(EA!$J$113=4.5,"X","") -> 
A135: LEED v4 BD+C: Homes | B135: EA | C135: C | D135: Annual energy use | E135: EA105 | F135: =IF(EA!$J$101>0,"X","") -> X | G135: =EA!$J$101 -> 28 | H135: 29 | L135: Option 2 | M135: EA05O2 | N135: =IF(EA!$J$113>0,"X","") -> X | O135: 5 points | P135: EA05O2P10 | Q135: =IF(EA!$J$113=5,"X","") -> 
A136: LEED v4 BD+C: Homes | B136: EA | C136: C | D136: Annual energy use | E136: EA105 | F136: =IF(EA!$J$101>0,"X","") -> X | G136: =EA!$J$101 -> 28 | H136: 29 | L136: Option 2 | M136: EA05O2 | N136: =IF(EA!$J$113>0,"X","") -> X | O136: 5.5 points | P136: EA05O2P11 | Q136: =IF(EA!$J$113=5.5,"X","") -> 
A137: LEED v4 BD+C: Homes | B137: EA | C137: C | D137: Annual energy use | E137: EA105 | F137: =IF(EA!$J$101>0,"X","") -> X | G137: =EA!$J$101 -> 28 | H137: 29 | L137: Option 2 | M137: EA05O2 | N137: =IF(EA!$J$113>0,"X","") -> X | O137: 6 points | P137: EA05O2P12 | Q137: =IF(EA!$J$113=6,"X","") -> 
A138: LEED v4 BD+C: Homes | B138: EA | C138: C | D138: Annual energy use | E138: EA105 | F138: =IF(EA!$J$101>0,"X","") -> X | G138: =EA!$J$101 -> 28 | H138: 29 | L138: Option 2 | M138: EA05O2 | N138: =IF(EA!$J$113>0,"X","") -> X | O138: 6.5 points | P138: EA05O2P13 | Q138: =IF(EA!$J$113=6.5,"X","") -> 
A139: LEED v4 BD+C: Homes | B139: EA | C139: C | D139: Annual energy use | E139: EA105 | F139: =IF(EA!$J$101>0,"X","") -> X | G139: =EA!$J$101 -> 28 | H139: 29 | L139: Option 2 | M139: EA05O2 | N139: =IF(EA!$J$113>0,"X","") -> X | O139: 7 points | P139: EA05O2P14 | Q139: =IF(EA!$J$113=7,"X","") -> 
A140: LEED v4 BD+C: Homes | B140: EA | C140: C | D140: Annual energy use | E140: EA105 | F140: =IF(EA!$J$101>0,"X","") -> X | G140: =EA!$J$101 -> 28 | H140: 29 | L140: Option 2 | M140: EA05O2 | N140: =IF(EA!$J$113>0,"X","") -> X | O140: 7.5 points | P140: EA05O2P15 | Q140: =IF(EA!$J$113=7.5,"X","") -> 
A141: LEED v4 BD+C: Homes | B141: EA | C141: C | D141: Annual energy use | E141: EA105 | F141: =IF(EA!$J$101>0,"X","") -> X | G141: =EA!$J$101 -> 28 | H141: 29 | L141: Option 2 | M141: EA05O2 | N141: =IF(EA!$J$113>0,"X","") -> X | O141: 8 points | P141: EA05O2P16 | Q141: =IF(EA!$J$113=8,"X","") -> 
A142: LEED v4 BD+C: Homes | B142: EA | C142: C | D142: Annual energy use | E142: EA105 | F142: =IF(EA!$J$101>0,"X","") -> X | G142: =EA!$J$101 -> 28 | H142: 29 | L142: Option 2 | M142: EA05O2 | N142: =IF(EA!$J$113>0,"X","") -> X | O142: 8.5 points | P142: EA05O2P17 | Q142: =IF(EA!$J$113=8.5,"X","") -> 
A143: LEED v4 BD+C: Homes | B143: EA | C143: C | D143: Annual energy use | E143: EA105 | F143: =IF(EA!$J$101>0,"X","") -> X | G143: =EA!$J$101 -> 28 | H143: 29 | L143: Option 2 | M143: EA05O2 | N143: =IF(EA!$J$113>0,"X","") -> X | O143: 9 points | P143: EA05O2P18 | Q143: =IF(EA!$J$113=9,"X","") -> 
A144: LEED v4 BD+C: Homes | B144: EA | C144: C | D144: Annual energy use | E144: EA105 | F144: =IF(EA!$J$101>0,"X","") -> X | G144: =EA!$J$101 -> 28 | H144: 29 | L144: Option 2 | M144: EA05O2 | N144: =IF(EA!$J$113>0,"X","") -> X | O144: 9.5 points | P144: EA05O2P19 | Q144: =IF(EA!$J$113=9.5,"X","") -> 
A145: LEED v4 BD+C: Homes | B145: EA | C145: C | D145: Annual energy use | E145: EA105 | F145: =IF(EA!$J$101>0,"X","") -> X | G145: =EA!$J$101 -> 28 | H145: 29 | L145: Option 2 | M145: EA05O2 | N145: =IF(EA!$J$113>0,"X","") -> X | O145: 10 points | P145: EA05O2P20 | Q145: =IF(EA!$J$113=10,"X","") -> 
A146: LEED v4 BD+C: Homes | B146: EA | C146: C | D146: Annual energy use | E146: EA105 | F146: =IF(EA!$J$101>0,"X","") -> X | G146: =EA!$J$101 -> 28 | H146: 29 | L146: Option 2 | M146: EA05O2 | N146: =IF(EA!$J$113>0,"X","") -> X | O146: 10.5 points | P146: EA05O2P21 | Q146: =IF(EA!$J$113=10.5,"X","") -> 
A147: LEED v4 BD+C: Homes | B147: EA | C147: C | D147: Annual energy use | E147: EA105 | F147: =IF(EA!$J$101>0,"X","") -> X | G147: =EA!$J$101 -> 28 | H147: 29 | L147: Option 2 | M147: EA05O2 | N147: =IF(EA!$J$113>0,"X","") -> X | O147: 11 points | P147: EA05O2P22 | Q147: =IF(EA!$J$113=11,"X","") -> 
A148: LEED v4 BD+C: Homes | B148: EA | C148: C | D148: Annual energy use | E148: EA105 | F148: =IF(EA!$J$101>0,"X","") -> X | G148: =EA!$J$101 -> 28 | H148: 29 | L148: Option 2 | M148: EA05O2 | N148: =IF(EA!$J$113>0,"X","") -> X | O148: 11.5 points | P148: EA05O2P23 | Q148: =IF(EA!$J$113=11.5,"X","") -> 
A149: LEED v4 BD+C: Homes | B149: EA | C149: C | D149: Annual energy use | E149: EA105 | F149: =IF(EA!$J$101>0,"X","") -> X | G149: =EA!$J$101 -> 28 | H149: 29 | L149: Option 2 | M149: EA05O2 | N149: =IF(EA!$J$113>0,"X","") -> X | O149: 12 points | P149: EA05O2P24 | Q149: =IF(EA!$J$113=12,"X","") -> 
A150: LEED v4 BD+C: Homes | B150: EA | C150: C | D150: Annual energy use | E150: EA105 | F150: =IF(EA!$J$101>0,"X","") -> X | G150: =EA!$J$101 -> 28 | H150: 29 | L150: Option 2 | M150: EA05O2 | N150: =IF(EA!$J$113>0,"X","") -> X | O150: 12.5 points | P150: EA05O2P25 | Q150: =IF(EA!$J$113=12.5,"X","") -> 
A151: LEED v4 BD+C: Homes | B151: EA | C151: C | D151: Annual energy use | E151: EA105 | F151: =IF(EA!$J$101>0,"X","") -> X | G151: =EA!$J$101 -> 28 | H151: 29 | L151: Option 2 | M151: EA05O2 | N151: =IF(EA!$J$113>0,"X","") -> X | O151: 13 points | P151: EA05O2P26 | Q151: =IF(EA!$J$113=13,"X","") -> 
A152: LEED v4 BD+C: Homes | B152: EA | C152: C | D152: Annual energy use | E152: EA105 | F152: =IF(EA!$J$101>0,"X","") -> X | G152: =EA!$J$101 -> 28 | H152: 29 | L152: Option 2 | M152: EA05O2 | N152: =IF(EA!$J$113>0,"X","") -> X | O152: 13.5 points | P152: EA05O2P27 | Q152: =IF(EA!$J$113=13.5,"X","") -> 
A153: LEED v4 BD+C: Homes | B153: EA | C153: C | D153: Annual energy use | E153: EA105 | F153: =IF(EA!$J$101>0,"X","") -> X | G153: =EA!$J$101 -> 28 | H153: 29 | L153: Option 2 | M153: EA05O2 | N153: =IF(EA!$J$113>0,"X","") -> X | O153: 14 points | P153: EA05O2P28 | Q153: =IF(EA!$J$113=14,"X","") -> 
A154: LEED v4 BD+C: Homes | B154: EA | C154: C | D154: Annual energy use | E154: EA105 | F154: =IF(EA!$J$101>0,"X","") -> X | G154: =EA!$J$101 -> 28 | H154: 29 | L154: Option 2 | M154: EA05O2 | N154: =IF(EA!$J$113>0,"X","") -> X | O154: 14.5 points | P154: EA05O2P29 | Q154: =IF(EA!$J$113=14.5,"X","") -> 
A155: LEED v4 BD+C: Homes | B155: EA | C155: C | D155: Annual energy use | E155: EA105 | F155: =IF(EA!$J$101>0,"X","") -> X | G155: =EA!$J$101 -> 28 | H155: 29 | L155: Option 2 | M155: EA05O2 | N155: =IF(EA!$J$113>0,"X","") -> X | O155: 15 points | P155: EA05O2P30 | Q155: =IF(EA!$J$113=15,"X","") -> 
A156: LEED v4 BD+C: Homes | B156: EA | C156: C | D156: Annual energy use | E156: EA105 | F156: =IF(EA!$J$101>0,"X","") -> X | G156: =EA!$J$101 -> 28 | H156: 29 | L156: Option 2 | M156: EA05O2 | N156: =IF(EA!$J$113>0,"X","") -> X | O156: 15.5 points | P156: EA05O2P31 | Q156: =IF(EA!$J$113=15.5,"X","") -> 
A157: LEED v4 BD+C: Homes | B157: EA | C157: C | D157: Annual energy use | E157: EA105 | F157: =IF(EA!$J$101>0,"X","") -> X | G157: =EA!$J$101 -> 28 | H157: 29 | L157: Option 2 | M157: EA05O2 | N157: =IF(EA!$J$113>0,"X","") -> X | O157: 16 points | P157: EA05O2P32 | Q157: =IF(EA!$J$113=16,"X","") -> 
A158: LEED v4 BD+C: Homes | B158: EA | C158: C | D158: Annual energy use | E158: EA105 | F158: =IF(EA!$J$101>0,"X","") -> X | G158: =EA!$J$101 -> 28 | H158: 29 | L158: Option 2 | M158: EA05O2 | N158: =IF(EA!$J$113>0,"X","") -> X | O158: 16.5 points | P158: EA05O2P33 | Q158: =IF(EA!$J$113=16.5,"X","") -> 
A159: LEED v4 BD+C: Homes | B159: EA | C159: C | D159: Annual energy use | E159: EA105 | F159: =IF(EA!$J$101>0,"X","") -> X | G159: =EA!$J$101 -> 28 | H159: 29 | L159: Option 2 | M159: EA05O2 | N159: =IF(EA!$J$113>0,"X","") -> X | O159: 17 points | P159: EA05O2P34 | Q159: =IF(EA!$J$113=17,"X","") -> 
A160: LEED v4 BD+C: Homes | B160: EA | C160: C | D160: Annual energy use | E160: EA105 | F160: =IF(EA!$J$101>0,"X","") -> X | G160: =EA!$J$101 -> 28 | H160: 29 | L160: Option 2 | M160: EA05O2 | N160: =IF(EA!$J$113>0,"X","") -> X | O160: 17.5 points | P160: EA05O2P35 | Q160: =IF(EA!$J$113=17.5,"X","") -> 
A161: LEED v4 BD+C: Homes | B161: EA | C161: C | D161: Annual energy use | E161: EA105 | F161: =IF(EA!$J$101>0,"X","") -> X | G161: =EA!$J$101 -> 28 | H161: 29 | L161: Option 2 | M161: EA05O2 | N161: =IF(EA!$J$113>0,"X","") -> X | O161: 18 points | P161: EA05O2P36 | Q161: =IF(EA!$J$113=18,"X","") -> 
A162: LEED v4 BD+C: Homes | B162: EA | C162: C | D162: Annual energy use | E162: EA105 | F162: =IF(EA!$J$101>0,"X","") -> X | G162: =EA!$J$101 -> 28 | H162: 29 | L162: Option 2 | M162: EA05O2 | N162: =IF(EA!$J$113>0,"X","") -> X | O162: 18.5 points | P162: EA05O2P37 | Q162: =IF(EA!$J$113=18.5,"X","") -> 
A163: LEED v4 BD+C: Homes | B163: EA | C163: C | D163: Annual energy use | E163: EA105 | F163: =IF(EA!$J$101>0,"X","") -> X | G163: =EA!$J$101 -> 28 | H163: 29 | L163: Option 2 | M163: EA05O2 | N163: =IF(EA!$J$113>0,"X","") -> X | O163: 19 points | P163: EA05O2P38 | Q163: =IF(EA!$J$113=19,"X","") -> 
A164: LEED v4 BD+C: Homes | B164: EA | C164: C | D164: Annual energy use | E164: EA105 | F164: =IF(EA!$J$101>0,"X","") -> X | G164: =EA!$J$101 -> 28 | H164: 29 | L164: Option 2 | M164: EA05O2 | N164: =IF(EA!$J$113>0,"X","") -> X | O164: 19.5 points | P164: EA05O2P39 | Q164: =IF(EA!$J$113=19.5,"X","") -> 
A165: LEED v4 BD+C: Homes | B165: EA | C165: C | D165: Annual energy use | E165: EA105 | F165: =IF(EA!$J$101>0,"X","") -> X | G165: =EA!$J$101 -> 28 | H165: 29 | L165: Option 2 | M165: EA05O2 | N165: =IF(EA!$J$113>0,"X","") -> X | O165: 20 points | P165: EA05O2P40 | Q165: =IF(EA!$J$113=20,"X","") -> 
A166: LEED v4 BD+C: Homes | B166: EA | C166: C | D166: Annual energy use | E166: EA105 | F166: =IF(EA!$J$101>0,"X","") -> X | G166: =EA!$J$101 -> 28 | H166: 29 | L166: Option 2 | M166: EA05O2 | N166: =IF(EA!$J$113>0,"X","") -> X | O166: 20.5 points | P166: EA05O2P41 | Q166: =IF(EA!$J$113=20.5,"X","") -> 
A167: LEED v4 BD+C: Homes | B167: EA | C167: C | D167: Annual energy use | E167: EA105 | F167: =IF(EA!$J$101>0,"X","") -> X | G167: =EA!$J$101 -> 28 | H167: 29 | L167: Option 2 | M167: EA05O2 | N167: =IF(EA!$J$113>0,"X","") -> X | O167: 21 points | P167: EA05O2P42 | Q167: =IF(EA!$J$113=21,"X","") -> 
A168: LEED v4 BD+C: Homes | B168: EA | C168: C | D168: Annual energy use | E168: EA105 | F168: =IF(EA!$J$101>0,"X","") -> X | G168: =EA!$J$101 -> 28 | H168: 29 | L168: Option 2 | M168: EA05O2 | N168: =IF(EA!$J$113>0,"X","") -> X | O168: 21.5 points | P168: EA05O2P43 | Q168: =IF(EA!$J$113=21.5,"X","") -> 
A169: LEED v4 BD+C: Homes | B169: EA | C169: C | D169: Annual energy use | E169: EA105 | F169: =IF(EA!$J$101>0,"X","") -> X | G169: =EA!$J$101 -> 28 | H169: 29 | L169: Option 2 | M169: EA05O2 | N169: =IF(EA!$J$113>0,"X","") -> X | O169: 22 points | P169: EA05O2P44 | Q169: =IF(EA!$J$113=22,"X","") -> 
A170: LEED v4 BD+C: Homes | B170: EA | C170: C | D170: Annual energy use | E170: EA105 | F170: =IF(EA!$J$101>0,"X","") -> X | G170: =EA!$J$101 -> 28 | H170: 29 | L170: Option 2 | M170: EA05O2 | N170: =IF(EA!$J$113>0,"X","") -> X | O170: 22.5 points | P170: EA05O2P45 | Q170: =IF(EA!$J$113=22.5,"X","") -> 
A171: LEED v4 BD+C: Homes | B171: EA | C171: C | D171: Annual energy use | E171: EA105 | F171: =IF(EA!$J$101>0,"X","") -> X | G171: =EA!$J$101 -> 28 | H171: 29 | L171: Option 2 | M171: EA05O2 | N171: =IF(EA!$J$113>0,"X","") -> X | O171: 23 points | P171: EA05O2P46 | Q171: =IF(EA!$J$113=23,"X","") -> 
A172: LEED v4 BD+C: Homes | B172: EA | C172: C | D172: Annual energy use | E172: EA105 | F172: =IF(EA!$J$101>0,"X","") -> X | G172: =EA!$J$101 -> 28 | H172: 29 | L172: Option 2 | M172: EA05O2 | N172: =IF(EA!$J$113>0,"X","") -> X | O172: 23.5 points | P172: EA05O2P47 | Q172: =IF(EA!$J$113=23.5,"X","") -> 
A173: LEED v4 BD+C: Homes | B173: EA | C173: C | D173: Annual energy use | E173: EA105 | F173: =IF(EA!$J$101>0,"X","") -> X | G173: =EA!$J$101 -> 28 | H173: 29 | L173: Option 2 | M173: EA05O2 | N173: =IF(EA!$J$113>0,"X","") -> X | O173: 24 points | P173: EA05O2P48 | Q173: =IF(EA!$J$113=24,"X","") -> 
A174: LEED v4 BD+C: Homes | B174: EA | C174: C | D174: Annual energy use | E174: EA105 | F174: =IF(EA!$J$101>0,"X","") -> X | G174: =EA!$J$101 -> 28 | H174: 29 | L174: Option 2 | M174: EA05O2 | N174: =IF(EA!$J$113>0,"X","") -> X | O174: 24.5 points | P174: EA05O2P49 | Q174: =IF(EA!$J$113=24.5,"X","") -> 
A175: LEED v4 BD+C: Homes | B175: EA | C175: C | D175: Annual energy use | E175: EA105 | F175: =IF(EA!$J$101>0,"X","") -> X | G175: =EA!$J$101 -> 28 | H175: 29 | L175: Option 2 | M175: EA05O2 | N175: =IF(EA!$J$113>0,"X","") -> X | O175: 25 points | P175: EA05O2P50 | Q175: =IF(EA!$J$113=25,"X","") -> 
A176: LEED v4 BD+C: Homes | B176: EA | C176: C | D176: Annual energy use | E176: EA105 | F176: =IF(EA!$J$101>0,"X","") -> X | G176: =EA!$J$101 -> 28 | H176: 29 | L176: Option 2 | M176: EA05O2 | N176: =IF(EA!$J$113>0,"X","") -> X | O176: 25.5 points | P176: EA05O2P51 | Q176: =IF(EA!$J$113=25.5,"X","") -> 
A177: LEED v4 BD+C: Homes | B177: EA | C177: C | D177: Annual energy use | E177: EA105 | F177: =IF(EA!$J$101>0,"X","") -> X | G177: =EA!$J$101 -> 28 | H177: 29 | L177: Option 2 | M177: EA05O2 | N177: =IF(EA!$J$113>0,"X","") -> X | O177: 26 points | P177: EA05O2P52 | Q177: =IF(EA!$J$113=26,"X","") -> 
A178: LEED v4 BD+C: Homes | B178: EA | C178: C | D178: Annual energy use | E178: EA105 | F178: =IF(EA!$J$101>0,"X","") -> X | G178: =EA!$J$101 -> 28 | H178: 29 | L178: Option 2 | M178: EA05O2 | N178: =IF(EA!$J$113>0,"X","") -> X | O178: 26.5 points | P178: EA05O2P53 | Q178: =IF(EA!$J$113=26.5,"X","") -> 
A179: LEED v4 BD+C: Homes | B179: EA | C179: C | D179: Annual energy use | E179: EA105 | F179: =IF(EA!$J$101>0,"X","") -> X | G179: =EA!$J$101 -> 28 | H179: 29 | L179: Option 2 | M179: EA05O2 | N179: =IF(EA!$J$113>0,"X","") -> X | O179: 27 points | P179: EA05O2P54 | Q179: =IF(EA!$J$113=27,"X","") -> 
A180: LEED v4 BD+C: Homes | B180: EA | C180: C | D180: Annual energy use | E180: EA105 | F180: =IF(EA!$J$101>0,"X","") -> X | G180: =EA!$J$101 -> 28 | H180: 29 | L180: Option 2 | M180: EA05O2 | N180: =IF(EA!$J$113>0,"X","") -> X | O180: 27.5 points | P180: EA05O2P55 | Q180: =IF(EA!$J$113=27.5,"X","") -> 
A181: LEED v4 BD+C: Homes | B181: EA | C181: C | D181: Annual energy use | E181: EA105 | F181: =IF(EA!$J$101>0,"X","") -> X | G181: =EA!$J$101 -> 28 | H181: 29 | L181: Option 2 | M181: EA05O2 | N181: =IF(EA!$J$113>0,"X","") -> X | O181: 28 points | P181: EA05O2P56 | Q181: =IF(EA!$J$113=28,"X","") -> X
A182: LEED v4 BD+C: Homes | B182: EA | C182: C | D182: Annual energy use | E182: EA105 | F182: =IF(EA!$J$101>0,"X","") -> X | G182: =EA!$J$101 -> 28 | H182: 29 | L182: Option 2 | M182: EA05O2 | N182: =IF(EA!$J$113>0,"X","") -> X | O182: 28.5 points | P182: EA05O2P57 | Q182: =IF(EA!$J$113=28.5,"X","") -> 
A183: LEED v4 BD+C: Homes | B183: EA | C183: C | D183: Annual energy use | E183: EA105 | F183: =IF(EA!$J$101>0,"X","") -> X | G183: =EA!$J$101 -> 28 | H183: 29 | L183: Option 2 | M183: EA05O2 | N183: =IF(EA!$J$113>0,"X","") -> X | O183: 29 points | P183: EA05O2P58 | Q183: =IF(EA!$J$113>=29,"X","") -> 
A184: LEED v4 BD+C: Homes | B184: EA | C184: C | D184: Efficient hot water distribution system | E184: EA106 | F184: =IF(EA!$J$137>0,"X","") -> X | G184: =EA!$J$137 -> 2 | H184: 5 | L184: Option 1 | M184: EA06O1 | N184: =IF(EA!$J$140>0,"X","") -> 
A185: LEED v4 BD+C: Homes | B185: EA | C185: C | D185: Efficient hot water distribution system | E185: EA106 | F185: =IF(EA!$J$137>0,"X","") -> X | G185: =EA!$J$137 -> 2 | H185: 5 | L185: Option 1 | M185: EA06O1 | N185: =IF(EA!$J$140>0,"X","") ->  | O185: Path 1 | P185: EA06O1P1 | Q185: =IF(EA!$J$159>0,"X","") -> 
A186: LEED v4 BD+C: Homes | B186: EA | C186: C | D186: Efficient hot water distribution system | E186: EA106 | F186: =IF(EA!$J$137>0,"X","") -> X | G186: =EA!$J$137 -> 2 | H186: 5 | L186: Option 1 | M186: EA06O1 | N186: =IF(EA!$J$140>0,"X","") ->  | O186: Path 2 | P186: EA06O1P2 | Q186: =IF(EA!$J$169>0,"X","") -> 
A187: LEED v4 BD+C: Homes | B187: EA | C187: C | D187: Efficient hot water distribution system | E187: EA106 | F187: =IF(EA!$J$137>0,"X","") -> X | G187: =EA!$J$137 -> 2 | H187: 5 | L187: Option 2 | M187: EA06O2 | N187: =IF(EA!$J$175>0,"X","") -> 
A188: LEED v4 BD+C: Homes | B188: EA | C188: C | D188: Efficient hot water distribution system | E188: EA106 | F188: =IF(EA!$J$137>0,"X","") -> X | G188: =EA!$J$137 -> 2 | H188: 5 | L188: Option 2 | M188: EA06O2 | N188: =IF(EA!$J$175>0,"X","") ->  | O188: Case 1 | P188: EA06O2P1 | Q188: =IF(EA!$J$179>0,"X","") -> 
A189: LEED v4 BD+C: Homes | B189: EA | C189: C | D189: Efficient hot water distribution system | E189: EA106 | F189: =IF(EA!$J$137>0,"X","") -> X | G189: =EA!$J$137 -> 2 | H189: 5 | L189: Option 2 | M189: EA06O2 | N189: =IF(EA!$J$175>0,"X","") ->  | O189: Case 2 | P189: EA06O2P2 | Q189: =IF(EA!$J$187>0,"X","") -> 
A190: LEED v4 BD+C: Homes | B190: EA | C190: C | D190: Efficient hot water distribution system | E190: EA106 | F190: =IF(EA!$J$137>0,"X","") -> X | G190: =EA!$J$137 -> 2 | H190: 5 | L190: Option 3 | M190: EA06O3 | N190: =IF(EA!$J$196>0,"X","") -> X
A191: LEED v4 BD+C: Homes | B191: EA | C191: C | D191: Advanced utility tracking | E191: EA108 | F191: =IF(EA!$J$203>0,"X","") ->  | G191: =EA!$J$203 -> 0 | H191: 2 | L191: Case 1, Option 1 | M191: EA08O1 | N191: =IF(EA!$J$210>0,"X","") -> 
A192: LEED v4 BD+C: Homes | B192: EA | C192: C | D192: Advanced utility tracking | E192: EA108 | F192: =IF(EA!$J$203>0,"X","") ->  | G192: =EA!$J$203 -> 0 | H192: 2 | L192: Case 1, Option 2 | M192: EA08O2 | N192: =IF(EA!$J$220>0,"X","") -> 
A193: LEED v4 BD+C: Homes | B193: EA | C193: C | D193: Advanced utility tracking | E193: EA108 | F193: =IF(EA!$J$203>0,"X","") ->  | G193: =EA!$J$203 -> 0 | H193: 2 | L193: Case 2, Option 1 | M193: EA08O3 | N193: =IF(EA!$J$228>0,"X","") -> 
A194: LEED v4 BD+C: Homes | B194: EA | C194: C | D194: Advanced utility tracking | E194: EA108 | F194: =IF(EA!$J$203>0,"X","") ->  | G194: =EA!$J$203 -> 0 | H194: 2 | L194: Case 2, Option 2 | M194: EA08O4 | N194: =IF(EA!$J$238>0,"X","") -> 
A195: LEED v4 BD+C: Homes | B195: EA | C195: C | D195: Advanced utility tracking | E195: EA108 | F195: =IF(EA!$J$203>0,"X","") ->  | G195: =EA!$J$203 -> 0 | H195: 2 | L195: Case 2, Option 2 | M195: EA08O4 | N195: =IF(EA!$J$238>0,"X","") ->  | O195: Path 1 | P195: EA08O4P1 | Q195: =IF(EA!$J$241>0,"X","") -> 
A196: LEED v4 BD+C: Homes | B196: EA | C196: C | D196: Advanced utility tracking | E196: EA108 | F196: =IF(EA!$J$203>0,"X","") ->  | G196: =EA!$J$203 -> 0 | H196: 2 | L196: Case 2, Option 2 | M196: EA08O4 | N196: =IF(EA!$J$238>0,"X","") ->  | O196: Path 2 | P196: EA08O4P2 | Q196: =IF(EA!$J$247>0,"X","") -> 
A197: LEED v4 BD+C: Homes | B197: EA | C197: C | D197: Active solar-ready design | E197: EA109 | F197: =IF(EA!$J$254>0,"X","") ->  | G197: =EA!$J$254 -> 0 | H197: 1 | L197: Option 1 | M197: EA09O1 | N197: =IF(EA!J258>0,"X","") -> 
A198: LEED v4 BD+C: Homes | B198: EA | C198: C | D198: Active solar-ready design | E198: EA109 | F198: =IF(EA!$J$254>0,"X","") ->  | G198: =EA!$J$254 -> 0 | H198: 1 | L198: Option 2 | M198: EA09O2 | N198: =IF(EA!J265>0,"X","") -> 
A199: LEED v4 BD+C: Homes | B199: EA | C199: C | D199: HVAC start-up credentialing | E199: EA110 | F199: =IF(EA!$J$273>0,"X","") ->  | G199: =EA!$J$273 -> 0 | H199: 1
A200: LEED v4 BD+C: Homes | B200: EA | C200: P | D200: Home Size | E200: EA111 | F200: x | G200: =EA!$J$286 -> 0 | H200: 38 | I200: Prerequisite | J200: EA11T1 | K200: =IF(G200=0,"X","") -> X
... 418 more rows
